Publisher Label,Publisher URI,"Supplier","Net Amount (£)","Organisational Unit","Merchant Category Code","Purpose","Payment Date"
"Wolverhampton City Council","http://opendatacommunities.org/id/metropolitan-district-council/wolverhampton","ARENA EVENT SERVICES G","2447.50","Civic Hall Out-house Promotions","5811","Catering","31/10/2017"
"Wolverhampton City Council","http://opendatacommunities.org/id/metropolitan-district-council/wolverhampton","CARD MARKET","4.49","Delivery & OCE Development","5111","Stationery","31/10/2017"
"Wolverhampton City Council","http://opendatacommunities.org/id/metropolitan-district-council/wolverhampton","ITUNES.COM/BILL","2.49","Headstart - Learning Technologies Team","5735","Computing - Purchase of Software","31/10/2017"
"Wolverhampton City Council","http://opendatacommunities.org/id/metropolitan-district-council/wolverhampton","SP  ANTIBULLYING ALL","238.33","B-Safe","5734","Marketing \ Non-staff advertising","31/10/2017"
"Wolverhampton City Council","http://opendatacommunities.org/id/metropolitan-district-council/wolverhampton","AJ'S CARD STOP","3.25","Delivery & OCE Development","5947","Equipment - Purchase","31/10/2017"
"Wolverhampton City Council","http://opendatacommunities.org/id/metropolitan-district-council/wolverhampton","BLOXWICH  SST","7.00","Economic Development","4112","Public Transport","31/10/2017"
"Wolverhampton City Council","http://opendatacommunities.org/id/metropolitan-district-council/wolverhampton","WOLVERHAMPTON CC","4.58","IMPACT","7523","Car Allowances","31/10/2017"
"Wolverhampton City Council","http://opendatacommunities.org/id/metropolitan-district-council/wolverhampton","DEBENHAMS.COM","16.33","Mayoral Expenses","5311","Equipment - Purchase","31/10/2017"
"Wolverhampton City Council","http://opendatacommunities.org/id/metropolitan-district-council/wolverhampton","HORIZON PARKING LTD VT","34.58","Mayoral Expenses","7523","Parking Fees","31/10/2017"
"Wolverhampton City Council","http://opendatacommunities.org/id/metropolitan-district-council/wolverhampton","ARGOS WOLVERHAMPTO","19.57","LAC Transitions Team","5310","Client Allowances","31/10/2017"
"Wolverhampton City Council","http://opendatacommunities.org/id/metropolitan-district-council/wolverhampton","AMAZON SVCS EU-UK AMAZ","11.24","Upper Pendeford Farm Childrens Home","5942","Provisions (Not for resale)","31/10/2017"
"Wolverhampton City Council","http://opendatacommunities.org/id/metropolitan-district-council/wolverhampton","AMAZON SVCS EU-UK AMAZ","62.45","Upper Pendeford Farm Childrens Home","5942","Provisions (Resale)","31/10/2017"
"Wolverhampton City Council","http://opendatacommunities.org/id/metropolitan-district-council/wolverhampton","AMAZON SVCS EU-UK AMAZ","4.58","Upper Pendeford Farm Childrens Home","5942","Provisions (Not for resale)","31/10/2017"
"Wolverhampton City Council","http://opendatacommunities.org/id/metropolitan-district-council/wolverhampton","THE QUEEN VICTORIA HOT","132.00","Emergency Duty Team","7011","Services - Supplies & Services to users","31/10/2017"
"Wolverhampton City Council","http://opendatacommunities.org/id/metropolitan-district-council/wolverhampton","THE QUEEN VICTORIA HOT","66.00","MASH","7011","No Recourse to Public Funds","31/10/2017"
"Wolverhampton City Council","http://opendatacommunities.org/id/metropolitan-district-council/wolverhampton","WOLVERHAMPTON CC","2.50","Headstart Phase 3","7523","Parking Fees","31/10/2017"
"Wolverhampton City Council","http://opendatacommunities.org/id/metropolitan-district-council/wolverhampton","AMAZON SVCS EU-UK AMAZ","6.68","Archives","5942","Books","31/10/2017"
"Wolverhampton City Council","http://opendatacommunities.org/id/metropolitan-district-council/wolverhampton","SKR AbeBooks 45K9BH","2.99","Archives","5942","Books","31/10/2017"
"Wolverhampton City Council","http://opendatacommunities.org/id/metropolitan-district-council/wolverhampton","REDWINGS LODGE","49.95","Hostels / Outreach","7011","Services - Supplies & Services to users","31/10/2017"
"Wolverhampton City Council","http://opendatacommunities.org/id/metropolitan-district-council/wolverhampton","WEST MID TRAVEL","446.85","Community Enablement","4131","Public Transport","31/10/2017"
"Wolverhampton City Council","http://opendatacommunities.org/id/metropolitan-district-council/wolverhampton","LOYD WEDNESFIELD WOLVE","250.00","Duke Street Bungalows","6011","Financial Assistance In Exceptional Circ","31/10/2017"
"Wolverhampton City Council","http://opendatacommunities.org/id/metropolitan-district-council/wolverhampton","BACK IN ACTION","43.22","SEN Sensory Inclusion","5712","Equipment - Purchase","31/10/2017"
"Wolverhampton City Council","http://opendatacommunities.org/id/metropolitan-district-council/wolverhampton","Cross Country Trains","7.60","Head of Strategic Commissioning � People","4112","Public Transport","31/10/2017"
"Wolverhampton City Council","http://opendatacommunities.org/id/metropolitan-district-council/wolverhampton","Cross Country Trains","26.00","Head of Strategic Commissioning � People","4112","Public Transport","31/10/2017"
"Wolverhampton City Council","http://opendatacommunities.org/id/metropolitan-district-council/wolverhampton","AMAZON SVCS EU-UK AMAZ","43.52","Global Budgets","5942","Books","31/10/2017"
"Wolverhampton City Council","http://opendatacommunities.org/id/metropolitan-district-council/wolverhampton","PAYPAL  ANOVATECHNO","252.00","Education And Access","5732","Subscriptions","31/10/2017"
"Wolverhampton City Council","http://opendatacommunities.org/id/metropolitan-district-council/wolverhampton","ASDA HOME SHOPPING","78.60","Ernest Bold Court","5411","Provisions (Not for resale)","31/10/2017"
"Wolverhampton City Council","http://opendatacommunities.org/id/metropolitan-district-council/wolverhampton","BRITANNIA","182.50","CIN/CP Social Work Unit - Area 5","7011","Section 17","31/10/2017"
"Wolverhampton City Council","http://opendatacommunities.org/id/metropolitan-district-council/wolverhampton","GRAYSON DESIGN & PRINT","38.40","Global Budgets","5111","Stationery","31/10/2017"
"Wolverhampton City Council","http://opendatacommunities.org/id/metropolitan-district-council/wolverhampton","Cross Country Trains","74.05","Civic Centre","4112","Public Transport","31/10/2017"
"Wolverhampton City Council","http://opendatacommunities.org/id/metropolitan-district-council/wolverhampton","OFFICIALRECORDCOUK","15.98","CIN/CP Social Work Unit - Area 7","7392","Section 17","31/10/2017"
"Wolverhampton City Council","http://opendatacommunities.org/id/metropolitan-district-council/wolverhampton","WATERSTONES.COM","64.50","Workforce Development","5942","Training Expenses","31/10/2017"
"Wolverhampton City Council","http://opendatacommunities.org/id/metropolitan-district-council/wolverhampton","THE COAL AUTHORITY","91.50","Disposal Costs","9399","Services - Fees and Charges","31/10/2017"
"Wolverhampton City Council","http://opendatacommunities.org/id/metropolitan-district-council/wolverhampton","AMAZON SVCS EU-UK AMAZ","50.64","Children & Family Contact Services","5942","Equipment - Purchase","31/10/2017"
"Wolverhampton City Council","http://opendatacommunities.org/id/metropolitan-district-council/wolverhampton","E01350800000000","60.00","Ernest Bold Court","6011","Cleaning Supplies and Materials","31/10/2017"
"Wolverhampton City Council","http://opendatacommunities.org/id/metropolitan-district-council/wolverhampton","ASDA SUPERSTORE","10.72","CIN/CP Social Work Unit - Area 5","5411","No Recourse to Public Funds","31/10/2017"
"Wolverhampton City Council","http://opendatacommunities.org/id/metropolitan-district-council/wolverhampton","ASDA SUPERSTORE","18.48","CIN/CP Social Work Unit - Area 5","5411","No Recourse to Public Funds","31/10/2017"
"Wolverhampton City Council","http://opendatacommunities.org/id/metropolitan-district-council/wolverhampton","AMAZON EU AMAZON.CO.UK","8.99","Global Budgets","5999","Equipment - Purchase","31/10/2017"
"Wolverhampton City Council","http://opendatacommunities.org/id/metropolitan-district-council/wolverhampton","AMAZON EU AMAZON.CO.UK","8.99","Global Budgets","5999","Equipment - Purchase","31/10/2017"
"Wolverhampton City Council","http://opendatacommunities.org/id/metropolitan-district-council/wolverhampton","GRO HM PASSPORT OFFICE","7.71","LAC Transitions Team","9399","Client Allowances","31/10/2017"
"Wolverhampton City Council","http://opendatacommunities.org/id/metropolitan-district-council/wolverhampton","WWW.ICO.GOV.UK","35.00","Members Expenses","9399","Subscriptions","30/10/2017"
"Wolverhampton City Council","http://opendatacommunities.org/id/metropolitan-district-council/wolverhampton","WWW.ICO.GOV.UK","35.00","Members Expenses","9399","Subscriptions","30/10/2017"
"Wolverhampton City Council","http://opendatacommunities.org/id/metropolitan-district-council/wolverhampton","WWW.ICO.GOV.UK","35.00","Members Expenses","9399","Subscriptions","30/10/2017"
"Wolverhampton City Council","http://opendatacommunities.org/id/metropolitan-district-council/wolverhampton","WWW.ICO.GOV.UK","35.00","Members Expenses","9399","Subscriptions","30/10/2017"
"Wolverhampton City Council","http://opendatacommunities.org/id/metropolitan-district-council/wolverhampton","Virgin Trains","80.00","Members Expenses","4112","Public Transport","30/10/2017"
"Wolverhampton City Council","http://opendatacommunities.org/id/metropolitan-district-council/wolverhampton","AMAZON SVCS EU-UK AMAZ","24.15","Bradley Resource Centre","5942","Equipment - Purchase","30/10/2017"
"Wolverhampton City Council","http://opendatacommunities.org/id/metropolitan-district-council/wolverhampton","EE LIMITED R501","8.33","School Crossing Patrol","4812","Comms - Mobile Telephones","30/10/2017"
"Wolverhampton City Council","http://opendatacommunities.org/id/metropolitan-district-council/wolverhampton","ZEPHYR RACING PENNANTS","138.00","Mayoral Expenses","5399","Stationery","30/10/2017"
"Wolverhampton City Council","http://opendatacommunities.org/id/metropolitan-district-council/wolverhampton","AMAZON SVCS EU-UK AMAZ","2.48","Children & Family Contact Services","5942","Equipment - Purchase","30/10/2017"
"Wolverhampton City Council","http://opendatacommunities.org/id/metropolitan-district-council/wolverhampton","AMAZON SVCS EU-UK AMAZ","4.49","Children & Family Contact Services","5942","Books","30/10/2017"
"Wolverhampton City Council","http://opendatacommunities.org/id/metropolitan-district-council/wolverhampton","THE NEW BRIDGE GUEST H","70.00","Emergency Duty Team","7011","Services - Supplies & Services to users","30/10/2017"
"Wolverhampton City Council","http://opendatacommunities.org/id/metropolitan-district-council/wolverhampton","ITUNES.COM/BILL","2.99","Headstart - Learning Technologies Team","5735","Computing - Purchase of Software","30/10/2017"
"Wolverhampton City Council","http://opendatacommunities.org/id/metropolitan-district-council/wolverhampton","AMAZON SVCS EU-UK AMAZ","33.28","Upper Pendeford Farm Childrens Home","5942","Books","30/10/2017"
"Wolverhampton City Council","http://opendatacommunities.org/id/metropolitan-district-council/wolverhampton","AMAZON SVCS EU-UK AMAZ","8.71","Upper Pendeford Farm Childrens Home","5942","Provisions (Not for resale)","30/10/2017"
"Wolverhampton City Council","http://opendatacommunities.org/id/metropolitan-district-council/wolverhampton","AMAZON SVCS EU-UK AMAZ","12.25","Upper Pendeford Farm Childrens Home","5942","Provisions (Not for resale)","30/10/2017"
"Wolverhampton City Council","http://opendatacommunities.org/id/metropolitan-district-council/wolverhampton","AMAZON SVCS EU-UK AMAZ","35.35","Upper Pendeford Farm Childrens Home","5942","Provisions (Not for resale)","30/10/2017"
"Wolverhampton City Council","http://opendatacommunities.org/id/metropolitan-district-council/wolverhampton","AMAZON SVCS EU-UK AMAZ","15.02","Expenditure","5942","Books","30/10/2017"
"Wolverhampton City Council","http://opendatacommunities.org/id/metropolitan-district-council/wolverhampton","AMAZON SVCS EU-UK AMAZ","19.74","Service Wide","5942","Books","30/10/2017"
"Wolverhampton City Council","http://opendatacommunities.org/id/metropolitan-district-council/wolverhampton","HUGHES","333.33","LAC Transitions Team","5732","Independant Living Allowance","30/10/2017"
"Wolverhampton City Council","http://opendatacommunities.org/id/metropolitan-district-council/wolverhampton","WM MORRISONS","9.17","Headstart Phase 3","5411","Provisions (Not for resale)","30/10/2017"
"Wolverhampton City Council","http://opendatacommunities.org/id/metropolitan-district-council/wolverhampton","AMZ EESMUSIC AMAZON.CO","-256.67","Headstart Phase 3","5942","Equipment - Purchase","30/10/2017"
"Wolverhampton City Council","http://opendatacommunities.org/id/metropolitan-district-council/wolverhampton","WWW.COFFEESUPPLIESDIRE","31.87","Archives","5331","Materials for resale","30/10/2017"
"Wolverhampton City Council","http://opendatacommunities.org/id/metropolitan-district-council/wolverhampton","PREMIER INN","211.00","Hostels / Outreach","3811","Services - Supplies & Services to users","30/10/2017"
"Wolverhampton City Council","http://opendatacommunities.org/id/metropolitan-district-council/wolverhampton","TESCO STORES 5397","2.20","EIP Locality 1","5411","Provisions (Not for resale)","30/10/2017"
"Wolverhampton City Council","http://opendatacommunities.org/id/metropolitan-district-council/wolverhampton","WIX.COM","46.57","Technical Support","5968","Subscriptions","30/10/2017"
"Wolverhampton City Council","http://opendatacommunities.org/id/metropolitan-district-council/wolverhampton","SQUARESPACE INC.","151.20","Technical Support","7372","Computing - Purchase of Software","30/10/2017"
"Wolverhampton City Council","http://opendatacommunities.org/id/metropolitan-district-council/wolverhampton","AMAZON SVCS EU-UK AMAZ","42.90","Technical Support","5942","Books","30/10/2017"
"Wolverhampton City Council","http://opendatacommunities.org/id/metropolitan-district-council/wolverhampton","SAINSBURYS","100.00","EIP Locality 3","6011","Grant Payments","30/10/2017"
"Wolverhampton City Council","http://opendatacommunities.org/id/metropolitan-district-council/wolverhampton","E01577600000000","100.00","EIP Locality 3","6011","Grant Payments","30/10/2017"
"Wolverhampton City Council","http://opendatacommunities.org/id/metropolitan-district-council/wolverhampton","WEST MIDLAND SAFARI PA","65.95","LAC Team","7922","Financial Assistance In Exceptional Circ","30/10/2017"
"Wolverhampton City Council","http://opendatacommunities.org/id/metropolitan-district-council/wolverhampton","ASDA HOME SHOPPING","89.60","Ernest Bold Court","5411","Provisions (Not for resale)","30/10/2017"
"Wolverhampton City Council","http://opendatacommunities.org/id/metropolitan-district-council/wolverhampton","Trainline","393.21","Economic Development","4112","Public Transport","30/10/2017"
"Wolverhampton City Council","http://opendatacommunities.org/id/metropolitan-district-council/wolverhampton","BRITANNIA","205.00","CIN/CP Social Work Unit - Area 5","7011","Section 17","30/10/2017"
"Wolverhampton City Council","http://opendatacommunities.org/id/metropolitan-district-council/wolverhampton","TRAINLINE","-163.00","Safeguarding Admin Resource","4112","Public Transport","30/10/2017"
"Wolverhampton City Council","http://opendatacommunities.org/id/metropolitan-district-council/wolverhampton","WEST MIDLANDS EMPLOYER","60.00","Central Training","7392","Training Expenses","30/10/2017"
"Wolverhampton City Council","http://opendatacommunities.org/id/metropolitan-district-council/wolverhampton","AMAZON SVCS EU-UK AMAZ","9.95","Children & Family Contact Services","5942","Equipment - Purchase","30/10/2017"
"Wolverhampton City Council","http://opendatacommunities.org/id/metropolitan-district-council/wolverhampton","AMAZON SVCS EU-UK AMAZ","30.59","Children & Family Contact Services","5942","Equipment - Purchase","30/10/2017"
"Wolverhampton City Council","http://opendatacommunities.org/id/metropolitan-district-council/wolverhampton","AMAZON SVCS EU-UK AMAZ","4.49","Children & Family Contact Services","5942","Books","30/10/2017"
"Wolverhampton City Council","http://opendatacommunities.org/id/metropolitan-district-council/wolverhampton","AMAZON SVCS EU-UK AMAZ","19.96","Children & Family Contact Services","5942","Equipment - Purchase","30/10/2017"
"Wolverhampton City Council","http://opendatacommunities.org/id/metropolitan-district-council/wolverhampton","AMAZON SVCS EU-UK AMAZ","9.80","Children & Family Contact Services","5942","Books","30/10/2017"
"Wolverhampton City Council","http://opendatacommunities.org/id/metropolitan-district-council/wolverhampton","AMAZON SVCS EU-UK AMAZ","8.67","Children & Family Contact Services","5942","Equipment - Purchase","30/10/2017"
"Wolverhampton City Council","http://opendatacommunities.org/id/metropolitan-district-council/wolverhampton","Trainline","124.54","CIN/CP Social Work Unit - Area 4","4112","Section 17","30/10/2017"
"Wolverhampton City Council","http://opendatacommunities.org/id/metropolitan-district-council/wolverhampton","CROWN PROPERTY SERVICE","280.00","CIN/CP Social Work Unit - Area 3","7011","Accommodation Costs","30/10/2017"
"Wolverhampton City Council","http://opendatacommunities.org/id/metropolitan-district-council/wolverhampton","AMAZON SVCS EU-UK AMAZ","19.30","Education And Access","5942","Materials","30/10/2017"
"Wolverhampton City Council","http://opendatacommunities.org/id/metropolitan-district-council/wolverhampton","AMAZON SVCS EU-UK AMAZ","74.61","Education And Access","5942","Materials","30/10/2017"
"Wolverhampton City Council","http://opendatacommunities.org/id/metropolitan-district-council/wolverhampton","AMAZON SVCS EU-UK AMAZ","99.37","Bonfire","5942","Equipment - Purchase","30/10/2017"
"Wolverhampton City Council","http://opendatacommunities.org/id/metropolitan-district-council/wolverhampton","AMAZON SVCS EU-UK AMAZ","35.94","Education And Access","5942","Materials","30/10/2017"
"Wolverhampton City Council","http://opendatacommunities.org/id/metropolitan-district-council/wolverhampton","HMCOURTS-SERVICE.G","200.00","LAC Transitions Team","9222","Client Allowances","30/10/2017"
"Wolverhampton City Council","http://opendatacommunities.org/id/metropolitan-district-council/wolverhampton","WILKO.COM","16.00","Youth Offending Team","5722","Equipment - Purchase","30/10/2017"
"Wolverhampton City Council","http://opendatacommunities.org/id/metropolitan-district-council/wolverhampton","CARVER/WOLVERHAMPTON/L","29.34","Cemeteries","5211","Materials","30/10/2017"
"Wolverhampton City Council","http://opendatacommunities.org/id/metropolitan-district-council/wolverhampton","POST OFFICE COUNTER","7.25","Adoption and Residence Team & Allowances","9402","Comms - Postage","30/10/2017"
"Wolverhampton City Council","http://opendatacommunities.org/id/metropolitan-district-council/wolverhampton","ITUNES.COM/BILL","0.79","Strategic ICTS (ICT Serv Budget)","5735","Computing - Purchase of Software","30/10/2017"
"Wolverhampton City Council","http://opendatacommunities.org/id/metropolitan-district-council/wolverhampton","CURRYS S/S","20.83","Strategic ICTS (ICT Serv Budget)","5732","Equipment - Purchase","30/10/2017"
"Wolverhampton City Council","http://opendatacommunities.org/id/metropolitan-district-council/wolverhampton","AMICI","58.05","Managing Director","5812","Subsistence","30/10/2017"
"Wolverhampton City Council","http://opendatacommunities.org/id/metropolitan-district-council/wolverhampton","AMAZON SVCS EU-UK AMAZ","27.90","Upper Pendeford Farm Childrens Home","5942","Provisions (Not for resale)","30/10/2017"
"Wolverhampton City Council","http://opendatacommunities.org/id/metropolitan-district-council/wolverhampton","AMAZON SVCS EU-UK AMAZ","21.82","Upper Pendeford Farm Childrens Home","5942","Provisions (Not for resale)","30/10/2017"
"Wolverhampton City Council","http://opendatacommunities.org/id/metropolitan-district-council/wolverhampton","AMAZON SVCS EU-UK AMAZ","8.49","Upper Pendeford Farm Childrens Home","5942","Provisions (Not for resale)","30/10/2017"
"Wolverhampton City Council","http://opendatacommunities.org/id/metropolitan-district-council/wolverhampton","GO CARZ","168.05","Adoption and Residence Team & Allowances","4121","Client Transport","27/10/2017"
"Wolverhampton City Council","http://opendatacommunities.org/id/metropolitan-district-council/wolverhampton","ROYAL HOTEL HULL","47.00","Adoption and Residence Team & Allowances","7011","Services - Supplies & Services to users","27/10/2017"
"Wolverhampton City Council","http://opendatacommunities.org/id/metropolitan-district-council/wolverhampton","Virgin Trains","82.10","Adoption and Residence Team & Allowances","4112","Public Transport","27/10/2017"
"Wolverhampton City Council","http://opendatacommunities.org/id/metropolitan-district-council/wolverhampton","Virgin Trains","223.00","Adoption and Residence Team & Allowances","4112","Public Transport","27/10/2017"
"Wolverhampton City Council","http://opendatacommunities.org/id/metropolitan-district-council/wolverhampton","Virgin Trains","218.40","Adoption and Residence Team & Allowances","4112","Public Transport","27/10/2017"
"Wolverhampton City Council","http://opendatacommunities.org/id/metropolitan-district-council/wolverhampton","WILKO RETAIL LIMIT","10.00","Strategic Director Place","5722","Stationery","27/10/2017"
"Wolverhampton City Council","http://opendatacommunities.org/id/metropolitan-district-council/wolverhampton","AMZ Astounded Entertai","-199.17","Headstart Phase 3","5999","Equipment - Purchase","27/10/2017"
"Wolverhampton City Council","http://opendatacommunities.org/id/metropolitan-district-council/wolverhampton","IKEA LIMITED","40.33","Headstart Phase 3","5712","Equipment - Purchase","27/10/2017"
"Wolverhampton City Council","http://opendatacommunities.org/id/metropolitan-district-council/wolverhampton","SAINSBURYS 0775","51.83","Headstart Phase 3","5411","Provisions (Not for resale)","27/10/2017"
"Wolverhampton City Council","http://opendatacommunities.org/id/metropolitan-district-council/wolverhampton","MAPLE TOOL HIRE","39.44","Connexions Contract","5251","Equipment - Purchase","27/10/2017"
"Wolverhampton City Council","http://opendatacommunities.org/id/metropolitan-district-council/wolverhampton","TESCO STORES 5397","4.19","EIP Locality 1","5411","Provisions (Not for resale)","27/10/2017"
"Wolverhampton City Council","http://opendatacommunities.org/id/metropolitan-district-council/wolverhampton","XL DISPLAYS LTD","81.00","Technical Support","5099","Equipment - Purchase","27/10/2017"
"Wolverhampton City Council","http://opendatacommunities.org/id/metropolitan-district-council/wolverhampton","AMAZON SVCS EU-UK AMAZ","6.03","Technical Support","5942","Books","27/10/2017"
"Wolverhampton City Council","http://opendatacommunities.org/id/metropolitan-district-council/wolverhampton","WWW.HOTLINE.CO.UK","533.00","Technical Support","5943","Stationery","27/10/2017"
"Wolverhampton City Council","http://opendatacommunities.org/id/metropolitan-district-council/wolverhampton","THINKBIGPRINTBIG.C","202.50","Technical Support","5712","Equipment - Purchase","27/10/2017"
"Wolverhampton City Council","http://opendatacommunities.org/id/metropolitan-district-council/wolverhampton","WWW.ASDA-PHOTO.CO.UK","13.50","Technical Support","2741","Publications","27/10/2017"
"Wolverhampton City Council","http://opendatacommunities.org/id/metropolitan-district-council/wolverhampton","Amazon UK Marketplace","72.99","Technical Support","5942","Books","27/10/2017"
"Wolverhampton City Council","http://opendatacommunities.org/id/metropolitan-district-council/wolverhampton","WWW.HFE-SIGNS.CO.UK","238.33","Technical Support","2741","Publications","27/10/2017"
"Wolverhampton City Council","http://opendatacommunities.org/id/metropolitan-district-council/wolverhampton","AMAZON EU AMAZON.CO.UK","11.98","Global Budgets","5999","Books","27/10/2017"
"Wolverhampton City Council","http://opendatacommunities.org/id/metropolitan-district-council/wolverhampton","W M MORRISON PLC","9.26","Ernest Bold Court","5411","Provisions (Not for resale)","27/10/2017"
"Wolverhampton City Council","http://opendatacommunities.org/id/metropolitan-district-council/wolverhampton","HOME & MOTORSAVE LIMIT","9.16","Head of Service - CINCP","5039","Computing - Consumables","27/10/2017"
"Wolverhampton City Council","http://opendatacommunities.org/id/metropolitan-district-council/wolverhampton","AMAZON SVCS EU-UK AMAZ","13.17","Children & Family Contact Services","5942","Books","27/10/2017"
"Wolverhampton City Council","http://opendatacommunities.org/id/metropolitan-district-council/wolverhampton","POUNDWORLD RETAIL","20.00","Children & Family Contact Services","5310","Cleaning Supplies and Materials","27/10/2017"
"Wolverhampton City Council","http://opendatacommunities.org/id/metropolitan-district-council/wolverhampton","ALDI 94 772        S","12.54","Children & Family Contact Services","5411","Cleaning Supplies and Materials","27/10/2017"
"Wolverhampton City Council","http://opendatacommunities.org/id/metropolitan-district-council/wolverhampton","Trainline","11.17","Adult Services - West","4112","Public Transport","27/10/2017"
"Wolverhampton City Council","http://opendatacommunities.org/id/metropolitan-district-council/wolverhampton","AMAZON EU AMAZON.CO.UK","26.97","Global Budgets","5999","Equipment - Purchase","27/10/2017"
"Wolverhampton City Council","http://opendatacommunities.org/id/metropolitan-district-council/wolverhampton","POLYBAGS LTD","28.03","Catering Overhead Account","5099","Equipment - Purchase","27/10/2017"
"Wolverhampton City Council","http://opendatacommunities.org/id/metropolitan-district-council/wolverhampton","POST OFFICE COUNTER","7.25","Adoption and Residence Team & Allowances","9402","Comms - Postage","27/10/2017"
"Wolverhampton City Council","http://opendatacommunities.org/id/metropolitan-district-council/wolverhampton","TESCO STORES 5194","-0.92","Towers Outdoor Education Centre","5411","Provisions (Not for resale)","27/10/2017"
"Wolverhampton City Council","http://opendatacommunities.org/id/metropolitan-district-council/wolverhampton","NOVOTEL HOTELS","250.83","Michael Lyons","3642","Conference Expenses","27/10/2017"
"Wolverhampton City Council","http://opendatacommunities.org/id/metropolitan-district-council/wolverhampton","PAYPAL  NIKONUKLTD","326.43","Communications & Marketing - General","5946","Equipment - Purchase","27/10/2017"
"Wolverhampton City Council","http://opendatacommunities.org/id/metropolitan-district-council/wolverhampton","WWW.TONERGIANT.CO.UK","74.58","Headstart Phase 3","5943","Stationery","27/10/2017"
"Wolverhampton City Council","http://opendatacommunities.org/id/metropolitan-district-council/wolverhampton","SAFE SERVICE LOCKER SE","177.72","Bert Williams Leisure Centre","5999","Equipment - Purchase","27/10/2017"
"Wolverhampton City Council","http://opendatacommunities.org/id/metropolitan-district-council/wolverhampton","123-REG.CO.UK","-9.99","City Direct","4816","Computing - Purchase of Software","27/10/2017"
"Wolverhampton City Council","http://opendatacommunities.org/id/metropolitan-district-council/wolverhampton","POST OFFICE COUNTER","130.00","Vulnerable Young Persons Team","9402","Comms - Postage","26/10/2017"
"Wolverhampton City Council","http://opendatacommunities.org/id/metropolitan-district-council/wolverhampton","123-REG.CO.UK","19.98","Technical Support","4816","Computing - Purchase of Software","26/10/2017"
"Wolverhampton City Council","http://opendatacommunities.org/id/metropolitan-district-council/wolverhampton","AMAZON SVCS EU-UK AMAZ","20.94","Global Budgets","5942","Books","26/10/2017"
"Wolverhampton City Council","http://opendatacommunities.org/id/metropolitan-district-council/wolverhampton","Amazon UK Marketplace","19.97","Global Budgets","5942","Computing - Consumables","26/10/2017"
"Wolverhampton City Council","http://opendatacommunities.org/id/metropolitan-district-council/wolverhampton","Amazon UK Marketplace","13.75","Global Budgets","5942","Stationery","26/10/2017"
"Wolverhampton City Council","http://opendatacommunities.org/id/metropolitan-district-council/wolverhampton","REDWINGS LODGE","116.58","CIN/CP Social Work Unit - Area 5","7011","Section 17","26/10/2017"
"Wolverhampton City Council","http://opendatacommunities.org/id/metropolitan-district-council/wolverhampton","GOWRINGS MOBILITY","403.33","Fleet Management","5511","Equipment - Purchase","26/10/2017"
"Wolverhampton City Council","http://opendatacommunities.org/id/metropolitan-district-council/wolverhampton","COLLEGE OF OCCUP T","1618.92","Inclusion Support","5964","Staff Advertising Costs","26/10/2017"
"Wolverhampton City Council","http://opendatacommunities.org/id/metropolitan-district-council/wolverhampton","Trainline","19.94","Head of Service - CINCP","4112","Public Transport","26/10/2017"
"Wolverhampton City Council","http://opendatacommunities.org/id/metropolitan-district-council/wolverhampton","DEBENHAMS","121.67","Mayoral Expenses","5311","Clothing / Uniforms","26/10/2017"
"Wolverhampton City Council","http://opendatacommunities.org/id/metropolitan-district-council/wolverhampton","AMAZON SVCS EU-UK AMAZ","27.11","Headstart - Young People Engagement","5942","Materials","26/10/2017"
"Wolverhampton City Council","http://opendatacommunities.org/id/metropolitan-district-council/wolverhampton","WCC - CIVIC CENTRE CAT","7.79","Headstart - Young People Engagement","9399","Subsistence","26/10/2017"
"Wolverhampton City Council","http://opendatacommunities.org/id/metropolitan-district-council/wolverhampton","WOLVERHAMPTON CC","3.33","Headstart - Young People Engagement","7523","Parking Fees","26/10/2017"
"Wolverhampton City Council","http://opendatacommunities.org/id/metropolitan-district-council/wolverhampton","THE WORKS","2.50","IMPACT","5310","Equipment - Purchase","26/10/2017"
"Wolverhampton City Council","http://opendatacommunities.org/id/metropolitan-district-council/wolverhampton","CUMMINGS BROTHERS LOCK","17.00","IMPACT","7399","Equipment - Purchase","26/10/2017"
"Wolverhampton City Council","http://opendatacommunities.org/id/metropolitan-district-council/wolverhampton","CITB","30.00","IMPACT","8220","Training Expenses","26/10/2017"
"Wolverhampton City Council","http://opendatacommunities.org/id/metropolitan-district-council/wolverhampton","SPECSAVERSEVOUGB-","141.62","HR Advice","8043","Services - Professional Fees","26/10/2017"
"Wolverhampton City Council","http://opendatacommunities.org/id/metropolitan-district-council/wolverhampton","SPECSAVERSEVOUGB-","850.00","Eye Test Vouchers (HR)","8043","Services - Professional Fees","26/10/2017"
"Wolverhampton City Council","http://opendatacommunities.org/id/metropolitan-district-council/wolverhampton","E01350800000000","50.00","Ernest Bold Court","6011","Cleaning Supplies and Materials","26/10/2017"
"Wolverhampton City Council","http://opendatacommunities.org/id/metropolitan-district-council/wolverhampton","WWW.CARESHOP.CO.UK","92.11","Ernest Bold Court","5999","Cleaning Supplies and Materials","26/10/2017"
"Wolverhampton City Council","http://opendatacommunities.org/id/metropolitan-district-council/wolverhampton","CRS","330.00","LAC Transitions Team","5713","Client Allowances","26/10/2017"
"Wolverhampton City Council","http://opendatacommunities.org/id/metropolitan-district-council/wolverhampton","HOLIDAY INN EXPRES","96.00","Adoption and Residence Team & Allowances","7011","Services - Supplies & Services to users","26/10/2017"
"Wolverhampton City Council","http://opendatacommunities.org/id/metropolitan-district-council/wolverhampton","Amazon UK Marketplace","26.99","Strategic ICTS (ICT Serv Budget)","5942","Books","26/10/2017"
"Wolverhampton City Council","http://opendatacommunities.org/id/metropolitan-district-council/wolverhampton","AMAZON SVCS EU-UK AMAZ","35.55","Central Baths","5942","Cleaning Supplies and Materials","26/10/2017"
"Wolverhampton City Council","http://opendatacommunities.org/id/metropolitan-district-council/wolverhampton","ASDA SUPERSTORE","44.00","Intensive Family Support Team","5411","Provisions (Not for resale)","26/10/2017"
"Wolverhampton City Council","http://opendatacommunities.org/id/metropolitan-district-council/wolverhampton","ASDA HOME SHOPPING","2.50","Upper Pendeford Farm Childrens Home","5411","Provisions (Not for resale)","26/10/2017"
"Wolverhampton City Council","http://opendatacommunities.org/id/metropolitan-district-council/wolverhampton","AMAZON SVCS EU-UK AMAZ","19.96","Emergency Duty Team","5942","Books","26/10/2017"
"Wolverhampton City Council","http://opendatacommunities.org/id/metropolitan-district-council/wolverhampton","E01510300000000","25.00","Emergency Duty Team","6011","Financial Assistance In Exceptional Circ","26/10/2017"
"Wolverhampton City Council","http://opendatacommunities.org/id/metropolitan-district-council/wolverhampton","ASDA HOME SHOPPING","-1.00","Upper Pendeford Farm Childrens Home","5411","Provisions (Not for resale)","26/10/2017"
"Wolverhampton City Council","http://opendatacommunities.org/id/metropolitan-district-council/wolverhampton","ASDA HOME SHOPPING","236.50","Upper Pendeford Farm Childrens Home","5411","Provisions (Not for resale)","26/10/2017"
"Wolverhampton City Council","http://opendatacommunities.org/id/metropolitan-district-council/wolverhampton","AMAZON SVCS EU-UK AMAZ","29.95","Learning Services","5942","Equipment - Purchase","26/10/2017"
"Wolverhampton City Council","http://opendatacommunities.org/id/metropolitan-district-council/wolverhampton","CT WOLVERHAMPTON","45.00","CIN/CP Social Work Unit - Area 5","8398","No Recourse to Public Funds","26/10/2017"
"Wolverhampton City Council","http://opendatacommunities.org/id/metropolitan-district-council/wolverhampton","REDWINGS LODGE","35.94","CIN/CP Social Work Unit - Area 5","7011","Section 17","26/10/2017"
"Wolverhampton City Council","http://opendatacommunities.org/id/metropolitan-district-council/wolverhampton","WOLVERHAMPTON TROPHY C","33.33","Global Budgets","5999","Equipment - Purchase","26/10/2017"
"Wolverhampton City Council","http://opendatacommunities.org/id/metropolitan-district-council/wolverhampton","BROWNE JACOBSON LLP","398.00","Central Training","8111","Training Expenses","26/10/2017"
"Wolverhampton City Council","http://opendatacommunities.org/id/metropolitan-district-council/wolverhampton","Trainline","20.91","Legal Services","4112","Public Transport","26/10/2017"
"Wolverhampton City Council","http://opendatacommunities.org/id/metropolitan-district-council/wolverhampton","GOWRINGS MOBILITY","416.67","Fleet Management","5511","Equipment - Purchase","26/10/2017"
"Wolverhampton City Council","http://opendatacommunities.org/id/metropolitan-district-council/wolverhampton","POUNDWORLD RETAIL","7.50","Parks - Ranger Service","5310","Equipment - Purchase","26/10/2017"
"Wolverhampton City Council","http://opendatacommunities.org/id/metropolitan-district-council/wolverhampton","POUNDLAND LTD 1463","13.83","Parks - Ranger Service","5310","Equipment - Purchase","26/10/2017"
"Wolverhampton City Council","http://opendatacommunities.org/id/metropolitan-district-council/wolverhampton","AMAZON EU AMAZON.CO.UK","19.99","Planning","5999","Equipment - Purchase","26/10/2017"
"Wolverhampton City Council","http://opendatacommunities.org/id/metropolitan-district-council/wolverhampton","AMAZON SVCS EU-UK AMAZ","2.80","EIP Locality 8","5942","Stationery","26/10/2017"
"Wolverhampton City Council","http://opendatacommunities.org/id/metropolitan-district-council/wolverhampton","WEST COAST TRAINS","25.50","City Direct","4112","Public Transport","26/10/2017"
"Wolverhampton City Council","http://opendatacommunities.org/id/metropolitan-district-council/wolverhampton","W M MORRISON PLC","11.41","LAC Transitions Team","5411","Client Allowances","26/10/2017"
"Wolverhampton City Council","http://opendatacommunities.org/id/metropolitan-district-council/wolverhampton","Trainline","91.90","Michael Lyons","4112","Public Transport","26/10/2017"
"Wolverhampton City Council","http://opendatacommunities.org/id/metropolitan-district-council/wolverhampton","Trainline","109.75","Jane & Louise Wilson","4112","Public Transport","26/10/2017"
"Wolverhampton City Council","http://opendatacommunities.org/id/metropolitan-district-council/wolverhampton","Trainline","35.65","Michael Lyons","4112","Public Transport","26/10/2017"
"Wolverhampton City Council","http://opendatacommunities.org/id/metropolitan-district-council/wolverhampton","WWW.ARGOS.CO.UK","89.95","Headstart Phase 3","5310","Equipment - Purchase","26/10/2017"
"Wolverhampton City Council","http://opendatacommunities.org/id/metropolitan-district-council/wolverhampton","LINENRENTALCOUK","43.56","Civic Hall Out-house Promotions","8999","Equipment - Hire","26/10/2017"
"Wolverhampton City Council","http://opendatacommunities.org/id/metropolitan-district-council/wolverhampton","LINENRENTALCOUK","969.18","Civic Hall Out-house Promotions","8999","Equipment - Hire","26/10/2017"
"Wolverhampton City Council","http://opendatacommunities.org/id/metropolitan-district-council/wolverhampton","WWW.THELAPTOPPOWERSUPP","24.99","Civic Halls Non Direct Management A/C","5045","Computing - Purchase of Hardware","26/10/2017"
"Wolverhampton City Council","http://opendatacommunities.org/id/metropolitan-district-council/wolverhampton","Virgin Trains","185.00","Adoption and Residence Team & Allowances","4112","Public Transport","26/10/2017"
"Wolverhampton City Council","http://opendatacommunities.org/id/metropolitan-district-council/wolverhampton","TESCO STORES 5194","188.91","Towers Outdoor Education Centre","5411","Provisions (Not for resale)","26/10/2017"
"Wolverhampton City Council","http://opendatacommunities.org/id/metropolitan-district-council/wolverhampton","AMAZON SVCS EU-UK AMAZ","64.29","EIP Locality 5","5942","Books","25/10/2017"
"Wolverhampton City Council","http://opendatacommunities.org/id/metropolitan-district-council/wolverhampton","AMAZON SVCS EU-UK AMAZ","2.58","EIP Locality 5","5942","Equipment - Purchase","25/10/2017"
"Wolverhampton City Council","http://opendatacommunities.org/id/metropolitan-district-council/wolverhampton","EE BILSTON","108.32","LAC Transitions Team","4812","Client Allowances","25/10/2017"
"Wolverhampton City Council","http://opendatacommunities.org/id/metropolitan-district-council/wolverhampton","WWW.ARGOS.CO.UK","-11.66","CIN/CP Social Work Unit - Area 4","5310","No Recourse to Public Funds","25/10/2017"
"Wolverhampton City Council","http://opendatacommunities.org/id/metropolitan-district-council/wolverhampton","WWW.ARGOS.CO.UK","12.45","CIN/CP Social Work Unit - Area 4","5310","Section 17","25/10/2017"
"Wolverhampton City Council","http://opendatacommunities.org/id/metropolitan-district-council/wolverhampton","WWW.ARGOS.CO.UK","59.81","CIN/CP Social Work Unit - Area 4","5310","Section 17","25/10/2017"
"Wolverhampton City Council","http://opendatacommunities.org/id/metropolitan-district-council/wolverhampton","DUNELM (SOFT FURNISHIN","19.00","Civic Centre Catering","5714","Equipment - Purchase","25/10/2017"
"Wolverhampton City Council","http://opendatacommunities.org/id/metropolitan-district-council/wolverhampton","WWW.YMCAFIT.ORG.UK","149.00","Central Training","8398","Training Expenses","25/10/2017"
"Wolverhampton City Council","http://opendatacommunities.org/id/metropolitan-district-council/wolverhampton","WWW.YMCAFIT.ORG.UK","149.00","Central Training","8398","Training Expenses","25/10/2017"
"Wolverhampton City Council","http://opendatacommunities.org/id/metropolitan-district-council/wolverhampton","WWW.THELAWSOCIETY.ORG","318.00","Legal Services","8699","Subscriptions","25/10/2017"
"Wolverhampton City Council","http://opendatacommunities.org/id/metropolitan-district-council/wolverhampton","AMAZON SVCS EU-UK AMAZ","74.98","Revenues","5942","Books","25/10/2017"
"Wolverhampton City Council","http://opendatacommunities.org/id/metropolitan-district-council/wolverhampton","TFM FARM & COUNTRY SUP","148.93","Northicote Farm","5399","Equipment - Purchase","25/10/2017"
"Wolverhampton City Council","http://opendatacommunities.org/id/metropolitan-district-council/wolverhampton","PREMIER INN","218.33","Adoption and Residence Team & Allowances","3811","Accommodation Costs","25/10/2017"
"Wolverhampton City Council","http://opendatacommunities.org/id/metropolitan-district-council/wolverhampton","Trainline","38.81","Adoption and Residence Team & Allowances","4112","Public Transport","25/10/2017"
"Wolverhampton City Council","http://opendatacommunities.org/id/metropolitan-district-council/wolverhampton","CHEMSOL CYMRU LTD","104.15","Towers Outdoor Education Centre","5199","Fixtures and Fittings - Purchases","25/10/2017"
"Wolverhampton City Council","http://opendatacommunities.org/id/metropolitan-district-council/wolverhampton","REDWINGS LODGE","49.96","Emergency Duty Team","7011","Services - Supplies & Services to users","25/10/2017"
"Wolverhampton City Council","http://opendatacommunities.org/id/metropolitan-district-council/wolverhampton","AMAZON SVCS EU-UK AMAZ","11.62","Delivery & OCE Development","5942","Books","25/10/2017"
"Wolverhampton City Council","http://opendatacommunities.org/id/metropolitan-district-council/wolverhampton","Amazon UK Marketplace","24.73","Communications & Marketing - General","5942","Books","25/10/2017"
"Wolverhampton City Council","http://opendatacommunities.org/id/metropolitan-district-council/wolverhampton","AMAZON SVCS EU-UK AMAZ","18.05","Parent / Partnership Service","5942","Stationery","25/10/2017"
"Wolverhampton City Council","http://opendatacommunities.org/id/metropolitan-district-council/wolverhampton","AMAZON SVCS EU-UK AMAZ","45.54","Parent / Partnership Service","5942","Stationery","25/10/2017"
"Wolverhampton City Council","http://opendatacommunities.org/id/metropolitan-district-council/wolverhampton","WCC - CIVIC CENTRE CAT","2.00","IMPACT","9399","Services - Fees and Charges","25/10/2017"
"Wolverhampton City Council","http://opendatacommunities.org/id/metropolitan-district-council/wolverhampton","ASDA SUPERSTORE","11.06","Mayoral Expenses","5411","Provisions (Not for resale)","25/10/2017"
"Wolverhampton City Council","http://opendatacommunities.org/id/metropolitan-district-council/wolverhampton","AMAZON SVCS EU-UK AMAZ","1.99","EIP Locality 8","5942","Stationery","25/10/2017"
"Wolverhampton City Council","http://opendatacommunities.org/id/metropolitan-district-council/wolverhampton","ARGOS LTD","5.82","LAC Transitions Team","5310","Client Allowances","25/10/2017"
"Wolverhampton City Council","http://opendatacommunities.org/id/metropolitan-district-council/wolverhampton","Virgin Trains","7.60","Children & Young People Support Costs","4112","Public Transport","25/10/2017"
"Wolverhampton City Council","http://opendatacommunities.org/id/metropolitan-district-council/wolverhampton","THE WORKS","4.00","Culwell Street Depot","5310","Stationery","25/10/2017"
"Wolverhampton City Council","http://opendatacommunities.org/id/metropolitan-district-council/wolverhampton","FLOORCARESUPPLIES","205.89","Civic Halls Non Direct Management A/C","7349","Contract Cleaning","25/10/2017"
"Wolverhampton City Council","http://opendatacommunities.org/id/metropolitan-district-council/wolverhampton","ARGOS RETAIL GROUP","16.66","Civic Halls Non Direct Management A/C","5310","Equipment - Purchase","25/10/2017"
"Wolverhampton City Council","http://opendatacommunities.org/id/metropolitan-district-council/wolverhampton","ESENDEX LIMITED","162.50","Civic Halls Non Direct Management A/C","4814","Comms - Telephone Call charges","25/10/2017"
"Wolverhampton City Council","http://opendatacommunities.org/id/metropolitan-district-council/wolverhampton","FUEL CARD SERVICES LTD","179.56","Towers Outdoor Education Centre","7399","Petrol","25/10/2017"
"Wolverhampton City Council","http://opendatacommunities.org/id/metropolitan-district-council/wolverhampton","E00783400000000","20.00","EIP Locality 1","6011","Grant Payments","24/10/2017"
"Wolverhampton City Council","http://opendatacommunities.org/id/metropolitan-district-council/wolverhampton","ASDA HOME SHOPPING","-0.61","Ernest Bold Court","5411","Provisions (Not for resale)","24/10/2017"
"Wolverhampton City Council","http://opendatacommunities.org/id/metropolitan-district-council/wolverhampton","ASDA HOME SHOPPING","94.68","Ernest Bold Court","5411","Provisions (Not for resale)","24/10/2017"
"Wolverhampton City Council","http://opendatacommunities.org/id/metropolitan-district-council/wolverhampton","ALBRIGHTON FEEDS LIMIT","112.40","Parks - Ranger Service","5995","Materials","24/10/2017"
"Wolverhampton City Council","http://opendatacommunities.org/id/metropolitan-district-council/wolverhampton","LOYD WEDNESFIELD WOLVE","250.00","Duke Street Bungalows","6011","Provisions (Not for resale)","24/10/2017"
"Wolverhampton City Council","http://opendatacommunities.org/id/metropolitan-district-council/wolverhampton","LOYD WEDNESFIELD WOLVE","250.00","Duke Street Bungalows","6011","Provisions (Not for resale)","24/10/2017"
"Wolverhampton City Council","http://opendatacommunities.org/id/metropolitan-district-council/wolverhampton","AMAZON EU AMAZON.CO.UK","8.99","Global Budgets","5999","Equipment - Purchase","24/10/2017"
"Wolverhampton City Council","http://opendatacommunities.org/id/metropolitan-district-council/wolverhampton","AMAZON SVCS EU-UK AMAZ","134.90","EIP Locality 5","5942","Equipment - Purchase","24/10/2017"
"Wolverhampton City Council","http://opendatacommunities.org/id/metropolitan-district-council/wolverhampton","AMAZON SVCS EU-UK AMAZ","1.98","EIP Locality 5","5942","Equipment - Purchase","24/10/2017"
"Wolverhampton City Council","http://opendatacommunities.org/id/metropolitan-district-council/wolverhampton","Trainline","38.45","Electoral Registration","4112","Public Transport","24/10/2017"
"Wolverhampton City Council","http://opendatacommunities.org/id/metropolitan-district-council/wolverhampton","SAINSBURYS (2340)","3.92","Fostering Team & Allowances","5411","Provisions (Not for resale)","24/10/2017"
"Wolverhampton City Council","http://opendatacommunities.org/id/metropolitan-district-council/wolverhampton","AMAZON SVCS EU-UK AMAZ","17.23","Parent / Partnership Service","5942","Stationery","24/10/2017"
"Wolverhampton City Council","http://opendatacommunities.org/id/metropolitan-district-council/wolverhampton","AMAZON SVCS EU-UK AMAZ","9.17","Headstart - Young People Engagement","5942","Stationery","24/10/2017"
"Wolverhampton City Council","http://opendatacommunities.org/id/metropolitan-district-council/wolverhampton","Trainline","18.11","Youth Offending Team","4112","Public Transport","24/10/2017"
"Wolverhampton City Council","http://opendatacommunities.org/id/metropolitan-district-council/wolverhampton","Trainline","81.09","Youth Offending Team","4112","Public Transport","24/10/2017"
"Wolverhampton City Council","http://opendatacommunities.org/id/metropolitan-district-council/wolverhampton","Trainline","195.94","Youth Offending Team","4112","Public Transport","24/10/2017"
"Wolverhampton City Council","http://opendatacommunities.org/id/metropolitan-district-council/wolverhampton","HALFORDS 0775","82.50","Cemeteries","5940","Equipment - Purchase","24/10/2017"
"Wolverhampton City Council","http://opendatacommunities.org/id/metropolitan-district-council/wolverhampton","Amazon UK Marketplace","4.66","Strategic ICTS (ICT Serv Budget)","5942","Books","24/10/2017"
"Wolverhampton City Council","http://opendatacommunities.org/id/metropolitan-district-council/wolverhampton","REDWINGS LODGE","58.29","Hostels / Outreach","7011","Services - Supplies & Services to users","24/10/2017"
"Wolverhampton City Council","http://opendatacommunities.org/id/metropolitan-district-council/wolverhampton","REDWINGS LODGE","4.99","Hostels / Outreach","7011","Services - Supplies & Services to users","24/10/2017"
"Wolverhampton City Council","http://opendatacommunities.org/id/metropolitan-district-council/wolverhampton","Virgin Trains","10.60","Private Sector Housing","4112","Public Transport","24/10/2017"
"Wolverhampton City Council","http://opendatacommunities.org/id/metropolitan-district-council/wolverhampton","ASDA HOME SHOPPING","286.63","Upper Pendeford Farm Childrens Home","5411","Provisions (Not for resale)","23/10/2017"
"Wolverhampton City Council","http://opendatacommunities.org/id/metropolitan-district-council/wolverhampton","SCREWFIX DIRECT","31.58","Central Costs","5211","Materials","23/10/2017"
"Wolverhampton City Council","http://opendatacommunities.org/id/metropolitan-district-council/wolverhampton","DUNELM ONLINE ORDER","17.95","Old Hall Street Main","5714","Equipment - Purchase","23/10/2017"
"Wolverhampton City Council","http://opendatacommunities.org/id/metropolitan-district-council/wolverhampton","WWW PROJECTORSHOP24 CO","124.14","ICT Services","5732","Equipment - Purchase","23/10/2017"
"Wolverhampton City Council","http://opendatacommunities.org/id/metropolitan-district-council/wolverhampton","AMAZON SVCS EU-UK AMAZ","5.37","Towers Outdoor Education Centre","5942","Equipment - Purchase","23/10/2017"
"Wolverhampton City Council","http://opendatacommunities.org/id/metropolitan-district-council/wolverhampton","AMAZON SVCS EU-UK AMAZ","12.37","Towers Outdoor Education Centre","5942","Equipment - Purchase","23/10/2017"
"Wolverhampton City Council","http://opendatacommunities.org/id/metropolitan-district-council/wolverhampton","AMAZON SVCS EU-UK AMAZ","11.79","Towers Outdoor Education Centre","5942","Equipment - Purchase","23/10/2017"
"Wolverhampton City Council","http://opendatacommunities.org/id/metropolitan-district-council/wolverhampton","AMAZON SVCS EU-UK AMAZ","4.20","EIP Locality 5","5942","Books","23/10/2017"
"Wolverhampton City Council","http://opendatacommunities.org/id/metropolitan-district-council/wolverhampton","WWW.ARGOS.CO.UK","0.00","EIP Locality 5","5310","Grant Payments","23/10/2017"
"Wolverhampton City Council","http://opendatacommunities.org/id/metropolitan-district-council/wolverhampton","WWW.ARGOS.CO.UK","279.99","EIP Locality 7","5310","Grant Payments","23/10/2017"
"Wolverhampton City Council","http://opendatacommunities.org/id/metropolitan-district-council/wolverhampton","ROYAL BK OF SCOTLAND","100.00","Headstart Phase 3","6011","Financial Assistance In Exceptional Circ","23/10/2017"
"Wolverhampton City Council","http://opendatacommunities.org/id/metropolitan-district-council/wolverhampton","Amazon UK Marketplace","4.15","Parent / Partnership Service","5942","Equipment - Purchase","23/10/2017"
"Wolverhampton City Council","http://opendatacommunities.org/id/metropolitan-district-council/wolverhampton","AMAZON SVCS EU-UK AMAZ","7.53","Headstart - Young People Engagement","5942","Materials","23/10/2017"
"Wolverhampton City Council","http://opendatacommunities.org/id/metropolitan-district-council/wolverhampton","Amazon UK Marketplace","15.74","Headstart - Young People Engagement","5942","Materials","23/10/2017"
"Wolverhampton City Council","http://opendatacommunities.org/id/metropolitan-district-council/wolverhampton","Amazon UK Marketplace","13.32","Headstart - Young People Engagement","5942","Equipment - Purchase","23/10/2017"
"Wolverhampton City Council","http://opendatacommunities.org/id/metropolitan-district-council/wolverhampton","Amazon UK Marketplace","13.32","Headstart - Young People Engagement","5942","Equipment - Purchase","23/10/2017"
"Wolverhampton City Council","http://opendatacommunities.org/id/metropolitan-district-council/wolverhampton","Amazon UK Marketplace","13.32","Headstart - Young People Engagement","5942","Equipment - Purchase","23/10/2017"
"Wolverhampton City Council","http://opendatacommunities.org/id/metropolitan-district-council/wolverhampton","Amazon UK Marketplace","13.32","Headstart - Young People Engagement","5942","Equipment - Purchase","23/10/2017"
"Wolverhampton City Council","http://opendatacommunities.org/id/metropolitan-district-council/wolverhampton","VDU01 Host Desk","13.00","IMPACT","7011","Services - Supplies & Services to users","23/10/2017"
"Wolverhampton City Council","http://opendatacommunities.org/id/metropolitan-district-council/wolverhampton","POST OFFICE COUNTER","23.70","Aldersley Leisure Village","9402","Comms - Postage","23/10/2017"
"Wolverhampton City Council","http://opendatacommunities.org/id/metropolitan-district-council/wolverhampton","COUNTER SOLUTIONS","45.83","Education Business Partnership","5811","Catering","23/10/2017"
"Wolverhampton City Council","http://opendatacommunities.org/id/metropolitan-district-council/wolverhampton","ROYAL BK OF SCOTLAND","100.00","Ernest Bold Court","6011","Educ Trips, Holidays, Outings, Activity","23/10/2017"
"Wolverhampton City Council","http://opendatacommunities.org/id/metropolitan-district-council/wolverhampton","ASDA HOME SHOPPING","98.99","Ernest Bold Court","5411","Provisions (Not for resale)","23/10/2017"
"Wolverhampton City Council","http://opendatacommunities.org/id/metropolitan-district-council/wolverhampton","ASDA HOME SHOPPING","1.69","Ernest Bold Court","5411","Provisions (Not for resale)","23/10/2017"
"Wolverhampton City Council","http://opendatacommunities.org/id/metropolitan-district-council/wolverhampton","POST OFFICE COUNTER","1.75","Safeguarding Admin Resource","9402","Comms - Postage","23/10/2017"
"Wolverhampton City Council","http://opendatacommunities.org/id/metropolitan-district-council/wolverhampton","WATERSTONES.COM","231.95","Central Training","5942","Books","23/10/2017"
"Wolverhampton City Council","http://opendatacommunities.org/id/metropolitan-district-council/wolverhampton","AMAZON EU AMAZON.CO.UK","66.62","Licensing - General","5999","Stationery","23/10/2017"
"Wolverhampton City Council","http://opendatacommunities.org/id/metropolitan-district-council/wolverhampton","LOYD THREE TUNS PDE","20.00","Ernest Bold Court","6011","Equipment - Purchase","23/10/2017"
"Wolverhampton City Council","http://opendatacommunities.org/id/metropolitan-district-council/wolverhampton","GO CARZ","7.87","MASH","4121","Client Transport","23/10/2017"
"Wolverhampton City Council","http://opendatacommunities.org/id/metropolitan-district-council/wolverhampton","ROYAL MAIL CHARGES","1.50","Fleet Management","9402","Comms - Postage","23/10/2017"
"Wolverhampton City Council","http://opendatacommunities.org/id/metropolitan-district-council/wolverhampton","PAYPAL  PUNTERSPUBL","35.00","Fleet Management","5942","Subscriptions","23/10/2017"
"Wolverhampton City Council","http://opendatacommunities.org/id/metropolitan-district-council/wolverhampton","Allpay  WHG","109.09","CIN/CP Social Work Unit - Area 4","8398","Section 17","23/10/2017"
"Wolverhampton City Council","http://opendatacommunities.org/id/metropolitan-district-council/wolverhampton","Trainline","57.73","CIN/CP Social Work Unit - Area 4","4112","Section 17","23/10/2017"
"Wolverhampton City Council","http://opendatacommunities.org/id/metropolitan-district-council/wolverhampton","AMAZON SVCS EU-UK AMAZ","5.24","Towers Outdoor Education Centre","5942","Equipment - Purchase","23/10/2017"
"Wolverhampton City Council","http://opendatacommunities.org/id/metropolitan-district-council/wolverhampton","WEST COAST TRAINS","10.00","Curatorial - Cultural Learning","7523","Car Allowances","23/10/2017"
"Wolverhampton City Council","http://opendatacommunities.org/id/metropolitan-district-council/wolverhampton","TATE ENTERPRISES LTD","24.99","Art Gallery","5971","Services - Professional Fees","23/10/2017"
"Wolverhampton City Council","http://opendatacommunities.org/id/metropolitan-district-council/wolverhampton","REDWINGS LODGE","108.21","Hostels / Outreach","7011","Services - Supplies & Services to users","23/10/2017"
"Wolverhampton City Council","http://opendatacommunities.org/id/metropolitan-district-council/wolverhampton","TESCO STORES 5397","17.99","EIP Locality 1","5411","Grant Payments","23/10/2017"
"Wolverhampton City Council","http://opendatacommunities.org/id/metropolitan-district-council/wolverhampton","TESCO STORES 5397","21.10","EIP Locality 1","5411","Grant Payments","23/10/2017"
"Wolverhampton City Council","http://opendatacommunities.org/id/metropolitan-district-council/wolverhampton","THE FAMILY PLANNING AS","31.93","EIP Locality 1","2741","Publications","23/10/2017"
"Wolverhampton City Council","http://opendatacommunities.org/id/metropolitan-district-council/wolverhampton","ASDA SUPERSTORE","18.37","MASH","5411","Provisions (Not for resale)","23/10/2017"
"Wolverhampton City Council","http://opendatacommunities.org/id/metropolitan-district-council/wolverhampton","SAINSBURYS 2040","22.00","Duke Street Bungalows","5411","Provisions (Not for resale)","23/10/2017"
"Wolverhampton City Council","http://opendatacommunities.org/id/metropolitan-district-council/wolverhampton","Amazon Prime","7.99","Technical Support","5968","Subscriptions","23/10/2017"
"Wolverhampton City Council","http://opendatacommunities.org/id/metropolitan-district-council/wolverhampton","AMAZON SVCS EU-UK AMAZ","35.00","Technical Support","5942","Computing - Purchase of Hardware","23/10/2017"
"Wolverhampton City Council","http://opendatacommunities.org/id/metropolitan-district-council/wolverhampton","Weebly","187.81","Technical Support","5817","Computing - Purchase of Software","23/10/2017"
"Wolverhampton City Council","http://opendatacommunities.org/id/metropolitan-district-council/wolverhampton","PAYPAL  BANANAPRINT","22.90","Technical Support","8931","Marketing \ Non-staff advertising","23/10/2017"
"Wolverhampton City Council","http://opendatacommunities.org/id/metropolitan-district-council/wolverhampton","W M MORRISON PLC","7.80","CIN/CP Social Work Unit - Area 6","5411","Comms - Postage","23/10/2017"
"Wolverhampton City Council","http://opendatacommunities.org/id/metropolitan-district-council/wolverhampton","CARVER/WOLVERHAMPTON/L","135.55","Ground Maintenance East","5211","Materials","23/10/2017"
"Wolverhampton City Council","http://opendatacommunities.org/id/metropolitan-district-council/wolverhampton","123 REG R/T","83.88","City Direct","5968","Subscriptions","23/10/2017"
"Wolverhampton City Council","http://opendatacommunities.org/id/metropolitan-district-council/wolverhampton","Trainline","180.59","LAC Education Team (LACE)","4112","Public Transport","23/10/2017"
"Wolverhampton City Council","http://opendatacommunities.org/id/metropolitan-district-council/wolverhampton","AMAZON SVCS EU-UK AMAZ","20.64","Strategic ICTS (ICT Serv Budget)","5942","Books","23/10/2017"
"Wolverhampton City Council","http://opendatacommunities.org/id/metropolitan-district-council/wolverhampton","AMAZON SVCS EU-UK AMAZ","19.56","Strategic ICTS (ICT Serv Budget)","5942","Books","23/10/2017"
"Wolverhampton City Council","http://opendatacommunities.org/id/metropolitan-district-council/wolverhampton","PAYPAL  PRESTIGE","28.49","Upper Pendeford Farm Childrens Home","5992","Hospitality","23/10/2017"
"Wolverhampton City Council","http://opendatacommunities.org/id/metropolitan-district-council/wolverhampton","BIRMINGHAM","17.95","LAC Team","7991","TPP - Children's Supervised Contact","23/10/2017"
"Wolverhampton City Council","http://opendatacommunities.org/id/metropolitan-district-council/wolverhampton","THE QUEEN VICTORIA HOT","160.00","Emergency Duty Team","7011","Services - Supplies & Services to users","23/10/2017"
"Wolverhampton City Council","http://opendatacommunities.org/id/metropolitan-district-council/wolverhampton","ASDA HOME SHOPPING","3.21","Upper Pendeford Farm Childrens Home","5411","Provisions (Not for resale)","23/10/2017"
"Wolverhampton City Council","http://opendatacommunities.org/id/metropolitan-district-council/wolverhampton","WM MORRISONS","11.50","Safeguarding Admin Resource","5411","Provisions (Not for resale)","20/10/2017"
"Wolverhampton City Council","http://opendatacommunities.org/id/metropolitan-district-council/wolverhampton","BRECKLAND LODGE","80.50","Safeguarding Admin Resource","7011","Services - Supplies & Services to users","20/10/2017"
"Wolverhampton City Council","http://opendatacommunities.org/id/metropolitan-district-council/wolverhampton","Trainline","181.87","Safeguarding Admin Resource","4112","Public Transport","20/10/2017"
"Wolverhampton City Council","http://opendatacommunities.org/id/metropolitan-district-council/wolverhampton","Trainline","62.02","CIN/CP Social Work Unit - Area 8","4112","Section 17","20/10/2017"
"Wolverhampton City Council","http://opendatacommunities.org/id/metropolitan-district-council/wolverhampton","Trainline","57.73","CIN/CP Social Work Unit - Area 8","4112","Section 17","20/10/2017"
"Wolverhampton City Council","http://opendatacommunities.org/id/metropolitan-district-council/wolverhampton","Trainline","105.57","CIN/CP Social Work Unit - Area 8","4112","Section 17","20/10/2017"
"Wolverhampton City Council","http://opendatacommunities.org/id/metropolitan-district-council/wolverhampton","Virgin Trains","34.40","Members Expenses","4112","Public Transport","20/10/2017"
"Wolverhampton City Council","http://opendatacommunities.org/id/metropolitan-district-council/wolverhampton","AMAZON UK RETAIL AMAZO","2.43","Northicote Farm","5999","Clothing / Uniforms","20/10/2017"
"Wolverhampton City Council","http://opendatacommunities.org/id/metropolitan-district-council/wolverhampton","000002200500000","250.00","CIN/CP Social Work Unit - Area 6","6011","Financial Assistance In Exceptional Circ","20/10/2017"
"Wolverhampton City Council","http://opendatacommunities.org/id/metropolitan-district-council/wolverhampton","WELLCOME COLLECTION CA","6.12","Research & Development","5811","Catering","20/10/2017"
"Wolverhampton City Council","http://opendatacommunities.org/id/metropolitan-district-council/wolverhampton","LUL TICKET MACHINE","10.00","Research & Development","4112","Public Transport","20/10/2017"
"Wolverhampton City Council","http://opendatacommunities.org/id/metropolitan-district-council/wolverhampton","Virgin Trains","221.20","Fostering Team & Allowances","4112","Public Transport","20/10/2017"
"Wolverhampton City Council","http://opendatacommunities.org/id/metropolitan-district-council/wolverhampton","WATERLOO HOTEL","250.00","Headstart - Learning Technologies Team","7011","Accommodation Costs","20/10/2017"
"Wolverhampton City Council","http://opendatacommunities.org/id/metropolitan-district-council/wolverhampton","AMAZON SVCS EU-UK AMAZ","4.85","Parent / Partnership Service","5942","Books","20/10/2017"
"Wolverhampton City Council","http://opendatacommunities.org/id/metropolitan-district-council/wolverhampton","AMAZON SVCS EU-UK AMAZ","2.53","Parent / Partnership Service","5942","Stationery","20/10/2017"
"Wolverhampton City Council","http://opendatacommunities.org/id/metropolitan-district-council/wolverhampton","BARCLAYS BANK PLC","50.00","Headstart - Young People Engagement","6011","Financial Assistance In Exceptional Circ","20/10/2017"
"Wolverhampton City Council","http://opendatacommunities.org/id/metropolitan-district-council/wolverhampton","Amazon UK Marketplace","31.79","Headstart - Young People Engagement","5942","Materials","20/10/2017"
"Wolverhampton City Council","http://opendatacommunities.org/id/metropolitan-district-council/wolverhampton","Amazon UK Marketplace","8.23","Headstart - Young People Engagement","5942","Materials","20/10/2017"
"Wolverhampton City Council","http://opendatacommunities.org/id/metropolitan-district-council/wolverhampton","Amazon UK Marketplace","47.45","Headstart - Young People Engagement","5942","Materials","20/10/2017"
"Wolverhampton City Council","http://opendatacommunities.org/id/metropolitan-district-council/wolverhampton","Amazon UK Marketplace","23.07","Headstart - Young People Engagement","5942","Materials","20/10/2017"
"Wolverhampton City Council","http://opendatacommunities.org/id/metropolitan-district-council/wolverhampton","VDU01 F&B","24.83","IMPACT","7011","Services - Supplies & Services to users","20/10/2017"
"Wolverhampton City Council","http://opendatacommunities.org/id/metropolitan-district-council/wolverhampton","E01510300000000","100.00","Childrens with Disabilities Team","6011","Financial Assistance In Exceptional Circ","20/10/2017"
"Wolverhampton City Council","http://opendatacommunities.org/id/metropolitan-district-council/wolverhampton","E01510300000000","250.00","Childrens with Disabilities Team","6011","Financial Assistance In Exceptional Circ","20/10/2017"
"Wolverhampton City Council","http://opendatacommunities.org/id/metropolitan-district-council/wolverhampton","FLYBE.COM D4T9SD       0","383.61","Admin & Support","4511","Public Transport","20/10/2017"
"Wolverhampton City Council","http://opendatacommunities.org/id/metropolitan-district-council/wolverhampton","WWW.ARGOS.CO.UK","-149.99","EIP Locality 8","5310","Grant Payments","20/10/2017"
"Wolverhampton City Council","http://opendatacommunities.org/id/metropolitan-district-council/wolverhampton","ARGOS DIRECT","169.99","EIP Locality 8","5310","Grant Payments","20/10/2017"
"Wolverhampton City Council","http://opendatacommunities.org/id/metropolitan-district-council/wolverhampton","AMAZON EU AMAZON.CO.UK","31.76","EIP Locality 8","5999","Equipment - Purchase","20/10/2017"
"Wolverhampton City Council","http://opendatacommunities.org/id/metropolitan-district-council/wolverhampton","Virgin Trains","151.00","Corporate Procurement Unit","4112","Public Transport","20/10/2017"
"Wolverhampton City Council","http://opendatacommunities.org/id/metropolitan-district-council/wolverhampton","AnyVanUK","120.00","CIN/CP Social Work Unit - Area 3","4215","Section 17","20/10/2017"
"Wolverhampton City Council","http://opendatacommunities.org/id/metropolitan-district-council/wolverhampton","Virgin Trains","36.30","LAC Team","4112","Public Transport","20/10/2017"
"Wolverhampton City Council","http://opendatacommunities.org/id/metropolitan-district-council/wolverhampton","Amazon UK Marketplace","5.54","EIP Locality 5","5942","Equipment - Purchase","20/10/2017"
"Wolverhampton City Council","http://opendatacommunities.org/id/metropolitan-district-council/wolverhampton","WATERLOO HOTEL","245.83","Headstart - Learning Technologies Team","7011","Accommodation Costs","20/10/2017"
"Wolverhampton City Council","http://opendatacommunities.org/id/metropolitan-district-council/wolverhampton","WATERLOO HOTEL","354.17","Headstart Phase 3","7011","Accommodation Costs","20/10/2017"
"Wolverhampton City Council","http://opendatacommunities.org/id/metropolitan-district-council/wolverhampton","AMAZON EU AMAZON.CO.UK","15.98","Archives","5999","Books","20/10/2017"
"Wolverhampton City Council","http://opendatacommunities.org/id/metropolitan-district-council/wolverhampton","POST OFFICE COUNTER","256.50","LAC Admin Team","9402","Comms - Postage","20/10/2017"
"Wolverhampton City Council","http://opendatacommunities.org/id/metropolitan-district-council/wolverhampton","SCREWFIX DIRECT LT","33.32","Cleaning of Buildings - General","5211","Materials","20/10/2017"
"Wolverhampton City Council","http://opendatacommunities.org/id/metropolitan-district-council/wolverhampton","TESCO STORES 5397","3.14","EIP Locality 1","5411","Provisions (Not for resale)","20/10/2017"
"Wolverhampton City Council","http://opendatacommunities.org/id/metropolitan-district-council/wolverhampton","HOME BARGAINS","15.18","EIP Locality 1","5251","Grant Payments","20/10/2017"
"Wolverhampton City Council","http://opendatacommunities.org/id/metropolitan-district-council/wolverhampton","SAFESCAN B.V.","562.90","Civic Hall Administration Overhead Acct","4900","Equipment - Purchase","20/10/2017"
"Wolverhampton City Council","http://opendatacommunities.org/id/metropolitan-district-council/wolverhampton","Trainline","187.17","Strategic Director Place","4112","Public Transport","20/10/2017"
"Wolverhampton City Council","http://opendatacommunities.org/id/metropolitan-district-council/wolverhampton","WWW.ARGOS.CO.UK","204.99","EIP Locality 1","5310","Grant Payments","20/10/2017"
"Wolverhampton City Council","http://opendatacommunities.org/id/metropolitan-district-council/wolverhampton","WATERSTONES","30.00","Global Budgets","5942","Books","19/10/2017"
"Wolverhampton City Council","http://opendatacommunities.org/id/metropolitan-district-council/wolverhampton","WATERSTONES","95.00","Global Budgets","5942","Books","19/10/2017"
"Wolverhampton City Council","http://opendatacommunities.org/id/metropolitan-district-council/wolverhampton","Trainline","175.44","Safeguarding Admin Resource","4112","Public Transport","19/10/2017"
"Wolverhampton City Council","http://opendatacommunities.org/id/metropolitan-district-council/wolverhampton","WWW.ARGOS.CO.UK","459.97","CIN/CP Social Work Unit - Area 7","5310","Section 17","19/10/2017"
"Wolverhampton City Council","http://opendatacommunities.org/id/metropolitan-district-council/wolverhampton","DISPLAYSENSE.CO.UK","41.94","Mayoral Expenses","5046","Stationery","19/10/2017"
"Wolverhampton City Council","http://opendatacommunities.org/id/metropolitan-district-council/wolverhampton","WWW.PRESERVATIONEQUIPM","301.10","Bilston Museum","4225","Equipment - Purchase","19/10/2017"
"Wolverhampton City Council","http://opendatacommunities.org/id/metropolitan-district-council/wolverhampton","Amazon UK Marketplace","56.38","Technical Material","5942","Equipment - Purchase","19/10/2017"
"Wolverhampton City Council","http://opendatacommunities.org/id/metropolitan-district-council/wolverhampton","WWW.HOLLOWAY-PLASTICS.","21.50","Technical Material","7399","Equipment - Purchase","19/10/2017"
"Wolverhampton City Council","http://opendatacommunities.org/id/metropolitan-district-council/wolverhampton","Trainline","54.67","CIN/CP Social Work Unit - Area 4","4112","No Recourse to Public Funds","19/10/2017"
"Wolverhampton City Council","http://opendatacommunities.org/id/metropolitan-district-council/wolverhampton","WWW.RECOLIGHT.CO.UK","120.00","Street Lighting Maintenance","5065","Equipment - R & M","19/10/2017"
"Wolverhampton City Council","http://opendatacommunities.org/id/metropolitan-district-council/wolverhampton","AMAZON.CO.UK","12.70","Members Expenses","5942","Computing - Consumables","19/10/2017"
"Wolverhampton City Council","http://opendatacommunities.org/id/metropolitan-district-council/wolverhampton","Amazon UK Marketplace","9.98","Members Expenses","5942","Equipment - Purchase","19/10/2017"
"Wolverhampton City Council","http://opendatacommunities.org/id/metropolitan-district-council/wolverhampton","CROWN PROPERTY SERVICE","280.00","CIN/CP Social Work Unit - Area 3","7011","Section 17","19/10/2017"
"Wolverhampton City Council","http://opendatacommunities.org/id/metropolitan-district-council/wolverhampton","Amazon UK Marketplace","1.30","EIP Locality 5","5942","Equipment - Purchase","19/10/2017"
"Wolverhampton City Council","http://opendatacommunities.org/id/metropolitan-district-council/wolverhampton","Amazon UK Marketplace","78.68","EIP Locality 5","5942","Equipment - Purchase","19/10/2017"
"Wolverhampton City Council","http://opendatacommunities.org/id/metropolitan-district-council/wolverhampton","GO CARZ","9.97","MASH","4121","Section 17","19/10/2017"
"Wolverhampton City Council","http://opendatacommunities.org/id/metropolitan-district-council/wolverhampton","GO CARZ","9.97","MASH","4121","Section 17","19/10/2017"
"Wolverhampton City Council","http://opendatacommunities.org/id/metropolitan-district-council/wolverhampton","EE TOP UP VESTA","8.33","Independent Living Service","4814","Comms - Telephone Call charges","19/10/2017"
"Wolverhampton City Council","http://opendatacommunities.org/id/metropolitan-district-council/wolverhampton","CUMMINGS BROTHERS LOCK","4.17","Cleaning of Buildings - General","7399","Equipment - Purchase","19/10/2017"
"Wolverhampton City Council","http://opendatacommunities.org/id/metropolitan-district-council/wolverhampton","LIDDELL ELECTRICAL DIS","63.65","Cleaning of Buildings - General","5065","Equipment - R & M","19/10/2017"
"Wolverhampton City Council","http://opendatacommunities.org/id/metropolitan-district-council/wolverhampton","TESCO STORES 5397","4.05","EIP Locality 1","5411","Provisions (Not for resale)","19/10/2017"
"Wolverhampton City Council","http://opendatacommunities.org/id/metropolitan-district-council/wolverhampton","PO WOLVERHAMPTON 0169","20.00","EIP Locality 1","6011","Grant Payments","19/10/2017"
"Wolverhampton City Council","http://opendatacommunities.org/id/metropolitan-district-council/wolverhampton","MOLINEUX SERVICE S","4.95","Play General","5541","Petrol","19/10/2017"
"Wolverhampton City Council","http://opendatacommunities.org/id/metropolitan-district-council/wolverhampton","WICKES","68.85","Play General","5211","Materials","19/10/2017"
"Wolverhampton City Council","http://opendatacommunities.org/id/metropolitan-district-council/wolverhampton","WWW.STAPLES.CO.UK","57.90","Towers Outdoor Education Centre","5943","Stationery","19/10/2017"
"Wolverhampton City Council","http://opendatacommunities.org/id/metropolitan-district-council/wolverhampton","BLOXWICH  SST","7.00","Economic Development","4112","Public Transport","19/10/2017"
"Wolverhampton City Council","http://opendatacommunities.org/id/metropolitan-district-council/wolverhampton","BRITANNIA","-50.00","Emergency Duty Team","7011","Services - Supplies & Services to users","19/10/2017"
"Wolverhampton City Council","http://opendatacommunities.org/id/metropolitan-district-council/wolverhampton","BRITANNIA WOLVERHA","50.00","Emergency Duty Team","7011","Services - Supplies & Services to users","19/10/2017"
"Wolverhampton City Council","http://opendatacommunities.org/id/metropolitan-district-council/wolverhampton","BRITANNIA","50.00","Emergency Duty Team","7011","Services - Supplies & Services to users","19/10/2017"
"Wolverhampton City Council","http://opendatacommunities.org/id/metropolitan-district-council/wolverhampton","TESCO STORES 6727","125.00","Headstart - Young People Engagement","5411","Provisions (Not for resale)","19/10/2017"
"Wolverhampton City Council","http://opendatacommunities.org/id/metropolitan-district-council/wolverhampton","Amazon UK Marketplace","3.39","Headstart - Young People Engagement","5942","Stationery","19/10/2017"
"Wolverhampton City Council","http://opendatacommunities.org/id/metropolitan-district-council/wolverhampton","Amazon UK Marketplace","8.53","Headstart - Young People Engagement","5942","Materials","19/10/2017"
"Wolverhampton City Council","http://opendatacommunities.org/id/metropolitan-district-council/wolverhampton","WWW.WMCA.CO.UK","86.80","IMPACT","9399","Services - Fees and Charges","19/10/2017"
"Wolverhampton City Council","http://opendatacommunities.org/id/metropolitan-district-council/wolverhampton","WWW.CTT.CO.UK","8.40","IMPACT","9399","Services - Fees and Charges","19/10/2017"
"Wolverhampton City Council","http://opendatacommunities.org/id/metropolitan-district-council/wolverhampton","WWW.PICSTOP.CO.UK","23.96","Education Business Partnership","5946","Equipment - Purchase","19/10/2017"
"Wolverhampton City Council","http://opendatacommunities.org/id/metropolitan-district-council/wolverhampton","TVLICENSING.CO.UK","147.00","Bert Williams Leisure Centre","7392","Services - Consultants","19/10/2017"
"Wolverhampton City Council","http://opendatacommunities.org/id/metropolitan-district-council/wolverhampton","SAINSBURYS PFS (1340)","1.67","Mayoral Expenses","5541","Vehicle Maintenance - Repairs","19/10/2017"
"Wolverhampton City Council","http://opendatacommunities.org/id/metropolitan-district-council/wolverhampton","POST OFFICE COUNTER","121.00","Macmillan Welfare Rights","9402","Comms - Postage","19/10/2017"
"Wolverhampton City Council","http://opendatacommunities.org/id/metropolitan-district-council/wolverhampton","WISEPOPS","38.38","City Direct","7372","Computing - Purchase of Software","19/10/2017"
"Wolverhampton City Council","http://opendatacommunities.org/id/metropolitan-district-council/wolverhampton","LOVE2SHOP.CO.UK","203.50","Healthy Lifestyles Team","8641","Educ Trips, Holidays, Outings, Activity","19/10/2017"
"Wolverhampton City Council","http://opendatacommunities.org/id/metropolitan-district-council/wolverhampton","Amazon EU","164.10","Strategic ICTS (ICT Serv Budget)","5969","Equipment - Purchase","19/10/2017"
"Wolverhampton City Council","http://opendatacommunities.org/id/metropolitan-district-council/wolverhampton","BROOKFORGE LIMITED","4883.00","Delivery & OCE Development","5996","Equipment - Purchase","19/10/2017"
"Wolverhampton City Council","http://opendatacommunities.org/id/metropolitan-district-council/wolverhampton","Virgin Trains","208.30","Adoption and Residence Team & Allowances","4112","Public Transport","18/10/2017"
"Wolverhampton City Council","http://opendatacommunities.org/id/metropolitan-district-council/wolverhampton","POST OFFICE COUNTER","175.00","Adoption and Residence Team & Allowances","9402","Comms - Postage","18/10/2017"
"Wolverhampton City Council","http://opendatacommunities.org/id/metropolitan-district-council/wolverhampton","TESCO STORES 5194","75.91","Towers Outdoor Education Centre","5411","Provisions (Not for resale)","18/10/2017"
"Wolverhampton City Council","http://opendatacommunities.org/id/metropolitan-district-council/wolverhampton","DUNELM (SOFT FURNISHIN","15.08","Delivery & OCE Development","5714","Equipment - Purchase","18/10/2017"
"Wolverhampton City Council","http://opendatacommunities.org/id/metropolitan-district-council/wolverhampton","DEBENHAMS","64.42","Delivery & OCE Development","5311","Equipment - Purchase","18/10/2017"
"Wolverhampton City Council","http://opendatacommunities.org/id/metropolitan-district-council/wolverhampton","BLOXWICH  SST","7.00","Economic Development","4112","Public Transport","18/10/2017"
"Wolverhampton City Council","http://opendatacommunities.org/id/metropolitan-district-council/wolverhampton","WHALEYS /BRADFORD/ LTD","219.00","Visitor Economy - Development","5999","Equipment - Purchase","18/10/2017"
"Wolverhampton City Council","http://opendatacommunities.org/id/metropolitan-district-council/wolverhampton","HUGHES","407.50","LAC Transitions Team","5732","Client Allowances","18/10/2017"
"Wolverhampton City Council","http://opendatacommunities.org/id/metropolitan-district-council/wolverhampton","ROYAL CARPETS","95.83","LAC Transitions Team","5713","Client Allowances","18/10/2017"
"Wolverhampton City Council","http://opendatacommunities.org/id/metropolitan-district-council/wolverhampton","IMPERIAL LONDON HOTELS","112.50","Headstart Phase 3","7011","Accommodation Costs","18/10/2017"
"Wolverhampton City Council","http://opendatacommunities.org/id/metropolitan-district-council/wolverhampton","WOLVERHAMPTON CC","2.50","Headstart Phase 3","7523","Parking Fees","18/10/2017"
"Wolverhampton City Council","http://opendatacommunities.org/id/metropolitan-district-council/wolverhampton","SCREWFIX DIRECT LT","9.60","Play General","5211","Materials","18/10/2017"
"Wolverhampton City Council","http://opendatacommunities.org/id/metropolitan-district-council/wolverhampton","CARESHOP","137.34","Duke Street Bungalows","5999","Cleaning Supplies and Materials","18/10/2017"
"Wolverhampton City Council","http://opendatacommunities.org/id/metropolitan-district-council/wolverhampton","Trainline","189.21","CIN/CP Social Work Unit - Area 4","4112","Section 17","18/10/2017"
"Wolverhampton City Council","http://opendatacommunities.org/id/metropolitan-district-council/wolverhampton","PAYPAL  MES LTD","85.00","Music Support Team","8211","Services - Professional Fees","18/10/2017"
"Wolverhampton City Council","http://opendatacommunities.org/id/metropolitan-district-council/wolverhampton","Trainline","97.00","CIN/CP Social Work Unit - Area 8","4112","Public Transport","18/10/2017"
"Wolverhampton City Council","http://opendatacommunities.org/id/metropolitan-district-council/wolverhampton","HOLIDAY INN EXPRES","197.08","Adoption and Residence Team & Allowances","7011","Accommodation Costs","18/10/2017"
"Wolverhampton City Council","http://opendatacommunities.org/id/metropolitan-district-council/wolverhampton","Amazon UK Marketplace","26.46","Strategic ICTS (ICT Serv Budget)","5942","Computing - Purchase of Hardware","18/10/2017"
"Wolverhampton City Council","http://opendatacommunities.org/id/metropolitan-district-council/wolverhampton","HIGHFIELD HOUSE HO","385.00","CIN/CP Social Work Unit - Area 3","7011","No Recourse to Public Funds","18/10/2017"
"Wolverhampton City Council","http://opendatacommunities.org/id/metropolitan-district-council/wolverhampton","Virgin Trains","500.80","Scrutiny & Transparency","4112","Public Transport","18/10/2017"
"Wolverhampton City Council","http://opendatacommunities.org/id/metropolitan-district-council/wolverhampton","POUNDLAND LTD 1463","8.33","Quality Assurance & Policies","5310","Equipment - Purchase","18/10/2017"
"Wolverhampton City Council","http://opendatacommunities.org/id/metropolitan-district-council/wolverhampton","POST OFFICE COUNTER","284.00","Fostering Team & Allowances","9402","Comms - Postage","18/10/2017"
"Wolverhampton City Council","http://opendatacommunities.org/id/metropolitan-district-council/wolverhampton","Amazon UK Marketplace","6.99","Delivery & OCE Development","5942","Books","18/10/2017"
"Wolverhampton City Council","http://opendatacommunities.org/id/metropolitan-district-council/wolverhampton","VDU01 HOTEL","130.00","IMPACT","7011","Services - Supplies & Services to users","18/10/2017"
"Wolverhampton City Council","http://opendatacommunities.org/id/metropolitan-district-council/wolverhampton","WOLVERHAMPTON CC","12.50","IMPACT","7523","Car Allowances","18/10/2017"
"Wolverhampton City Council","http://opendatacommunities.org/id/metropolitan-district-council/wolverhampton","LAKSHMI SWEET CENTRE","275.00","IMPACT","5812","Educ Trips, Holidays, Outings, Activity","18/10/2017"
"Wolverhampton City Council","http://opendatacommunities.org/id/metropolitan-district-council/wolverhampton","B & Q 1243","8.90","Bert Williams Leisure Centre","5211","Materials","18/10/2017"
"Wolverhampton City Council","http://opendatacommunities.org/id/metropolitan-district-council/wolverhampton","EB  DOES MODERN SLAVER","32.45","SWP - Infrastructure","7399","Training Expenses","18/10/2017"
"Wolverhampton City Council","http://opendatacommunities.org/id/metropolitan-district-council/wolverhampton","WM MORRISONS","9.40","EIP Locality 6","5411","Grant Payments","18/10/2017"
"Wolverhampton City Council","http://opendatacommunities.org/id/metropolitan-district-council/wolverhampton","JOLLY CATERING","96.50","Early Years & Universal Service","5811","Catering","18/10/2017"
"Wolverhampton City Council","http://opendatacommunities.org/id/metropolitan-district-council/wolverhampton","Amazon UK Marketplace","31.76","Strategic ICTS (ICT Serv Budget)","5942","Books","18/10/2017"
"Wolverhampton City Council","http://opendatacommunities.org/id/metropolitan-district-council/wolverhampton","AMAZON.CO.UK","69.74","LAC Transitions Team","5942","Equipment - Purchase","18/10/2017"
"Wolverhampton City Council","http://opendatacommunities.org/id/metropolitan-district-council/wolverhampton","WEST COAST TRAINS","3.92","Telecare","4112","Conference Expenses","18/10/2017"
"Wolverhampton City Council","http://opendatacommunities.org/id/metropolitan-district-council/wolverhampton","WEST COAST TRAINS","12.00","Managing Director","7523","Car Allowances","18/10/2017"
"Wolverhampton City Council","http://opendatacommunities.org/id/metropolitan-district-council/wolverhampton","W M MORRISONS.COM","71.86","Discretionary Fund","5411","Materials","18/10/2017"
"Wolverhampton City Council","http://opendatacommunities.org/id/metropolitan-district-council/wolverhampton","SAMRA'S","6.00","Discretionary Fund","5411","Materials","18/10/2017"
"Wolverhampton City Council","http://opendatacommunities.org/id/metropolitan-district-council/wolverhampton","GO CARZ","9.97","MASH","4121","Section 17","18/10/2017"
"Wolverhampton City Council","http://opendatacommunities.org/id/metropolitan-district-council/wolverhampton","GO CARZ","9.97","MASH","4121","Section 17","18/10/2017"
"Wolverhampton City Council","http://opendatacommunities.org/id/metropolitan-district-council/wolverhampton","GO CARZ","9.97","MASH","4121","Section 17","18/10/2017"
"Wolverhampton City Council","http://opendatacommunities.org/id/metropolitan-district-council/wolverhampton","WWW.LIGHTS4FUN.CO.","879.91","Visitor Economy - Development","5999","Equipment - Purchase","18/10/2017"
"Wolverhampton City Council","http://opendatacommunities.org/id/metropolitan-district-council/wolverhampton","SCREWFIX DIRECT LT","18.17","Cleaning of Buildings - General","5211","Materials","18/10/2017"
"Wolverhampton City Council","http://opendatacommunities.org/id/metropolitan-district-council/wolverhampton","TESCO STORES 5397","5.30","EIP Locality 1","5411","Provisions (Not for resale)","18/10/2017"
"Wolverhampton City Council","http://opendatacommunities.org/id/metropolitan-district-council/wolverhampton","Amazon UK Marketplace","65.98","EIP Locality 2","5942","Equipment - Purchase","18/10/2017"
"Wolverhampton City Council","http://opendatacommunities.org/id/metropolitan-district-council/wolverhampton","Amazon EU","83.68","Older People Provider Management","5969","Equipment - Purchase","18/10/2017"
"Wolverhampton City Council","http://opendatacommunities.org/id/metropolitan-district-council/wolverhampton","TVLICENSING.CO.UK","147.00","LAC Transitions Team","7392","Client Allowances","18/10/2017"
"Wolverhampton City Council","http://opendatacommunities.org/id/metropolitan-district-council/wolverhampton","Trainline","10.45","Financial Assessments","4112","Public Transport","18/10/2017"
"Wolverhampton City Council","http://opendatacommunities.org/id/metropolitan-district-council/wolverhampton","Amazon UK Marketplace","7.96","Global Budgets","5942","Books","18/10/2017"
"Wolverhampton City Council","http://opendatacommunities.org/id/metropolitan-district-council/wolverhampton","Amazon UK Marketplace","19.98","EIP Locality 3","5942","Equipment - Purchase","18/10/2017"
"Wolverhampton City Council","http://opendatacommunities.org/id/metropolitan-district-council/wolverhampton","Trainline","28.69","EIP Locality 3","4112","Grant Payments","18/10/2017"
"Wolverhampton City Council","http://opendatacommunities.org/id/metropolitan-district-council/wolverhampton","B & Q 1243","14.17","Bradley Resource Centre","5211","Equipment - R & M","18/10/2017"
"Wolverhampton City Council","http://opendatacommunities.org/id/metropolitan-district-council/wolverhampton","Amazon UK Marketplace","32.50","Education And Access","5999","Books","18/10/2017"
"Wolverhampton City Council","http://opendatacommunities.org/id/metropolitan-district-council/wolverhampton","EVENT FURNITURE LIMITE","-33.25","Aldersley Leisure Village","7394","Equipment - Purchase","17/10/2017"
"Wolverhampton City Council","http://opendatacommunities.org/id/metropolitan-district-council/wolverhampton","WWW.ARGOS.CO.UK","329.98","EIP Locality 8","5310","Grant Payments","17/10/2017"
"Wolverhampton City Council","http://opendatacommunities.org/id/metropolitan-district-council/wolverhampton","Amazon UK Marketplace","37.99","EIP Locality 8","5942","Equipment - Purchase","17/10/2017"
"Wolverhampton City Council","http://opendatacommunities.org/id/metropolitan-district-council/wolverhampton","Trainline","21.27","LAC Education Team (LACE)","4112","Public Transport","17/10/2017"
"Wolverhampton City Council","http://opendatacommunities.org/id/metropolitan-district-council/wolverhampton","HMCOURTS-SERVICE.G","20.00","LAC Transitions Team","9222","Client Allowances","17/10/2017"
"Wolverhampton City Council","http://opendatacommunities.org/id/metropolitan-district-council/wolverhampton","AnyVanUK","212.00","CIN/CP Social Work Unit - Area 3","4215","Section 17","17/10/2017"
"Wolverhampton City Council","http://opendatacommunities.org/id/metropolitan-district-council/wolverhampton","GO CARZ","5.66","MASH","4121","Section 17","17/10/2017"
"Wolverhampton City Council","http://opendatacommunities.org/id/metropolitan-district-council/wolverhampton","GO CARZ","5.66","MASH","4121","Section 17","17/10/2017"
"Wolverhampton City Council","http://opendatacommunities.org/id/metropolitan-district-council/wolverhampton","BETTWS MOTORS LIMITED","106.79","Towers Outdoor Education Centre","7538","Vehicle Maintenance - Repairs","17/10/2017"
"Wolverhampton City Council","http://opendatacommunities.org/id/metropolitan-district-council/wolverhampton","O E METCALFE","142.20","Towers Outdoor Education Centre","5499","Provisions (Not for resale)","17/10/2017"
"Wolverhampton City Council","http://opendatacommunities.org/id/metropolitan-district-council/wolverhampton","WM MORRISON 024","6.72","Fostering Team & Allowances","5411","Provisions (Not for resale)","17/10/2017"
"Wolverhampton City Council","http://opendatacommunities.org/id/metropolitan-district-council/wolverhampton","WWW.WMCA.CO.UK","54.50","IMPACT","9399","Services - Fees and Charges","17/10/2017"
"Wolverhampton City Council","http://opendatacommunities.org/id/metropolitan-district-council/wolverhampton","Trainline","113.02","Curatorial - Cultural Learning","4112","Public Transport","17/10/2017"
"Wolverhampton City Council","http://opendatacommunities.org/id/metropolitan-district-council/wolverhampton","J VAN VLIET BIRMINGHAM","73.35","Creative Studies Delivery Area","5399","Materials for resale","17/10/2017"
"Wolverhampton City Council","http://opendatacommunities.org/id/metropolitan-district-council/wolverhampton","WWW.OAKLANDSWOLVERHAMP","80.00","MASH","7011","Services - Supplies & Services to users","17/10/2017"
"Wolverhampton City Council","http://opendatacommunities.org/id/metropolitan-district-council/wolverhampton","WWW.WMCA.CO.UK","86.80","IMPACT","9399","Services - Fees and Charges","17/10/2017"
"Wolverhampton City Council","http://opendatacommunities.org/id/metropolitan-district-council/wolverhampton","ALDI 94 772        S","21.97","IMPACT","5411","Provisions (Not for resale)","17/10/2017"
"Wolverhampton City Council","http://opendatacommunities.org/id/metropolitan-district-council/wolverhampton","S&D SUPERMARKET WOLVER","17.80","IMPACT","5411","Provisions (Not for resale)","17/10/2017"
"Wolverhampton City Council","http://opendatacommunities.org/id/metropolitan-district-council/wolverhampton","ROYAL CARPETS","279.17","LAC Transitions Team","5713","Client Allowances","17/10/2017"
"Wolverhampton City Council","http://opendatacommunities.org/id/metropolitan-district-council/wolverhampton","WOLVERHAMPTON CC","2.50","Headstart Phase 3","7523","Parking Fees","17/10/2017"
"Wolverhampton City Council","http://opendatacommunities.org/id/metropolitan-district-council/wolverhampton","WEST COAST TRAINS","4.75","Telecare","4112","Conference Expenses","17/10/2017"
"Wolverhampton City Council","http://opendatacommunities.org/id/metropolitan-district-council/wolverhampton","ARGOS LTD","129.99","LAC Transitions Team","5310","Client Allowances","17/10/2017"
"Wolverhampton City Council","http://opendatacommunities.org/id/metropolitan-district-council/wolverhampton","DULUX DECORATOR CENTRE","32.63","Pop Gallery Space","5198","Materials","17/10/2017"
"Wolverhampton City Council","http://opendatacommunities.org/id/metropolitan-district-council/wolverhampton","Amazon EU","22.55","Global Budgets","5969","Books","17/10/2017"
"Wolverhampton City Council","http://opendatacommunities.org/id/metropolitan-district-council/wolverhampton","ASDA HOME SHOPPING","-0.28","Ernest Bold Court","5411","Provisions (Not for resale)","17/10/2017"
"Wolverhampton City Council","http://opendatacommunities.org/id/metropolitan-district-council/wolverhampton","ASDA HOME SHOPPING","92.89","Ernest Bold Court","5411","Provisions (Not for resale)","17/10/2017"
"Wolverhampton City Council","http://opendatacommunities.org/id/metropolitan-district-council/wolverhampton","Trainline","160.55","Strategic Director Place","4112","Public Transport","17/10/2017"
"Wolverhampton City Council","http://opendatacommunities.org/id/metropolitan-district-council/wolverhampton","Trainline","105.11","Education Catering - General Overheads","4112","Public Transport","17/10/2017"
"Wolverhampton City Council","http://opendatacommunities.org/id/metropolitan-district-council/wolverhampton","J VAN VLIET BIRMINGHAM","136.75","Discretionary Fund","5399","Materials","17/10/2017"
"Wolverhampton City Council","http://opendatacommunities.org/id/metropolitan-district-council/wolverhampton","J VAN VLIET BIRMINGHAM","48.00","Discretionary Fund","5399","Materials","17/10/2017"
"Wolverhampton City Council","http://opendatacommunities.org/id/metropolitan-district-council/wolverhampton","WWW.ARGOS.CO.UK","0.00","EIP Locality 5","5310","Equipment - Purchase","16/10/2017"
"Wolverhampton City Council","http://opendatacommunities.org/id/metropolitan-district-council/wolverhampton","ASDA HOME SHOPPING","97.53","Ernest Bold Court","5411","Provisions (Not for resale)","16/10/2017"
"Wolverhampton City Council","http://opendatacommunities.org/id/metropolitan-district-council/wolverhampton","ASDA HOME SHOPPING","0.44","Ernest Bold Court","5411","Provisions (Not for resale)","16/10/2017"
"Wolverhampton City Council","http://opendatacommunities.org/id/metropolitan-district-council/wolverhampton","HOLIDAY INN DARL","65.00","Safeguarding Admin Resource","5812","Accommodation Costs","16/10/2017"
"Wolverhampton City Council","http://opendatacommunities.org/id/metropolitan-district-council/wolverhampton","THE POST OFFICE","1.75","CIN/CP Social Work Unit - Area 4","9402","Comms - Postage","16/10/2017"
"Wolverhampton City Council","http://opendatacommunities.org/id/metropolitan-district-council/wolverhampton","VODAFONE LTD","8.33","Children & Family Contact Services","4814","Comms - Telephone Call charges","16/10/2017"
"Wolverhampton City Council","http://opendatacommunities.org/id/metropolitan-district-council/wolverhampton","Amazon UK Marketplace","93.79","SEN Early Years Team","5942","Equipment - Purchase","16/10/2017"
"Wolverhampton City Council","http://opendatacommunities.org/id/metropolitan-district-council/wolverhampton","Amazon UK Marketplace","8.00","SEN Early Years Team","5942","Equipment - Purchase","16/10/2017"
"Wolverhampton City Council","http://opendatacommunities.org/id/metropolitan-district-council/wolverhampton","Amazon UK Marketplace","66.47","SEN Early Years Team","5942","Equipment - Purchase","16/10/2017"
"Wolverhampton City Council","http://opendatacommunities.org/id/metropolitan-district-council/wolverhampton","WWW.ARGOS.CO.UK","164.12","Ernest Bold Court","5310","Equipment - Purchase","16/10/2017"
"Wolverhampton City Council","http://opendatacommunities.org/id/metropolitan-district-council/wolverhampton","VANQUISH INTEGRATED PE","66.00","Passenger Transport - General","5734","Materials","16/10/2017"
"Wolverhampton City Council","http://opendatacommunities.org/id/metropolitan-district-council/wolverhampton","Trainline","93.79","CIN/CP Social Work Unit - Area 4","4112","Section 17","16/10/2017"
"Wolverhampton City Council","http://opendatacommunities.org/id/metropolitan-district-council/wolverhampton","AMAZON.CO.UK","5.98","Aldersley Leisure Village","5942","Books","16/10/2017"
"Wolverhampton City Council","http://opendatacommunities.org/id/metropolitan-district-council/wolverhampton","Amazon UK Marketplace","11.96","Aldersley Leisure Village","5942","Books","16/10/2017"
"Wolverhampton City Council","http://opendatacommunities.org/id/metropolitan-district-council/wolverhampton","CURRYS ONLINE","-24.99","Education Business Partnership","5732","Equipment - Purchase","16/10/2017"
"Wolverhampton City Council","http://opendatacommunities.org/id/metropolitan-district-council/wolverhampton","CURRYS ONLINE","24.99","Education Business Partnership","5732","Equipment - Purchase","16/10/2017"
"Wolverhampton City Council","http://opendatacommunities.org/id/metropolitan-district-council/wolverhampton","SAINSBURYS (2340)","12.42","Mayoral Expenses","5411","Hospitality","16/10/2017"
"Wolverhampton City Council","http://opendatacommunities.org/id/metropolitan-district-council/wolverhampton","E01353600000000","100.00","Childrens with Disabilities Team","6011","No Recourse to Public Funds","16/10/2017"
"Wolverhampton City Council","http://opendatacommunities.org/id/metropolitan-district-council/wolverhampton","E01353600000000","250.00","Childrens with Disabilities Team","6011","No Recourse to Public Funds","16/10/2017"
"Wolverhampton City Council","http://opendatacommunities.org/id/metropolitan-district-council/wolverhampton","LOYD WEDNESFIELD WOLVE","200.00","EIP Locality 8","6011","Grant Payments","16/10/2017"
"Wolverhampton City Council","http://opendatacommunities.org/id/metropolitan-district-council/wolverhampton","LOOP11.COM","154.58","City Direct","7372","Computing - Purchase of Software","16/10/2017"
"Wolverhampton City Council","http://opendatacommunities.org/id/metropolitan-district-council/wolverhampton","123 REG R/T","19.98","City Direct","5968","Subscriptions","16/10/2017"
"Wolverhampton City Council","http://opendatacommunities.org/id/metropolitan-district-council/wolverhampton","ITUNES.COM/BILL","2.07","LAC Education Team (LACE)","5735","Computing - Purchase of Software","16/10/2017"
"Wolverhampton City Council","http://opendatacommunities.org/id/metropolitan-district-council/wolverhampton","POST OFFICE COUNTER","1.45","Cemeteries","9402","Comms - Postage","16/10/2017"
"Wolverhampton City Council","http://opendatacommunities.org/id/metropolitan-district-council/wolverhampton","PREMIER INN","175.83","Homeless Families","3811","TPP - B&B payments to landlords","16/10/2017"
"Wolverhampton City Council","http://opendatacommunities.org/id/metropolitan-district-council/wolverhampton","PREMIER INN","175.83","Homeless Families","3811","TPP - B&B payments to landlords","16/10/2017"
"Wolverhampton City Council","http://opendatacommunities.org/id/metropolitan-district-council/wolverhampton","WM MORRISONS","36.81","Early Years & Universal Service","5411","Provisions (Not for resale)","16/10/2017"
"Wolverhampton City Council","http://opendatacommunities.org/id/metropolitan-district-council/wolverhampton","SHARRATTS SOLICITORS L","179.17","Legal Services","8111","Services - Professional Fees","16/10/2017"
"Wolverhampton City Council","http://opendatacommunities.org/id/metropolitan-district-council/wolverhampton","ASDA HOME SHOPPING","167.32","Upper Pendeford Farm Childrens Home","5411","Provisions (Not for resale)","16/10/2017"
"Wolverhampton City Council","http://opendatacommunities.org/id/metropolitan-district-council/wolverhampton","ASDA HOME SHOPPING","36.40","Upper Pendeford Farm Childrens Home","5411","Provisions (Not for resale)","16/10/2017"
"Wolverhampton City Council","http://opendatacommunities.org/id/metropolitan-district-council/wolverhampton","GO CARZ","5.66","MASH","4121","Section 17","16/10/2017"
"Wolverhampton City Council","http://opendatacommunities.org/id/metropolitan-district-council/wolverhampton","WWW.OAKLANDSWOLVERHAMP","105.00","MASH","7011","Section 17","16/10/2017"
"Wolverhampton City Council","http://opendatacommunities.org/id/metropolitan-district-council/wolverhampton","AMZ Electromarket","-115.83","Headstart Phase 3","5999","Equipment - Purchase","16/10/2017"
"Wolverhampton City Council","http://opendatacommunities.org/id/metropolitan-district-council/wolverhampton","ESSENTRA","47.50","Telecare","5085","Equipment - Purchase","16/10/2017"
"Wolverhampton City Council","http://opendatacommunities.org/id/metropolitan-district-council/wolverhampton","SCREWFIX DIRECT","361.67","Telecare","5211","Materials","16/10/2017"
"Wolverhampton City Council","http://opendatacommunities.org/id/metropolitan-district-council/wolverhampton","ARGOS RETAIL GROUP","63.86","EIP Locality 1","5310","Grant Payments","16/10/2017"
"Wolverhampton City Council","http://opendatacommunities.org/id/metropolitan-district-council/wolverhampton","POST OFFICE COUNTER","7.00","Adoption and Residence Team & Allowances","9402","Comms - Postage","16/10/2017"
"Wolverhampton City Council","http://opendatacommunities.org/id/metropolitan-district-council/wolverhampton","POST OFFICE COUNTER","7.25","Adoption and Residence Team & Allowances","9402","Comms - Postage","16/10/2017"
"Wolverhampton City Council","http://opendatacommunities.org/id/metropolitan-district-council/wolverhampton","STERMAT CAR AND VA","145.00","Towers Outdoor Education Centre","5541","Hire of Vehicles","16/10/2017"
"Wolverhampton City Council","http://opendatacommunities.org/id/metropolitan-district-council/wolverhampton","PREMIER INN","65.41","Quality Assurance & Policies","3811","Services - Supplies & Services to users","16/10/2017"
"Wolverhampton City Council","http://opendatacommunities.org/id/metropolitan-district-council/wolverhampton","AMAZON UK RETAIL AMAZO","12.70","Aldersley Leisure Village","5999","Equipment - Purchase","16/10/2017"
"Wolverhampton City Council","http://opendatacommunities.org/id/metropolitan-district-council/wolverhampton","MEDISAVE","436.79","Older People Provider Management","5047","Equipment - Purchase","16/10/2017"
"Wolverhampton City Council","http://opendatacommunities.org/id/metropolitan-district-council/wolverhampton","WWW.LIGHTS4FUN.CO.","95.99","Visitor Economy - Development","5999","Equipment - Purchase","16/10/2017"
"Wolverhampton City Council","http://opendatacommunities.org/id/metropolitan-district-council/wolverhampton","DULUX DECORATOR CENTRE","32.63","Pop Gallery Space","5198","Materials","16/10/2017"
"Wolverhampton City Council","http://opendatacommunities.org/id/metropolitan-district-council/wolverhampton","AMZ Amazon.co.uk","-4.60","Technical Support","5969","Equipment - Purchase","16/10/2017"
"Wolverhampton City Council","http://opendatacommunities.org/id/metropolitan-district-council/wolverhampton","Wix.com","186.26","Technical Support","5817","Computing - Purchase of Software","16/10/2017"
"Wolverhampton City Council","http://opendatacommunities.org/id/metropolitan-district-council/wolverhampton","Wix.com","93.13","Technical Support","5817","Computing - Purchase of Software","16/10/2017"
"Wolverhampton City Council","http://opendatacommunities.org/id/metropolitan-district-council/wolverhampton","Amazon UK Marketplace","13.81","Global Budgets","5942","Books","16/10/2017"
"Wolverhampton City Council","http://opendatacommunities.org/id/metropolitan-district-council/wolverhampton","Amazon UK Marketplace","10.79","Global Budgets","5942","Books","16/10/2017"
"Wolverhampton City Council","http://opendatacommunities.org/id/metropolitan-district-council/wolverhampton","Amazon UK Marketplace","12.25","Global Budgets","5942","Books","16/10/2017"
"Wolverhampton City Council","http://opendatacommunities.org/id/metropolitan-district-council/wolverhampton","B & Q 1243","10.80","Ernest Bold Court","5211","Equipment - R & M","16/10/2017"
"Wolverhampton City Council","http://opendatacommunities.org/id/metropolitan-district-council/wolverhampton","CLAREGATE S.STN FS408","6.27","Learning Disabilities Management","5541","Petrol","16/10/2017"
"Wolverhampton City Council","http://opendatacommunities.org/id/metropolitan-district-council/wolverhampton","Amazon EU","16.99","Education And Access","5969","Books","16/10/2017"
"Wolverhampton City Council","http://opendatacommunities.org/id/metropolitan-district-council/wolverhampton","Amazon UK Marketplace","0.00","EIP Locality 5","5942","Equipment - Purchase","16/10/2017"
"Wolverhampton City Council","http://opendatacommunities.org/id/metropolitan-district-council/wolverhampton","Amazon UK Marketplace","29.93","Strategic ICTS (ICT Serv Budget)","5942","Computing - Purchase of Hardware","16/10/2017"
"Wolverhampton City Council","http://opendatacommunities.org/id/metropolitan-district-council/wolverhampton","WWW.WMCA.CO.UK","88.00","CIN/CP Social Work Unit - Area 3","9399","Client Transport","16/10/2017"
"Wolverhampton City Council","http://opendatacommunities.org/id/metropolitan-district-council/wolverhampton","J P LENNARD LTD","197.40","Aldersley Leisure Village","5941","Equipment - Purchase","13/10/2017"
"Wolverhampton City Council","http://opendatacommunities.org/id/metropolitan-district-council/wolverhampton","Virgin Trains","176.00","Fostering Team & Allowances","4112","Public Transport","13/10/2017"
"Wolverhampton City Council","http://opendatacommunities.org/id/metropolitan-district-council/wolverhampton","WATERLOO HOTEL","359.73","Headstart - Learning Technologies Team","7011","Accommodation Costs","13/10/2017"
"Wolverhampton City Council","http://opendatacommunities.org/id/metropolitan-district-council/wolverhampton","WATERLOO HOTEL","359.73","Headstart - Learning Technologies Team","7011","Accommodation Costs","13/10/2017"
"Wolverhampton City Council","http://opendatacommunities.org/id/metropolitan-district-council/wolverhampton","WATERLOO HOTEL","191.67","Headstart - Learning Technologies Team","7011","Accommodation Costs","13/10/2017"
"Wolverhampton City Council","http://opendatacommunities.org/id/metropolitan-district-council/wolverhampton","CURRYS ONLINE","24.99","Education Business Partnership","5732","Equipment - Purchase","13/10/2017"
"Wolverhampton City Council","http://opendatacommunities.org/id/metropolitan-district-council/wolverhampton","TRAINLINE","-154.00","AES Staff Development","4112","Public Transport","13/10/2017"
"Wolverhampton City Council","http://opendatacommunities.org/id/metropolitan-district-council/wolverhampton","Trainline","18.11","AES Staff Development","4112","Public Transport","13/10/2017"
"Wolverhampton City Council","http://opendatacommunities.org/id/metropolitan-district-council/wolverhampton","Trainline","158.61","AES Staff Development","4112","Public Transport","13/10/2017"
"Wolverhampton City Council","http://opendatacommunities.org/id/metropolitan-district-council/wolverhampton","Trainline","57.63","AES Staff Development","4112","Public Transport","13/10/2017"
"Wolverhampton City Council","http://opendatacommunities.org/id/metropolitan-district-council/wolverhampton","WWW.ARGOS.CO.UK","-88.94","LAC Transitions Team","5310","Client Allowances","13/10/2017"
"Wolverhampton City Council","http://opendatacommunities.org/id/metropolitan-district-council/wolverhampton","WWW.ARGOS.CO.UK","88.94","LAC Transitions Team","5310","Client Allowances","13/10/2017"
"Wolverhampton City Council","http://opendatacommunities.org/id/metropolitan-district-council/wolverhampton","STAGEDEPOT.CO.UK","62.72","Maintenance of Exhibits","5251","Materials","13/10/2017"
"Wolverhampton City Council","http://opendatacommunities.org/id/metropolitan-district-council/wolverhampton","Amazon UK Marketplace","5.99","Street Lighting Maintenance","5942","Books","13/10/2017"
"Wolverhampton City Council","http://opendatacommunities.org/id/metropolitan-district-council/wolverhampton","WLY COMPLETESAVE.CO.UK","-15.00","CIN/CP Social Work Unit - Area 8","5968","Subscriptions","13/10/2017"
"Wolverhampton City Council","http://opendatacommunities.org/id/metropolitan-district-council/wolverhampton","BLAS AR FWYD CYF","102.23","Towers Outdoor Education Centre","5812","Provisions (Not for resale)","13/10/2017"
"Wolverhampton City Council","http://opendatacommunities.org/id/metropolitan-district-council/wolverhampton","TRAVELODGE","91.04","Environmental Health - Pub Prot - Gen","3615","Services - Supplies & Services to users","13/10/2017"
"Wolverhampton City Council","http://opendatacommunities.org/id/metropolitan-district-council/wolverhampton","POST OFFICE COUNTER","3.40","Northicote Farm","9402","Comms - Postage","13/10/2017"
"Wolverhampton City Council","http://opendatacommunities.org/id/metropolitan-district-council/wolverhampton","WWW.ARGOS.CO.UK","88.94","LAC Transitions Team","5310","Client Allowances","13/10/2017"
"Wolverhampton City Council","http://opendatacommunities.org/id/metropolitan-district-council/wolverhampton","CUMMINGS BROTHERS LOCK","4.17","Public Conveniences","7399","R&M - Departmental planned (external)","13/10/2017"
"Wolverhampton City Council","http://opendatacommunities.org/id/metropolitan-district-council/wolverhampton","PMC ELECTRICS LIMI","26.22","Delivery & OCE Development","4812","Computing - Consumables","13/10/2017"
"Wolverhampton City Council","http://opendatacommunities.org/id/metropolitan-district-council/wolverhampton","WEST COAST TRAINS","9.40","Managing Director","4112","Public Transport","13/10/2017"
"Wolverhampton City Council","http://opendatacommunities.org/id/metropolitan-district-council/wolverhampton","WICKES","28.66","Central Baths","5211","Materials","13/10/2017"
"Wolverhampton City Council","http://opendatacommunities.org/id/metropolitan-district-council/wolverhampton","ASDA GEORGE COM LEEDS","-3.00","EIP Locality 5","5411","Grant Payments","13/10/2017"
"Wolverhampton City Council","http://opendatacommunities.org/id/metropolitan-district-council/wolverhampton","WILKO.COM","49.00","MASH","5722","Stationery","13/10/2017"
"Wolverhampton City Council","http://opendatacommunities.org/id/metropolitan-district-council/wolverhampton","CARVER/WOLVERHAMPTON/L","29.56","Cleaning of Buildings - General","5211","Materials","13/10/2017"
"Wolverhampton City Council","http://opendatacommunities.org/id/metropolitan-district-council/wolverhampton","TESCO STORES 5397","5.85","EIP Locality 1","5411","Provisions (Not for resale)","13/10/2017"
"Wolverhampton City Council","http://opendatacommunities.org/id/metropolitan-district-council/wolverhampton","PREMIER INN","83.32","Pop Gallery Space","3811","Services - Supplies & Services to users","13/10/2017"
"Wolverhampton City Council","http://opendatacommunities.org/id/metropolitan-district-council/wolverhampton","Wix.com","93.13","Technical Support","5817","Computing - Purchase of Software","13/10/2017"
"Wolverhampton City Council","http://opendatacommunities.org/id/metropolitan-district-council/wolverhampton","Amazon UK Marketplace","33.89","Global Budgets","5942","Books","13/10/2017"
"Wolverhampton City Council","http://opendatacommunities.org/id/metropolitan-district-council/wolverhampton","PARK CENTRAL HOTEL","226.80","Strategic Director People","7011","Accommodation Costs","13/10/2017"
"Wolverhampton City Council","http://opendatacommunities.org/id/metropolitan-district-council/wolverhampton","ROYAL EXETER HOTEL","510.00","Service Director Older People","7011","Accommodation Costs","13/10/2017"
"Wolverhampton City Council","http://opendatacommunities.org/id/metropolitan-district-council/wolverhampton","Trainline","99.65","Safeguarding Admin Resource","4112","Public Transport","13/10/2017"
"Wolverhampton City Council","http://opendatacommunities.org/id/metropolitan-district-council/wolverhampton","Amazon UK Marketplace","80.45","Car Parks Operational Staff","5942","Equipment - R & M","13/10/2017"
"Wolverhampton City Council","http://opendatacommunities.org/id/metropolitan-district-council/wolverhampton","AMAZON.CO.UK","1.30","Car Parks Operational Staff","5942","Equipment - R & M","13/10/2017"
"Wolverhampton City Council","http://opendatacommunities.org/id/metropolitan-district-council/wolverhampton","REDWINGS LODGE","419.65","CIN/CP Social Work Unit - Area 7","7011","No Recourse to Public Funds","13/10/2017"
"Wolverhampton City Council","http://opendatacommunities.org/id/metropolitan-district-council/wolverhampton","WWW.CII.CO.UK","106.00","Central Training","8699","Training Expenses","13/10/2017"
"Wolverhampton City Council","http://opendatacommunities.org/id/metropolitan-district-council/wolverhampton","THE FLAG SHOP LTD","6.66","Mayoral Expenses","5999","Stationery","13/10/2017"
"Wolverhampton City Council","http://opendatacommunities.org/id/metropolitan-district-council/wolverhampton","Amazon UK Marketplace","31.92","Mayoral Expenses","5942","Stationery","13/10/2017"
"Wolverhampton City Council","http://opendatacommunities.org/id/metropolitan-district-council/wolverhampton","SAINSBURYS (2340)","25.95","Mayoral Expenses","5411","Hospitality","13/10/2017"
"Wolverhampton City Council","http://opendatacommunities.org/id/metropolitan-district-council/wolverhampton","Akzonobel","-131.95","Maintenance of Exhibits","5198","Materials","13/10/2017"
"Wolverhampton City Council","http://opendatacommunities.org/id/metropolitan-district-council/wolverhampton","AMAZON EU AMAZON.CO.UK","20.64","Maintenance of Exhibits","5999","Equipment - Purchase","13/10/2017"
"Wolverhampton City Council","http://opendatacommunities.org/id/metropolitan-district-council/wolverhampton","Virgin Trains","55.20","Adoption and Residence Team & Allowances","4112","Public Transport","13/10/2017"
"Wolverhampton City Council","http://opendatacommunities.org/id/metropolitan-district-council/wolverhampton","J P LENNARD LTD","100.92","Aldersley Leisure Village","5941","Equipment - Purchase","13/10/2017"
"Wolverhampton City Council","http://opendatacommunities.org/id/metropolitan-district-council/wolverhampton","HSBC INVOICE FINAN","224.59","Towers Outdoor Education Centre","6012","Laundry Expenses","12/10/2017"
"Wolverhampton City Council","http://opendatacommunities.org/id/metropolitan-district-council/wolverhampton","Amazon EU","9.97","Towers Outdoor Education Centre","5969","Equipment - Purchase","12/10/2017"
"Wolverhampton City Council","http://opendatacommunities.org/id/metropolitan-district-council/wolverhampton","PETER LUCAS TOOLS","52.95","Towers Outdoor Education Centre","7394","Fixtures and Fittings - Purchases","12/10/2017"
"Wolverhampton City Council","http://opendatacommunities.org/id/metropolitan-district-council/wolverhampton","B&Q DIRECT","203.33","EIP Locality 4","5211","Materials","12/10/2017"
"Wolverhampton City Council","http://opendatacommunities.org/id/metropolitan-district-council/wolverhampton","B&M RETAIL","16.62","Aldersley Leisure Village","5310","Equipment - Purchase","12/10/2017"
"Wolverhampton City Council","http://opendatacommunities.org/id/metropolitan-district-council/wolverhampton","BOC GASES","62.37","Delivery & OCE Development","5722","Equipment - Purchase","12/10/2017"
"Wolverhampton City Council","http://opendatacommunities.org/id/metropolitan-district-council/wolverhampton","WWW.ISTOCK.COM","310.00","Communications & Marketing - General","5971","Services - Professional Fees","12/10/2017"
"Wolverhampton City Council","http://opendatacommunities.org/id/metropolitan-district-council/wolverhampton","ASDA SUPERSTORE","134.83","Headstart - Young People Engagement","5411","Provisions (Not for resale)","12/10/2017"
"Wolverhampton City Council","http://opendatacommunities.org/id/metropolitan-district-council/wolverhampton","TESCO DELIVERY SAVER2","3.49","Towers Outdoor Education Centre","5968","Subscriptions","12/10/2017"
"Wolverhampton City Council","http://opendatacommunities.org/id/metropolitan-district-council/wolverhampton","MARKS&SPENCER PLC","-136.80","Delivery & OCE Development","5411","Provisions (Not for resale)","12/10/2017"
"Wolverhampton City Council","http://opendatacommunities.org/id/metropolitan-district-council/wolverhampton","THORNTONS LTD","25.95","Delivery & OCE Development","5441","Subsistence","12/10/2017"
"Wolverhampton City Council","http://opendatacommunities.org/id/metropolitan-district-council/wolverhampton","AMAZON.CO.UK","14.94","Building Consultancy","5942","Equipment - Purchase","12/10/2017"
"Wolverhampton City Council","http://opendatacommunities.org/id/metropolitan-district-council/wolverhampton","Virgin Trains","106.90","Environmental Health - Pub Prot - Gen","4112","Public Transport","12/10/2017"
"Wolverhampton City Council","http://opendatacommunities.org/id/metropolitan-district-council/wolverhampton","Amazon UK Marketplace","33.29","Visitor Economy - Development","5942","Equipment - Purchase","12/10/2017"
"Wolverhampton City Council","http://opendatacommunities.org/id/metropolitan-district-council/wolverhampton","WILKO RETAIL LIMIT","5.00","Connexions Contract","5722","Computing - Consumables","12/10/2017"
"Wolverhampton City Council","http://opendatacommunities.org/id/metropolitan-district-council/wolverhampton","ARGOS LTD","-6.06","CIN/CP Social Work Unit - Area 2","5310","Section 17","12/10/2017"
"Wolverhampton City Council","http://opendatacommunities.org/id/metropolitan-district-council/wolverhampton","Trainline","194.82","Legal Services","4112","Public Transport","12/10/2017"
"Wolverhampton City Council","http://opendatacommunities.org/id/metropolitan-district-council/wolverhampton","GRO HM PASSPORT OFFICE","46.80","Head of Service - CINCP","9399","Services - Professional Fees","12/10/2017"
"Wolverhampton City Council","http://opendatacommunities.org/id/metropolitan-district-council/wolverhampton","Amazon UK Marketplace","53.90","SEN Early Years Team","5942","Equipment - Purchase","12/10/2017"
"Wolverhampton City Council","http://opendatacommunities.org/id/metropolitan-district-council/wolverhampton","Amazon UK Marketplace","26.75","SEN Early Years Team","5942","Equipment - Purchase","12/10/2017"
"Wolverhampton City Council","http://opendatacommunities.org/id/metropolitan-district-council/wolverhampton","Amazon UK Marketplace","66.95","SEN Early Years Team","5942","Equipment - Purchase","12/10/2017"
"Wolverhampton City Council","http://opendatacommunities.org/id/metropolitan-district-council/wolverhampton","WWW.JPLEISURE.CO.UK","309.39","Maintenance of Exhibits","5722","Equipment - Purchase","12/10/2017"
"Wolverhampton City Council","http://opendatacommunities.org/id/metropolitan-district-council/wolverhampton","Akzonobel","131.95","Maintenance of Exhibits","5198","Materials","12/10/2017"
"Wolverhampton City Council","http://opendatacommunities.org/id/metropolitan-district-council/wolverhampton","Amazon UK Marketplace","4.98","Street Lighting Maintenance","5942","Books","12/10/2017"
"Wolverhampton City Council","http://opendatacommunities.org/id/metropolitan-district-council/wolverhampton","Amazon UK Marketplace","5.99","Street Lighting Maintenance","5942","Books","12/10/2017"
"Wolverhampton City Council","http://opendatacommunities.org/id/metropolitan-district-council/wolverhampton","TFM FARM & COUNTRY SUP","114.22","Northicote Farm","5399","Equipment - Purchase","12/10/2017"
"Wolverhampton City Council","http://opendatacommunities.org/id/metropolitan-district-council/wolverhampton","TFM FARM & COUNTRY SUP","120.43","Northicote Farm","5399","Equipment - Purchase","12/10/2017"
"Wolverhampton City Council","http://opendatacommunities.org/id/metropolitan-district-council/wolverhampton","WEST COAST TRAINS","12.00","Managing Director","7523","Car Allowances","12/10/2017"
"Wolverhampton City Council","http://opendatacommunities.org/id/metropolitan-district-council/wolverhampton","WEST COAST TRAINS","9.40","Managing Director","4112","Public Transport","12/10/2017"
"Wolverhampton City Council","http://opendatacommunities.org/id/metropolitan-district-council/wolverhampton","Virgin Trains","64.40","Audit Services","4112","Public Transport","12/10/2017"
"Wolverhampton City Council","http://opendatacommunities.org/id/metropolitan-district-council/wolverhampton","ARGOS LTD","33.53","CIN/CP Social Work Unit - Area 2","5310","Section 17","12/10/2017"
"Wolverhampton City Council","http://opendatacommunities.org/id/metropolitan-district-council/wolverhampton","DULUX DECORATOR CENTRE","6.64","Pop Gallery Space","5198","Materials","12/10/2017"
"Wolverhampton City Council","http://opendatacommunities.org/id/metropolitan-district-council/wolverhampton","DULUX DECORATOR CENTRE","29.31","Pop Gallery Space","5198","Materials","12/10/2017"
"Wolverhampton City Council","http://opendatacommunities.org/id/metropolitan-district-council/wolverhampton","ROYAL EXETER HOTEL","510.00","Children & Young People Support Costs","7011","Services - Supplies & Services to users","12/10/2017"
"Wolverhampton City Council","http://opendatacommunities.org/id/metropolitan-district-council/wolverhampton","E01577600000000","200.00","EIP Locality 3","6011","Grant Payments","12/10/2017"
"Wolverhampton City Council","http://opendatacommunities.org/id/metropolitan-district-council/wolverhampton","CUMMINGS BROTHERS LOCK","3.33","Global Budgets","7399","Equipment - Purchase","12/10/2017"
"Wolverhampton City Council","http://opendatacommunities.org/id/metropolitan-district-council/wolverhampton","TVLICENSING.CO.UK","147.00","LAC Transitions Team","7392","Client Allowances","12/10/2017"
"Wolverhampton City Council","http://opendatacommunities.org/id/metropolitan-district-council/wolverhampton","TOOLSTATION LTD","20.70","Education Catering - General Overheads","5251","Catering","12/10/2017"
"Wolverhampton City Council","http://opendatacommunities.org/id/metropolitan-district-council/wolverhampton","CUMMINGS BROTHERS LOCK","69.25","Strategy & Development","7399","Equipment - Purchase","12/10/2017"
"Wolverhampton City Council","http://opendatacommunities.org/id/metropolitan-district-council/wolverhampton","WAITROSE 696","40.32","Music Support Team","5411","Stationery","12/10/2017"
"Wolverhampton City Council","http://opendatacommunities.org/id/metropolitan-district-council/wolverhampton","WWW.WMCA.CO.UK","109.00","IMPACT","9399","Services - Fees and Charges","12/10/2017"
"Wolverhampton City Council","http://opendatacommunities.org/id/metropolitan-district-council/wolverhampton","REGISTRARS OFFICE","30.00","IMPACT","8299","Training Expenses","12/10/2017"
"Wolverhampton City Council","http://opendatacommunities.org/id/metropolitan-district-council/wolverhampton","SUK RETAIL LTD","226.19","Macmillan Welfare Rights","5943","Stationery","12/10/2017"
"Wolverhampton City Council","http://opendatacommunities.org/id/metropolitan-district-council/wolverhampton","PAYPAL  PATHWAY","270.00","City Direct","7311","Marketing \ Non-staff advertising","12/10/2017"
"Wolverhampton City Council","http://opendatacommunities.org/id/metropolitan-district-council/wolverhampton","OCEANIC SAUNAS LIMITED","215.33","Central Baths","5996","Equipment - Purchase","12/10/2017"
"Wolverhampton City Council","http://opendatacommunities.org/id/metropolitan-district-council/wolverhampton","HOME BARGAINS WOLVERHA","33.96","CIN/CP Social Work Unit - Area 3","5251","Section 17","12/10/2017"
"Wolverhampton City Council","http://opendatacommunities.org/id/metropolitan-district-council/wolverhampton","CROWN PROPERTY SERVICE","280.00","CIN/CP Social Work Unit - Area 3","7011","Section 17","12/10/2017"
"Wolverhampton City Council","http://opendatacommunities.org/id/metropolitan-district-council/wolverhampton","E020539 0000000","20.00","Emergency Duty Team","6011","Financial Assistance In Exceptional Circ","12/10/2017"
"Wolverhampton City Council","http://opendatacommunities.org/id/metropolitan-district-council/wolverhampton","E01510300000000","50.00","Emergency Duty Team","6011","Financial Assistance In Exceptional Circ","12/10/2017"
"Wolverhampton City Council","http://opendatacommunities.org/id/metropolitan-district-council/wolverhampton","Virgin Trains","127.00","Service Director Disab & Mental Health","4112","Public Transport","12/10/2017"
"Wolverhampton City Council","http://opendatacommunities.org/id/metropolitan-district-council/wolverhampton","AMAZON.CO.UK","37.05","Central Costs","5942","Equipment - Purchase","12/10/2017"
"Wolverhampton City Council","http://opendatacommunities.org/id/metropolitan-district-council/wolverhampton","GO CARZ","5.35","MASH","4121","Section 17","12/10/2017"
"Wolverhampton City Council","http://opendatacommunities.org/id/metropolitan-district-council/wolverhampton","GO CARZ","5.25","MASH","4121","Section 17","12/10/2017"
"Wolverhampton City Council","http://opendatacommunities.org/id/metropolitan-district-council/wolverhampton","GOOGLE  ADWS9680351324","151.13","Communications & Marketing - General","5968","Subscriptions","12/10/2017"
"Wolverhampton City Council","http://opendatacommunities.org/id/metropolitan-district-council/wolverhampton","Trainline","149.07","LAC Education Team (LACE)","4112","Public Transport","12/10/2017"
"Wolverhampton City Council","http://opendatacommunities.org/id/metropolitan-district-council/wolverhampton","Trainline","53.55","LAC Transitions Team","4112","Client Allowances","12/10/2017"
"Wolverhampton City Council","http://opendatacommunities.org/id/metropolitan-district-council/wolverhampton","WWW.ARGOS.CO.UK","83.94","LAC Transitions Team","5310","Client Allowances","12/10/2017"
"Wolverhampton City Council","http://opendatacommunities.org/id/metropolitan-district-council/wolverhampton","SCREWFIX DIRECT","9.99","Statutory Services (10RM)","5211","R&M - Departmental planned (external)","12/10/2017"
"Wolverhampton City Council","http://opendatacommunities.org/id/metropolitan-district-council/wolverhampton","SurveyMonkey","35.00","Children 5-19","7372","Computing - Purchase of Software","12/10/2017"
"Wolverhampton City Council","http://opendatacommunities.org/id/metropolitan-district-council/wolverhampton","LOYD 89 CHURCH STREET","200.00","EIP Locality 2","6011","Grant Payments","12/10/2017"
"Wolverhampton City Council","http://opendatacommunities.org/id/metropolitan-district-council/wolverhampton","JOLLY CATERING","100.00","Early Years & Universal Service","5811","Catering","12/10/2017"
"Wolverhampton City Council","http://opendatacommunities.org/id/metropolitan-district-council/wolverhampton","TESCO STORES 5194","70.49","Towers Outdoor Education Centre","5411","Provisions (Not for resale)","11/10/2017"
"Wolverhampton City Council","http://opendatacommunities.org/id/metropolitan-district-council/wolverhampton","Trainline","60.59","CIN/CP Social Work Unit - Area 6","4112","Section 17","11/10/2017"
"Wolverhampton City Council","http://opendatacommunities.org/id/metropolitan-district-council/wolverhampton","BLOXWICH  SST","7.00","Economic Development","4112","Public Transport","11/10/2017"
"Wolverhampton City Council","http://opendatacommunities.org/id/metropolitan-district-council/wolverhampton","ASDA SUPERSTORE","25.28","Headstart - Young People Engagement","5411","Stationery","11/10/2017"
"Wolverhampton City Council","http://opendatacommunities.org/id/metropolitan-district-council/wolverhampton","Trainline","106.90","Youth Offending Team","4112","Public Transport","11/10/2017"
"Wolverhampton City Council","http://opendatacommunities.org/id/metropolitan-district-council/wolverhampton","LOYD WEDNESFIELD WOLVE","240.00","Duke Street Bungalows","6011","Provisions (Not for resale)","11/10/2017"
"Wolverhampton City Council","http://opendatacommunities.org/id/metropolitan-district-council/wolverhampton","LOYD WEDNESFIELD WOLVE","200.00","Duke Street Bungalows","6011","Provisions (Not for resale)","11/10/2017"
"Wolverhampton City Council","http://opendatacommunities.org/id/metropolitan-district-council/wolverhampton","WWW.SEVERNTRENTSEARCHE","325.00","Disposal Costs","4900","Services - Professional Fees","11/10/2017"
"Wolverhampton City Council","http://opendatacommunities.org/id/metropolitan-district-council/wolverhampton","Amazon UK Marketplace","25.95","SEN Early Years Team","5942","Equipment - Purchase","11/10/2017"
"Wolverhampton City Council","http://opendatacommunities.org/id/metropolitan-district-council/wolverhampton","Amazon UK Marketplace","45.92","SEN Early Years Team","5942","Books","11/10/2017"
"Wolverhampton City Council","http://opendatacommunities.org/id/metropolitan-district-council/wolverhampton","Amazon UK Marketplace","7.38","SEN Early Years Team","5942","Equipment - Purchase","11/10/2017"
"Wolverhampton City Council","http://opendatacommunities.org/id/metropolitan-district-council/wolverhampton","Amazon UK Marketplace","17.96","SEN Early Years Team","5942","Books","11/10/2017"
"Wolverhampton City Council","http://opendatacommunities.org/id/metropolitan-district-council/wolverhampton","MARKS&SPENCER PLC SACA","5.21","Mayoral Expenses","5411","Hospitality","11/10/2017"
"Wolverhampton City Council","http://opendatacommunities.org/id/metropolitan-district-council/wolverhampton","ONLINE.OFFICEDEPOT.CO.","115.04","Passenger Transport - General","5111","Stationery","11/10/2017"
"Wolverhampton City Council","http://opendatacommunities.org/id/metropolitan-district-council/wolverhampton","HIGHFIELD HOUSE HO","385.00","CIN/CP Social Work Unit - Area 3","7011","No Recourse to Public Funds","11/10/2017"
"Wolverhampton City Council","http://opendatacommunities.org/id/metropolitan-district-council/wolverhampton","UNTOUCHABLES","27.50","Cemeteries","5231","Materials","11/10/2017"
"Wolverhampton City Council","http://opendatacommunities.org/id/metropolitan-district-council/wolverhampton","UNTOUCHABLES","50.00","Cemeteries","5231","Materials","11/10/2017"
"Wolverhampton City Council","http://opendatacommunities.org/id/metropolitan-district-council/wolverhampton","WWW.THEWORKS.CO.UK","27.00","CIN/CP Social Work Unit - Area 6","5310","Equipment - Purchase","11/10/2017"
"Wolverhampton City Council","http://opendatacommunities.org/id/metropolitan-district-council/wolverhampton","Trainline","100.47","Public Health Commissioning","4112","Public Transport","11/10/2017"
"Wolverhampton City Council","http://opendatacommunities.org/id/metropolitan-district-council/wolverhampton","WEST COAST TRAINS","12.00","Managing Director","7523","Car Allowances","11/10/2017"
"Wolverhampton City Council","http://opendatacommunities.org/id/metropolitan-district-council/wolverhampton","WEST COAST TRAINS","9.40","Managing Director","4112","Public Transport","11/10/2017"
"Wolverhampton City Council","http://opendatacommunities.org/id/metropolitan-district-council/wolverhampton","WWWBHANGRABLAZECOM","20.00","WV Active Business Support","7997","Training Expenses","11/10/2017"
"Wolverhampton City Council","http://opendatacommunities.org/id/metropolitan-district-council/wolverhampton","ASDA SUPERSTORE","20.00","CIN/CP Social Work Unit - Area 3","5411","Section 17","11/10/2017"
"Wolverhampton City Council","http://opendatacommunities.org/id/metropolitan-district-council/wolverhampton","ASDA SUPERSTORE","100.00","CIN/CP Social Work Unit - Area 3","5411","Section 17","11/10/2017"
"Wolverhampton City Council","http://opendatacommunities.org/id/metropolitan-district-council/wolverhampton","ASDA SUPERSTORE","200.00","CIN/CP Social Work Unit - Area 3","5411","Section 17","11/10/2017"
"Wolverhampton City Council","http://opendatacommunities.org/id/metropolitan-district-council/wolverhampton","AMFBOWLING.CO.UK","16.17","CIN/CP Social Work Unit - Area 3","7933","Section 17","11/10/2017"
"Wolverhampton City Council","http://opendatacommunities.org/id/metropolitan-district-council/wolverhampton","TIMPSON LTD","12.00","CIN/CP Social Work Unit - Area 3","7251","Stationery","11/10/2017"
"Wolverhampton City Council","http://opendatacommunities.org/id/metropolitan-district-council/wolverhampton","W M MORRISONS.COM","68.86","Discretionary Fund","5411","Materials","11/10/2017"
"Wolverhampton City Council","http://opendatacommunities.org/id/metropolitan-district-council/wolverhampton","DIGITAL ID","215.94","Service Wide","5045","Computing - Purchase of Hardware","11/10/2017"
"Wolverhampton City Council","http://opendatacommunities.org/id/metropolitan-district-council/wolverhampton","Amazon UK Marketplace","12.79","Archives","5942","Books","11/10/2017"
"Wolverhampton City Council","http://opendatacommunities.org/id/metropolitan-district-council/wolverhampton","WWW.NEXTDAYCOFFEE.CO.U","11.78","EIP Locality 2","5499","Catering","11/10/2017"
"Wolverhampton City Council","http://opendatacommunities.org/id/metropolitan-district-council/wolverhampton","POST OFFICE COUNTER","195.00","Vulnerable Young Persons Team","9402","Comms - Postage","11/10/2017"
"Wolverhampton City Council","http://opendatacommunities.org/id/metropolitan-district-council/wolverhampton","THE RANGE","132.20","Learning Disabilities Management","5311","Equipment - Purchase","11/10/2017"
"Wolverhampton City Council","http://opendatacommunities.org/id/metropolitan-district-council/wolverhampton","FSPRG.UK","5.05","Technical Support","5818","Subscriptions","11/10/2017"
"Wolverhampton City Council","http://opendatacommunities.org/id/metropolitan-district-council/wolverhampton","Amazon UK Marketplace","605.00","Technical Support","5942","Computing - Purchase of Hardware","11/10/2017"
"Wolverhampton City Council","http://opendatacommunities.org/id/metropolitan-district-council/wolverhampton","WWW.ARGOS.CO.UK","124.99","EIP Locality 3","5310","Grant Payments","11/10/2017"
"Wolverhampton City Council","http://opendatacommunities.org/id/metropolitan-district-council/wolverhampton","WWW.ARGOS.CO.UK","306.93","EIP Locality 3","5310","Grant Payments","11/10/2017"
"Wolverhampton City Council","http://opendatacommunities.org/id/metropolitan-district-council/wolverhampton","Amazon EU","57.97","Education And Access","5969","Books","11/10/2017"
"Wolverhampton City Council","http://opendatacommunities.org/id/metropolitan-district-council/wolverhampton","REDWINGS LODGE","166.54","CIN/CP Social Work Unit - Area 5","7011","Section 17","11/10/2017"
"Wolverhampton City Council","http://opendatacommunities.org/id/metropolitan-district-council/wolverhampton","AMAZON.CO.UK","9.60","Towers Outdoor Education Centre","5942","Equipment - Purchase","10/10/2017"
"Wolverhampton City Council","http://opendatacommunities.org/id/metropolitan-district-council/wolverhampton","FUEL CARD SERVICES LTD","222.15","Towers Outdoor Education Centre","7399","Petrol","10/10/2017"
"Wolverhampton City Council","http://opendatacommunities.org/id/metropolitan-district-council/wolverhampton","WYNNSTAY ARGICULTURAL","65.63","Towers Outdoor Education Centre","5311","Fixtures and Fittings - Purchases","10/10/2017"
"Wolverhampton City Council","http://opendatacommunities.org/id/metropolitan-district-council/wolverhampton","C L JONES LIMITED","383.14","Towers Outdoor Education Centre","5211","Fixtures and Fittings - Purchases","10/10/2017"
"Wolverhampton City Council","http://opendatacommunities.org/id/metropolitan-district-council/wolverhampton","HN NUTTALL LTD","458.16","Towers Outdoor Education Centre","5085","Provisions (Not for resale)","10/10/2017"
"Wolverhampton City Council","http://opendatacommunities.org/id/metropolitan-district-council/wolverhampton","000002200500000","250.00","CIN/CP Social Work Unit - Area 6","6011","Financial Assistance In Exceptional Circ","10/10/2017"
"Wolverhampton City Council","http://opendatacommunities.org/id/metropolitan-district-council/wolverhampton","WEST COAST TRAINS","4.10","Economic Development","4112","Public Transport","10/10/2017"
"Wolverhampton City Council","http://opendatacommunities.org/id/metropolitan-district-council/wolverhampton","BLOXWICH  SST","4.10","Economic Development","4112","Public Transport","10/10/2017"
"Wolverhampton City Council","http://opendatacommunities.org/id/metropolitan-district-council/wolverhampton","WWW.C-S.UK.COM","139.87","Delivery & OCE Development","2741","Publications","10/10/2017"
"Wolverhampton City Council","http://opendatacommunities.org/id/metropolitan-district-council/wolverhampton","WAITROSE 696","1.92","Headstart - Young People Engagement","5411","Subsistence","10/10/2017"
"Wolverhampton City Council","http://opendatacommunities.org/id/metropolitan-district-council/wolverhampton","PP JGPRINTING","66.67","IMPACT","5699","Equipment - Purchase","10/10/2017"
"Wolverhampton City Council","http://opendatacommunities.org/id/metropolitan-district-council/wolverhampton","Amazon UK Marketplace","109.66","Aldersley Leisure Village","5942","Books","10/10/2017"
"Wolverhampton City Council","http://opendatacommunities.org/id/metropolitan-district-council/wolverhampton","Trainline","66.81","AES Staff Development","4112","Public Transport","10/10/2017"
"Wolverhampton City Council","http://opendatacommunities.org/id/metropolitan-district-council/wolverhampton","VWO.com","46.44","City Direct","7399","Equipment - Purchase","10/10/2017"
"Wolverhampton City Council","http://opendatacommunities.org/id/metropolitan-district-council/wolverhampton","PAYPAL  GOCUSTOMIZE","76.97","Strategic ICTS (ICT Serv Budget)","5946","Equipment - Purchase","10/10/2017"
"Wolverhampton City Council","http://opendatacommunities.org/id/metropolitan-district-council/wolverhampton","Virgin Trains","160.30","Audit Services","4112","Public Transport","10/10/2017"
"Wolverhampton City Council","http://opendatacommunities.org/id/metropolitan-district-council/wolverhampton","CONCENTRIC LETTINGS LT","51.50","CIN/CP Social Work Unit - Area 3","8999","No Recourse to Public Funds","10/10/2017"
"Wolverhampton City Council","http://opendatacommunities.org/id/metropolitan-district-council/wolverhampton","THE NEW BRIDGE GUEST H","150.00","Emergency Duty Team","7011","Services - Supplies & Services to users","10/10/2017"
"Wolverhampton City Council","http://opendatacommunities.org/id/metropolitan-district-council/wolverhampton","AMAZON.CO.UK","18.00","Central Costs","5942","Equipment - Purchase","10/10/2017"
"Wolverhampton City Council","http://opendatacommunities.org/id/metropolitan-district-council/wolverhampton","MILL TRADING (MIDDLEWI","58.06","Creative Studies Delivery Area","5719","Equipment - Purchase","10/10/2017"
"Wolverhampton City Council","http://opendatacommunities.org/id/metropolitan-district-council/wolverhampton","REGISTRARS OFFICE","10.00","CIN/CP Social Work Unit - Area 2","8299","Section 17","10/10/2017"
"Wolverhampton City Council","http://opendatacommunities.org/id/metropolitan-district-council/wolverhampton","PAYPAL  BARNARDOS","50.00","EIP Locality 2","8999","Training Expenses","10/10/2017"
"Wolverhampton City Council","http://opendatacommunities.org/id/metropolitan-district-council/wolverhampton","THE RED HOUSE","300.00","Employment Programmes","5691","Equipment - Purchase","10/10/2017"
"Wolverhampton City Council","http://opendatacommunities.org/id/metropolitan-district-council/wolverhampton","Amazon UK Marketplace","129.90","Technical Support","5942","Books","10/10/2017"
"Wolverhampton City Council","http://opendatacommunities.org/id/metropolitan-district-council/wolverhampton","Amazon UK Marketplace","12.99","Technical Support","5942","Books","10/10/2017"
"Wolverhampton City Council","http://opendatacommunities.org/id/metropolitan-district-council/wolverhampton","E01577600000000","180.00","EIP Locality 3","6011","Grant Payments","10/10/2017"
"Wolverhampton City Council","http://opendatacommunities.org/id/metropolitan-district-council/wolverhampton","Amazon EU","23.49","Education And Access","5969","Books","10/10/2017"
"Wolverhampton City Council","http://opendatacommunities.org/id/metropolitan-district-council/wolverhampton","Amazon EU","129.99","Education And Access","5969","Books","10/10/2017"
"Wolverhampton City Council","http://opendatacommunities.org/id/metropolitan-district-council/wolverhampton","WILKO RETAIL LIMIT","23.50","LAC Transitions Team","5722","Client Allowances","10/10/2017"
"Wolverhampton City Council","http://opendatacommunities.org/id/metropolitan-district-council/wolverhampton","ASDA HOME SHOPPING","101.16","Ernest Bold Court","5411","Provisions (Not for resale)","10/10/2017"
"Wolverhampton City Council","http://opendatacommunities.org/id/metropolitan-district-council/wolverhampton","SHROPSHIRE COFFEE","336.68","Cafe","5300","Catering","10/10/2017"
"Wolverhampton City Council","http://opendatacommunities.org/id/metropolitan-district-council/wolverhampton","Amazon Prime","-7.99","Duke Street Bungalows","5968","Subscriptions","10/10/2017"
"Wolverhampton City Council","http://opendatacommunities.org/id/metropolitan-district-council/wolverhampton","Trainline","67.22","CIN/CP Social Work Unit - Area 4","4112","Public Transport","10/10/2017"
"Wolverhampton City Council","http://opendatacommunities.org/id/metropolitan-district-council/wolverhampton","Trainline","61.20","CIN/CP Social Work Unit - Area 4","4112","Public Transport","10/10/2017"
"Wolverhampton City Council","http://opendatacommunities.org/id/metropolitan-district-council/wolverhampton","ARGOS LTD","170.82","Civic Centre","5310","Equipment - Purchase","10/10/2017"
"Wolverhampton City Council","http://opendatacommunities.org/id/metropolitan-district-council/wolverhampton","THE COAL AUTHORITY","91.50","Legal Services","9399","Services - Professional Fees","10/10/2017"
"Wolverhampton City Council","http://opendatacommunities.org/id/metropolitan-district-council/wolverhampton","J VAN VLIET BIRMINGHAM","81.90","Discretionary Fund","5399","Materials","10/10/2017"
"Wolverhampton City Council","http://opendatacommunities.org/id/metropolitan-district-council/wolverhampton","J VAN VLIET BIRMINGHAM","37.20","Creative Studies Delivery Area","5399","Materials for resale","10/10/2017"
"Wolverhampton City Council","http://opendatacommunities.org/id/metropolitan-district-council/wolverhampton","ASDA SUPERSTORE","7.00","CIN/CP Social Work Unit - Area 5","5411","No Recourse to Public Funds","10/10/2017"
"Wolverhampton City Council","http://opendatacommunities.org/id/metropolitan-district-council/wolverhampton","ASDA SUPERSTORE","12.00","CIN/CP Social Work Unit - Area 5","5411","Section 17","10/10/2017"
"Wolverhampton City Council","http://opendatacommunities.org/id/metropolitan-district-council/wolverhampton","ASDA SUPERSTORE","13.11","CIN/CP Social Work Unit - Area 5","5411","No Recourse to Public Funds","10/10/2017"
"Wolverhampton City Council","http://opendatacommunities.org/id/metropolitan-district-council/wolverhampton","CONNELLS CLIENT ACCOUN","-1790.00","CIN/CP Social Work Unit - Area 1","8999","No Recourse to Public Funds","10/10/2017"
"Wolverhampton City Council","http://opendatacommunities.org/id/metropolitan-district-council/wolverhampton","Amazon UK Marketplace","15.99","Towers Outdoor Education Centre","5942","Books","10/10/2017"
"Wolverhampton City Council","http://opendatacommunities.org/id/metropolitan-district-council/wolverhampton","GRO HM PASSPORT OFFICE","5.37","LAC Transitions Team","9399","Client Allowances","10/10/2017"
"Wolverhampton City Council","http://opendatacommunities.org/id/metropolitan-district-council/wolverhampton","Trainline","125.97","CIN/CP Social Work Unit - Area 2","4112","Public Transport","09/10/2017"
"Wolverhampton City Council","http://opendatacommunities.org/id/metropolitan-district-council/wolverhampton","Trainline","125.97","CIN/CP Social Work Unit - Area 2","4112","Section 17","09/10/2017"
"Wolverhampton City Council","http://opendatacommunities.org/id/metropolitan-district-council/wolverhampton","SCREWFIX WOLVERHAM","10.82","LAC Transitions Team","5211","Client Allowances","09/10/2017"
"Wolverhampton City Council","http://opendatacommunities.org/id/metropolitan-district-council/wolverhampton","TICKETS 08712200260","38.00","Research & Development","7922","Educ Trips, Holidays, Outings, Activity","09/10/2017"
"Wolverhampton City Council","http://opendatacommunities.org/id/metropolitan-district-council/wolverhampton","WEST COAST TRAINS","68.20","Civic Centre","4112","Public Transport","09/10/2017"
"Wolverhampton City Council","http://opendatacommunities.org/id/metropolitan-district-council/wolverhampton","CUMMINGS BROTHERS LOCK","346.23","Strategy & Development","7399","Equipment - Purchase","09/10/2017"
"Wolverhampton City Council","http://opendatacommunities.org/id/metropolitan-district-council/wolverhampton","WAYFAIR STORES LIM","110.80","Mayoral Expenses","5965","Equipment - Purchase","09/10/2017"
"Wolverhampton City Council","http://opendatacommunities.org/id/metropolitan-district-council/wolverhampton","Amazon UK Marketplace","25.69","Delivery & OCE Development","5942","Books","09/10/2017"
"Wolverhampton City Council","http://opendatacommunities.org/id/metropolitan-district-council/wolverhampton","Amazon UK Marketplace","3.48","Delivery & OCE Development","5942","Books","09/10/2017"
"Wolverhampton City Council","http://opendatacommunities.org/id/metropolitan-district-council/wolverhampton","Amazon UK Marketplace","4.90","Communications & Marketing - General","5942","Books","09/10/2017"
"Wolverhampton City Council","http://opendatacommunities.org/id/metropolitan-district-council/wolverhampton","WWW.WMCA.CO.UK","54.50","IMPACT","9399","Services - Fees and Charges","09/10/2017"
"Wolverhampton City Council","http://opendatacommunities.org/id/metropolitan-district-council/wolverhampton","WWW.WMCA.CO.UK","54.50","IMPACT","9399","Services - Fees and Charges","09/10/2017"
"Wolverhampton City Council","http://opendatacommunities.org/id/metropolitan-district-council/wolverhampton","SAINSBURYS PFS (1340)","1.67","Mayoral Expenses","5541","Vehicle Maintenance - Repairs","09/10/2017"
"Wolverhampton City Council","http://opendatacommunities.org/id/metropolitan-district-council/wolverhampton","LEARNING AND WORK INST","100.00","Admin & Support","8398","Services - Supplies & Services to users","09/10/2017"
"Wolverhampton City Council","http://opendatacommunities.org/id/metropolitan-district-council/wolverhampton","123-REG.CO.UK","9.99","City Direct","4816","Computing - Purchase of Software","09/10/2017"
"Wolverhampton City Council","http://opendatacommunities.org/id/metropolitan-district-council/wolverhampton","Amazon UK Marketplace","55.00","LAC Education Team (LACE)","5942","Computing - Purchase of Hardware","09/10/2017"
"Wolverhampton City Council","http://opendatacommunities.org/id/metropolitan-district-council/wolverhampton","ASDA HOME SHOPPING","0.77","Upper Pendeford Farm Childrens Home","5411","Provisions (Not for resale)","09/10/2017"
"Wolverhampton City Council","http://opendatacommunities.org/id/metropolitan-district-council/wolverhampton","ASDA HOME SHOPPING","161.31","Upper Pendeford Farm Childrens Home","5411","Provisions (Not for resale)","09/10/2017"
"Wolverhampton City Council","http://opendatacommunities.org/id/metropolitan-district-council/wolverhampton","WWW.LIGHTS4FUN.CO.","79.99","Visitor Economy - Development","5999","Equipment - Purchase","09/10/2017"
"Wolverhampton City Council","http://opendatacommunities.org/id/metropolitan-district-council/wolverhampton","IKEA ONLINE","1612.50","Visitor Economy - Development","5719","Equipment - Purchase","09/10/2017"
"Wolverhampton City Council","http://opendatacommunities.org/id/metropolitan-district-council/wolverhampton","ADVANCED CARD BURE","10.00","Visitor Economy - Development","5099","Equipment - Purchase","09/10/2017"
"Wolverhampton City Council","http://opendatacommunities.org/id/metropolitan-district-council/wolverhampton","PAYPAL  MUSEUMSASSC","320.00","Research & Development","8398","Equipment - Purchase","09/10/2017"
"Wolverhampton City Council","http://opendatacommunities.org/id/metropolitan-district-council/wolverhampton","Amazon EU","9.76","Headstart Phase 3","5969","Stationery","09/10/2017"
"Wolverhampton City Council","http://opendatacommunities.org/id/metropolitan-district-council/wolverhampton","Amazon EU","9.76","Headstart Phase 3","5969","Stationery","09/10/2017"
"Wolverhampton City Council","http://opendatacommunities.org/id/metropolitan-district-council/wolverhampton","Amazon EU","9.76","Headstart Phase 3","5969","Stationery","09/10/2017"
"Wolverhampton City Council","http://opendatacommunities.org/id/metropolitan-district-council/wolverhampton","WESTMINSTER FORUM","210.00","Director of Education","7392","Services - Consultants","09/10/2017"
"Wolverhampton City Council","http://opendatacommunities.org/id/metropolitan-district-council/wolverhampton","PP DARRALJEVON","18.50","Wolverhampton Indoor and Open Market","5719","Equipment - Purchase","09/10/2017"
"Wolverhampton City Council","http://opendatacommunities.org/id/metropolitan-district-council/wolverhampton","Wix.com","93.13","Technical Support","5817","Computing - Purchase of Software","09/10/2017"
"Wolverhampton City Council","http://opendatacommunities.org/id/metropolitan-district-council/wolverhampton","Amazon EU","16.27","Global Budgets","5969","Books","09/10/2017"
"Wolverhampton City Council","http://opendatacommunities.org/id/metropolitan-district-council/wolverhampton","THE POST OFFICE","111.50","LAC Team","9402","Financial Assistance In Exceptional Circ","09/10/2017"
"Wolverhampton City Council","http://opendatacommunities.org/id/metropolitan-district-council/wolverhampton","BOTLEIGH GRANGE","58.33","Licensing - General","7011","Accommodation Costs","09/10/2017"
"Wolverhampton City Council","http://opendatacommunities.org/id/metropolitan-district-council/wolverhampton","BOTLEIGH GRANGE","58.33","Licensing - General","7011","Accommodation Costs","09/10/2017"
"Wolverhampton City Council","http://opendatacommunities.org/id/metropolitan-district-council/wolverhampton","REDWINGS LODGE","158.17","CIN/CP Social Work Unit - Area 5","7011","Section 17","09/10/2017"
"Wolverhampton City Council","http://opendatacommunities.org/id/metropolitan-district-council/wolverhampton","REDWINGS LODGE","47.92","CIN/CP Social Work Unit - Area 5","7011","Section 17","09/10/2017"
"Wolverhampton City Council","http://opendatacommunities.org/id/metropolitan-district-council/wolverhampton","PAST PRESENT AND FUTUR","104.17","LAC Transitions Team","5732","Client Allowances","09/10/2017"
"Wolverhampton City Council","http://opendatacommunities.org/id/metropolitan-district-council/wolverhampton","ASDA SUPERSTORE","53.00","Civic Centre Catering","5411","Provisions (Not for resale)","09/10/2017"
"Wolverhampton City Council","http://opendatacommunities.org/id/metropolitan-district-council/wolverhampton","Trainline","124.03","MAST 8 - Wednesfield","4112","Public Transport","09/10/2017"
"Wolverhampton City Council","http://opendatacommunities.org/id/metropolitan-district-council/wolverhampton","WWW.PURPLEBRICKS.COM","-118.80","CIN/CP Social Work Unit - Area 7","6513","No Recourse to Public Funds","09/10/2017"
"Wolverhampton City Council","http://opendatacommunities.org/id/metropolitan-district-council/wolverhampton","THORNTONS LTD","25.95","Delivery & OCE Development","5441","Subsistence","09/10/2017"
"Wolverhampton City Council","http://opendatacommunities.org/id/metropolitan-district-council/wolverhampton","THORNTONS LTD","25.95","Delivery & OCE Development","5441","Subsistence","09/10/2017"
"Wolverhampton City Council","http://opendatacommunities.org/id/metropolitan-district-council/wolverhampton","THORNTONS LTD","25.95","Delivery & OCE Development","5441","Subsistence","09/10/2017"
"Wolverhampton City Council","http://opendatacommunities.org/id/metropolitan-district-council/wolverhampton","THORNTONS LTD","25.95","Delivery & OCE Development","5441","Subsistence","09/10/2017"
"Wolverhampton City Council","http://opendatacommunities.org/id/metropolitan-district-council/wolverhampton","THORNTONS LTD","25.95","Delivery & OCE Development","5441","Subsistence","09/10/2017"
"Wolverhampton City Council","http://opendatacommunities.org/id/metropolitan-district-council/wolverhampton","THORNTONS LTD","30.00","Delivery & OCE Development","5441","Subsistence","09/10/2017"
"Wolverhampton City Council","http://opendatacommunities.org/id/metropolitan-district-council/wolverhampton","ARGOS RETAIL GROUP","45.29","CIN/CP Social Work Unit - Area 3","5310","Equipment - Purchase","09/10/2017"
"Wolverhampton City Council","http://opendatacommunities.org/id/metropolitan-district-council/wolverhampton","HIGHFIELD HOUSE HO","385.00","CIN/CP Social Work Unit - Area 3","7011","No Recourse to Public Funds","09/10/2017"
"Wolverhampton City Council","http://opendatacommunities.org/id/metropolitan-district-council/wolverhampton","Amazon EU","82.97","Northicote Farm","5969","Clothing / Uniforms","09/10/2017"
"Wolverhampton City Council","http://opendatacommunities.org/id/metropolitan-district-council/wolverhampton","Amazon UK Marketplace","97.42","Northicote Farm","5942","Clothing / Uniforms","09/10/2017"
"Wolverhampton City Council","http://opendatacommunities.org/id/metropolitan-district-council/wolverhampton","Amazon UK Marketplace","17.17","Northicote Farm","5942","Clothing / Uniforms","09/10/2017"
"Wolverhampton City Council","http://opendatacommunities.org/id/metropolitan-district-council/wolverhampton","WWW.ARGOS.CO.UK","27.99","CIN/CP Social Work Unit - Area 6","5310","Section 17","06/10/2017"
"Wolverhampton City Council","http://opendatacommunities.org/id/metropolitan-district-council/wolverhampton","POST OFFICE COUNTER","2.90","Fostering Team & Allowances","9402","Comms - Postage","06/10/2017"
"Wolverhampton City Council","http://opendatacommunities.org/id/metropolitan-district-council/wolverhampton","E00229000000000","251.85","Headstart Phase 3","6011","Financial Assistance In Exceptional Circ","06/10/2017"
"Wolverhampton City Council","http://opendatacommunities.org/id/metropolitan-district-council/wolverhampton","Trainline","44.17","Headstart Phase 3","4112","Public Transport","06/10/2017"
"Wolverhampton City Council","http://opendatacommunities.org/id/metropolitan-district-council/wolverhampton","PARCELFORCE WORLDWIDE","38.98","Headstart Phase 3","4214","Comms - Postage","06/10/2017"
"Wolverhampton City Council","http://opendatacommunities.org/id/metropolitan-district-council/wolverhampton","POST OFFICE COUNTER","45.27","Headstart Phase 3","9402","Comms - Postage","06/10/2017"
"Wolverhampton City Council","http://opendatacommunities.org/id/metropolitan-district-council/wolverhampton","LEARNDIRECT LIMITED","41.67","IMPACT","8220","Training Expenses","06/10/2017"
"Wolverhampton City Council","http://opendatacommunities.org/id/metropolitan-district-council/wolverhampton","Trainline","70.89","Education Business Partnership","4112","Public Transport","06/10/2017"
"Wolverhampton City Council","http://opendatacommunities.org/id/metropolitan-district-council/wolverhampton","MARKS&SPENCER PLC SACA","20.00","Mayoral Expenses","5411","Equipment - Purchase","06/10/2017"
"Wolverhampton City Council","http://opendatacommunities.org/id/metropolitan-district-council/wolverhampton","CREATIVE FRAMING","43.36","Mayoral Expenses","5971","Equipment - Purchase","06/10/2017"
"Wolverhampton City Council","http://opendatacommunities.org/id/metropolitan-district-council/wolverhampton","REGISTRARS OFFICE","11.00","Childrens with Disabilities Team","8299","Training Expenses","06/10/2017"
"Wolverhampton City Council","http://opendatacommunities.org/id/metropolitan-district-council/wolverhampton","NAMESCO","47.98","Work Box","4816","Computing - Purchase of Software","06/10/2017"
"Wolverhampton City Council","http://opendatacommunities.org/id/metropolitan-district-council/wolverhampton","UNTOUCHABLES","6.67","Cemeteries","5231","Materials","06/10/2017"
"Wolverhampton City Council","http://opendatacommunities.org/id/metropolitan-district-council/wolverhampton","UNTOUCHABLES","17.29","Cemeteries","5231","Materials","06/10/2017"
"Wolverhampton City Council","http://opendatacommunities.org/id/metropolitan-district-council/wolverhampton","PAYPAL  BARNARDOS","50.00","Intensive Family Support Team","8999","Services - Professional Fees","06/10/2017"
"Wolverhampton City Council","http://opendatacommunities.org/id/metropolitan-district-council/wolverhampton","POST OFFICE COUNTER","65.00","Intensive Family Support Team","9402","Comms - Postage","06/10/2017"
"Wolverhampton City Council","http://opendatacommunities.org/id/metropolitan-district-council/wolverhampton","Trainline","268.46","Assistant Director - Public Health","4112","Public Transport","06/10/2017"
"Wolverhampton City Council","http://opendatacommunities.org/id/metropolitan-district-council/wolverhampton","WEST COAST TRAINS","7.60","Research & Development","4112","Public Transport","06/10/2017"
"Wolverhampton City Council","http://opendatacommunities.org/id/metropolitan-district-council/wolverhampton","WH SMITH","12.49","Headstart Phase 3","5994","Equipment - Purchase","06/10/2017"
"Wolverhampton City Council","http://opendatacommunities.org/id/metropolitan-district-council/wolverhampton","SELFRIDGES","23.11","Headstart Phase 3","5311","Subsistence","06/10/2017"
"Wolverhampton City Council","http://opendatacommunities.org/id/metropolitan-district-council/wolverhampton","WOLVERHAMPTON RACECOUR","6.08","Headstart Phase 3","7999","Subsistence","06/10/2017"
"Wolverhampton City Council","http://opendatacommunities.org/id/metropolitan-district-council/wolverhampton","WOLVERHAMPTON RACECOUR","2.50","Headstart Phase 3","7999","Subsistence","06/10/2017"
"Wolverhampton City Council","http://opendatacommunities.org/id/metropolitan-district-council/wolverhampton","WEST COAST TRAINS","9.40","Headstart Phase 3","4112","Public Transport","06/10/2017"
"Wolverhampton City Council","http://opendatacommunities.org/id/metropolitan-district-council/wolverhampton","WEST COAST TRAINS","7.80","Headstart Phase 3","4112","Public Transport","06/10/2017"
"Wolverhampton City Council","http://opendatacommunities.org/id/metropolitan-district-council/wolverhampton","Virgin Trains","137.40","Private Sector Housing","4112","Public Transport","06/10/2017"
"Wolverhampton City Council","http://opendatacommunities.org/id/metropolitan-district-council/wolverhampton","Trainline","78.54","Research & Development","4112","Public Transport","06/10/2017"
"Wolverhampton City Council","http://opendatacommunities.org/id/metropolitan-district-council/wolverhampton","WWW.TELECARE.ORG.UK","78.00","Head of Strategic Commissioning � People","7399","Events","06/10/2017"
"Wolverhampton City Council","http://opendatacommunities.org/id/metropolitan-district-council/wolverhampton","Virgintrains.co.uk","-11.50","Technical Support","4112","Public Transport","06/10/2017"
"Wolverhampton City Council","http://opendatacommunities.org/id/metropolitan-district-council/wolverhampton","WWW.BEDS.CO.UK","140.83","LAC Transitions Team","5712","Client Allowances","06/10/2017"
"Wolverhampton City Council","http://opendatacommunities.org/id/metropolitan-district-council/wolverhampton","LANSDOWNE HOTEL EASTBO","63.75","Licensing - General","7011","Accommodation Costs","06/10/2017"
"Wolverhampton City Council","http://opendatacommunities.org/id/metropolitan-district-council/wolverhampton","LANSDOWNE HOTEL EASTBO","63.75","Licensing - General","7011","Accommodation Costs","06/10/2017"
"Wolverhampton City Council","http://opendatacommunities.org/id/metropolitan-district-council/wolverhampton","Amazon UK Marketplace","19.12","Global Budgets","5942","Equipment - Purchase","06/10/2017"
"Wolverhampton City Council","http://opendatacommunities.org/id/metropolitan-district-council/wolverhampton","Amazon UK Marketplace","10.40","Global Budgets","5942","Equipment - Purchase","06/10/2017"
"Wolverhampton City Council","http://opendatacommunities.org/id/metropolitan-district-council/wolverhampton","PAYPAL  CABLE STOP","5.70","Strategic Director Place","5946","Equipment - Purchase","06/10/2017"
"Wolverhampton City Council","http://opendatacommunities.org/id/metropolitan-district-council/wolverhampton","MAYFAIR CARPETS & SUIT","150.00","LAC Transitions Team","5712","Client Allowances","06/10/2017"
"Wolverhampton City Council","http://opendatacommunities.org/id/metropolitan-district-council/wolverhampton","Amazon Prime","7.99","Duke Street Bungalows","5968","Subscriptions","06/10/2017"
"Wolverhampton City Council","http://opendatacommunities.org/id/metropolitan-district-council/wolverhampton","ASDA SUPERSTORE","-8.33","CIN/CP Social Work Unit - Area 4","5411","No Recourse to Public Funds","06/10/2017"
"Wolverhampton City Council","http://opendatacommunities.org/id/metropolitan-district-council/wolverhampton","ASDA SUPERSTORE","21.71","CIN/CP Social Work Unit - Area 4","5411","No Recourse to Public Funds","06/10/2017"
"Wolverhampton City Council","http://opendatacommunities.org/id/metropolitan-district-council/wolverhampton","ASDA SUPERSTORE","83.33","CIN/CP Social Work Unit - Area 4","5411","Section 17","06/10/2017"
"Wolverhampton City Council","http://opendatacommunities.org/id/metropolitan-district-council/wolverhampton","ASDA SUPERSTORE","83.33","CIN/CP Social Work Unit - Area 4","5411","Section 17","06/10/2017"
"Wolverhampton City Council","http://opendatacommunities.org/id/metropolitan-district-council/wolverhampton","REDWINGS LODGE","399.65","CIN/CP Social Work Unit - Area 7","7011","No Recourse to Public Funds","06/10/2017"
"Wolverhampton City Council","http://opendatacommunities.org/id/metropolitan-district-council/wolverhampton","HOTEL FOOTBALL F AND B","293.99","School Improvement","7011","Services - Supplies & Services to users","06/10/2017"
"Wolverhampton City Council","http://opendatacommunities.org/id/metropolitan-district-council/wolverhampton","Trainline","100.47","MAST 8 - Wednesfield","4112","Public Transport","06/10/2017"
"Wolverhampton City Council","http://opendatacommunities.org/id/metropolitan-district-council/wolverhampton","Trainline","100.47","MAST 8 - Wednesfield","4112","Public Transport","06/10/2017"
"Wolverhampton City Council","http://opendatacommunities.org/id/metropolitan-district-council/wolverhampton","HIRE STATION-LTD","120.00","Culwell Street Depot","7394","Equipment - Purchase","06/10/2017"
"Wolverhampton City Council","http://opendatacommunities.org/id/metropolitan-district-council/wolverhampton","Virgin Trains","98.80","Revenues","4112","Public Transport","06/10/2017"
"Wolverhampton City Council","http://opendatacommunities.org/id/metropolitan-district-council/wolverhampton","KONICA MINOLTA BUSINES","341.40","Music Support Team","7399","Equipment - R & M","06/10/2017"
"Wolverhampton City Council","http://opendatacommunities.org/id/metropolitan-district-council/wolverhampton","HIGHFIELD HOUSE HO","385.00","CIN/CP Social Work Unit - Area 3","7011","Accommodation Costs","06/10/2017"
"Wolverhampton City Council","http://opendatacommunities.org/id/metropolitan-district-council/wolverhampton","AMAZON.CO.UK","33.32","Northicote Farm","5942","Clothing / Uniforms","06/10/2017"
"Wolverhampton City Council","http://opendatacommunities.org/id/metropolitan-district-council/wolverhampton","Amazon UK Marketplace","62.47","Northicote Farm","5942","Clothing / Uniforms","06/10/2017"
"Wolverhampton City Council","http://opendatacommunities.org/id/metropolitan-district-council/wolverhampton","PAYPAL  THEROTA","696.96","Civic Halls Non Direct Management A/C","5735","Computing - Purchase of Software","05/10/2017"
"Wolverhampton City Council","http://opendatacommunities.org/id/metropolitan-district-council/wolverhampton","Trainline","8.93","Legal Services","4112","Public Transport","05/10/2017"
"Wolverhampton City Council","http://opendatacommunities.org/id/metropolitan-district-council/wolverhampton","WEST COAST TRAINS","9.20","Strategic ICTS (ICT Serv Budget)","4112","Public Transport","05/10/2017"
"Wolverhampton City Council","http://opendatacommunities.org/id/metropolitan-district-council/wolverhampton","WEBFLOW.COM","653.83","Strategic ICTS (ICT Serv Budget)","7372","Services - Professional Fees","05/10/2017"
"Wolverhampton City Council","http://opendatacommunities.org/id/metropolitan-district-council/wolverhampton","HOME BARGAINS WOLVERHA","42.94","CIN/CP Social Work Unit - Area 3","5251","Section 17","05/10/2017"
"Wolverhampton City Council","http://opendatacommunities.org/id/metropolitan-district-council/wolverhampton","WEST COAST TRAINS","43.50","CIN/CP Social Work Unit - Area 3","4112","Section 17","05/10/2017"
"Wolverhampton City Council","http://opendatacommunities.org/id/metropolitan-district-council/wolverhampton","ROYAL CARPETS","200.00","CIN/CP Social Work Unit - Area 3","5713","Section 17","05/10/2017"
"Wolverhampton City Council","http://opendatacommunities.org/id/metropolitan-district-council/wolverhampton","W M MORRISONS.COM","76.42","Discretionary Fund","5411","Materials","05/10/2017"
"Wolverhampton City Council","http://opendatacommunities.org/id/metropolitan-district-council/wolverhampton","GO CARZ","5.25","MASH","4121","Client Transport","05/10/2017"
"Wolverhampton City Council","http://opendatacommunities.org/id/metropolitan-district-council/wolverhampton","PAYPAL  ARGOS EBAY","249.99","LAC Transitions Team","5311","Client Allowances","05/10/2017"
"Wolverhampton City Council","http://opendatacommunities.org/id/metropolitan-district-council/wolverhampton","PAYPAL  KMSDISTRIBU","74.99","LAC Transitions Team","5251","Client Allowances","05/10/2017"
"Wolverhampton City Council","http://opendatacommunities.org/id/metropolitan-district-council/wolverhampton","WM MORRISONS","16.72","Safeguarding Board - Childrens","5411","Provisions (Not for resale)","05/10/2017"
"Wolverhampton City Council","http://opendatacommunities.org/id/metropolitan-district-council/wolverhampton","ROYAL CARPETS","208.33","LAC Transitions Team","5713","Client Allowances","05/10/2017"
"Wolverhampton City Council","http://opendatacommunities.org/id/metropolitan-district-council/wolverhampton","AMAZON.CO.UK","59.95","Independent Living Service","5942","Books","05/10/2017"
"Wolverhampton City Council","http://opendatacommunities.org/id/metropolitan-district-council/wolverhampton","WWW.BULKPLUMBING.CO.UK","129.42","Technical Material","5211","Materials","05/10/2017"
"Wolverhampton City Council","http://opendatacommunities.org/id/metropolitan-district-council/wolverhampton","WEST COAST TRAINS","19.80","Fleet Management","4112","Public Transport","05/10/2017"
"Wolverhampton City Council","http://opendatacommunities.org/id/metropolitan-district-council/wolverhampton","MAYFAIR CARPETS & SUIT","170.83","CIN/CP Social Work Unit - Area 8","5712","Furniture","05/10/2017"
"Wolverhampton City Council","http://opendatacommunities.org/id/metropolitan-district-council/wolverhampton","WLY COMPLETESAVE.CO.UK","15.00","CIN/CP Social Work Unit - Area 8","5968","Subscriptions","05/10/2017"
"Wolverhampton City Council","http://opendatacommunities.org/id/metropolitan-district-council/wolverhampton","TESCO STORES 5194","-0.65","Towers Outdoor Education Centre","5411","Provisions (Not for resale)","05/10/2017"
"Wolverhampton City Council","http://opendatacommunities.org/id/metropolitan-district-council/wolverhampton","BETTWS MOTORS LIMITED","135.53","Towers Outdoor Education Centre","7538","Vehicle Maintenance - Repairs","05/10/2017"
"Wolverhampton City Council","http://opendatacommunities.org/id/metropolitan-district-council/wolverhampton","HARLECH FOODSERVICE LT","168.49","Towers Outdoor Education Centre","5422","Provisions (Not for resale)","05/10/2017"
"Wolverhampton City Council","http://opendatacommunities.org/id/metropolitan-district-council/wolverhampton","SPAR SIOP TANDDERWEN","188.40","Towers Outdoor Education Centre","5411","Provisions (Not for resale)","05/10/2017"
"Wolverhampton City Council","http://opendatacommunities.org/id/metropolitan-district-council/wolverhampton","000002200500000","250.00","CIN/CP Social Work Unit - Area 6","6011","Financial Assistance In Exceptional Circ","05/10/2017"
"Wolverhampton City Council","http://opendatacommunities.org/id/metropolitan-district-council/wolverhampton","BLOXWICH  SST","7.00","Economic Development","4112","Public Transport","05/10/2017"
"Wolverhampton City Council","http://opendatacommunities.org/id/metropolitan-district-council/wolverhampton","WM MORRISON 024","4.92","Fostering Team & Allowances","5411","Provisions (Not for resale)","05/10/2017"
"Wolverhampton City Council","http://opendatacommunities.org/id/metropolitan-district-council/wolverhampton","APL /Intercit","46.80","CIN/CP Social Work Unit - Area 3","4121","Client Transport","05/10/2017"
"Wolverhampton City Council","http://opendatacommunities.org/id/metropolitan-district-council/wolverhampton","AMAZON.CO.UK","14.75","Northicote Farm","5942","Materials","05/10/2017"
"Wolverhampton City Council","http://opendatacommunities.org/id/metropolitan-district-council/wolverhampton","Amazon EU","51.63","Northicote Farm","5969","Clothing / Uniforms","05/10/2017"
"Wolverhampton City Council","http://opendatacommunities.org/id/metropolitan-district-council/wolverhampton","Amazon UK Marketplace","46.27","Northicote Farm","5942","Clothing / Uniforms","05/10/2017"
"Wolverhampton City Council","http://opendatacommunities.org/id/metropolitan-district-council/wolverhampton","Amazon UK Marketplace","5.69","Northicote Farm","5942","Materials","05/10/2017"
"Wolverhampton City Council","http://opendatacommunities.org/id/metropolitan-district-council/wolverhampton","WWW.LEISURE.ORDNANCE","19.99","Headstart - Learning Technologies Team","5964","Computing - Purchase of Software","05/10/2017"
"Wolverhampton City Council","http://opendatacommunities.org/id/metropolitan-district-council/wolverhampton","FACEBK 32HS6CEA82","59.21","Delivery & OCE Development","7311","Marketing \ Non-staff advertising","05/10/2017"
"Wolverhampton City Council","http://opendatacommunities.org/id/metropolitan-district-council/wolverhampton","SAINSBURYS PFS (1340)","1.67","Mayoral Expenses","5541","Vehicle Maintenance - Repairs","05/10/2017"
"Wolverhampton City Council","http://opendatacommunities.org/id/metropolitan-district-council/wolverhampton","NOTEMACHINE","200.00","Childrens with Disabilities Team","6011","Financial Assistance In Exceptional Circ","05/10/2017"
"Wolverhampton City Council","http://opendatacommunities.org/id/metropolitan-district-council/wolverhampton","WILKO RETAIL LIMIT","4.50","Admin & Support","5722","Equipment - Purchase","05/10/2017"
"Wolverhampton City Council","http://opendatacommunities.org/id/metropolitan-district-council/wolverhampton","MAX SPIELMANN LTD","6.00","Admin & Support","7221","Stationery","05/10/2017"
"Wolverhampton City Council","http://opendatacommunities.org/id/metropolitan-district-council/wolverhampton","LOYD 37 CHURCH STREET","40.00","EIP Locality 8","6011","Grant Payments","05/10/2017"
"Wolverhampton City Council","http://opendatacommunities.org/id/metropolitan-district-council/wolverhampton","LOYD 37 CHURCH STREET","200.00","EIP Locality 8","6011","Grant Payments","05/10/2017"
"Wolverhampton City Council","http://opendatacommunities.org/id/metropolitan-district-council/wolverhampton","HMCOURTS-SERVICE.G","20.00","LAC Transitions Team","9222","Client Allowances","05/10/2017"
"Wolverhampton City Council","http://opendatacommunities.org/id/metropolitan-district-council/wolverhampton","WEST COAST TRAINS","10.00","Cemeteries","7523","Car Allowances","05/10/2017"
"Wolverhampton City Council","http://opendatacommunities.org/id/metropolitan-district-council/wolverhampton","WEST COAST TRAINS","20.50","Cemeteries","4112","Public Transport","05/10/2017"
"Wolverhampton City Council","http://opendatacommunities.org/id/metropolitan-district-council/wolverhampton","WWW.THEWORKS.CO.UK","48.12","EIP Locality 6","5310","Equipment - Purchase","05/10/2017"
"Wolverhampton City Council","http://opendatacommunities.org/id/metropolitan-district-council/wolverhampton","WM MORRISON 024","20.00","CIN/CP Social Work Unit - Area 2","5411","Section 17","05/10/2017"
"Wolverhampton City Council","http://opendatacommunities.org/id/metropolitan-district-council/wolverhampton","REGISTRARS OFFICE","10.00","CIN/CP Social Work Unit - Area 2","8299","Section 17","05/10/2017"
"Wolverhampton City Council","http://opendatacommunities.org/id/metropolitan-district-council/wolverhampton","WCC MOTO PAYMENTS","25.00","LAC Transitions Team","9399","Client Allowances","05/10/2017"
"Wolverhampton City Council","http://opendatacommunities.org/id/metropolitan-district-council/wolverhampton","Amazon UK Marketplace","189.90","SEN Sensory Inclusion","5942","Equipment - Purchase","05/10/2017"
"Wolverhampton City Council","http://opendatacommunities.org/id/metropolitan-district-council/wolverhampton","BOOKWHEN","9.00","Craftplay","7372","Computing - Purchase of Software","05/10/2017"
"Wolverhampton City Council","http://opendatacommunities.org/id/metropolitan-district-council/wolverhampton","WM MORRISON 024","81.26","Ernest Bold Court","5411","Provisions (Not for resale)","05/10/2017"
"Wolverhampton City Council","http://opendatacommunities.org/id/metropolitan-district-council/wolverhampton","Virgin Trains","7.90","Members Expenses","4112","Public Transport","05/10/2017"
"Wolverhampton City Council","http://opendatacommunities.org/id/metropolitan-district-council/wolverhampton","CUMMINGS BROTHERS LOCK","17.50","Inclusion Support","7399","Equipment - Purchase","05/10/2017"
"Wolverhampton City Council","http://opendatacommunities.org/id/metropolitan-district-council/wolverhampton","BRITANNIA","166.67","CIN/CP Social Work Unit - Area 5","7011","Section 17","05/10/2017"
"Wolverhampton City Council","http://opendatacommunities.org/id/metropolitan-district-council/wolverhampton","CURRYS S/S","809.99","Box Office Administration","5732","Equipment - Purchase","05/10/2017"
"Wolverhampton City Council","http://opendatacommunities.org/id/metropolitan-district-council/wolverhampton","TESCO STORES 5194","145.75","Towers Outdoor Education Centre","5411","Provisions (Not for resale)","04/10/2017"
"Wolverhampton City Council","http://opendatacommunities.org/id/metropolitan-district-council/wolverhampton","AMZ OMGHOWCHEAP LTD","-90.44","Equalities","5999","Equipment - Purchase","04/10/2017"
"Wolverhampton City Council","http://opendatacommunities.org/id/metropolitan-district-council/wolverhampton","PURE360","448.00","Audience Development","7372","Marketing \ Non-staff advertising","04/10/2017"
"Wolverhampton City Council","http://opendatacommunities.org/id/metropolitan-district-council/wolverhampton","THE POST OFFICE","15.60","CIN/CP Social Work Unit - Area 4","9402","Comms - Postage","04/10/2017"
"Wolverhampton City Council","http://opendatacommunities.org/id/metropolitan-district-council/wolverhampton","REGISTRARS OFFICE","50.00","CIN/CP Social Work Unit - Area 7","8299","Section 17","04/10/2017"
"Wolverhampton City Council","http://opendatacommunities.org/id/metropolitan-district-council/wolverhampton","REDWINGS LODGE","139.90","CIN/CP Social Work Unit - Area 7","7011","No Recourse to Public Funds","04/10/2017"
"Wolverhampton City Council","http://opendatacommunities.org/id/metropolitan-district-council/wolverhampton","REGISTRARS OFFICE","20.00","Head of Service - CINCP","8299","Services - Professional Fees","04/10/2017"
"Wolverhampton City Council","http://opendatacommunities.org/id/metropolitan-district-council/wolverhampton","Trainline","8.93","Legal Services","4112","Public Transport","04/10/2017"
"Wolverhampton City Council","http://opendatacommunities.org/id/metropolitan-district-council/wolverhampton","J VAN VLIET BIRMINGHAM","9.43","Discretionary Fund","5399","Materials","04/10/2017"
"Wolverhampton City Council","http://opendatacommunities.org/id/metropolitan-district-council/wolverhampton","KOLLER ENGINEERING LTD","326.51","Fleet Management","5047","Services - Professional Fees","04/10/2017"
"Wolverhampton City Council","http://opendatacommunities.org/id/metropolitan-district-council/wolverhampton","Trainline","97.00","CIN/CP Social Work Unit - Area 8","4112","Public Transport","04/10/2017"
"Wolverhampton City Council","http://opendatacommunities.org/id/metropolitan-district-council/wolverhampton","Amazon EU","27.25","Parks - Ranger Service","5969","Equipment - Purchase","04/10/2017"
"Wolverhampton City Council","http://opendatacommunities.org/id/metropolitan-district-council/wolverhampton","Amazon UK Marketplace","22.41","Parks - East Area Management","5942","Equipment - Purchase","04/10/2017"
"Wolverhampton City Council","http://opendatacommunities.org/id/metropolitan-district-council/wolverhampton","Trainline","9.64","Adoption and Residence Team & Allowances","4112","Public Transport","04/10/2017"
"Wolverhampton City Council","http://opendatacommunities.org/id/metropolitan-district-council/wolverhampton","Amazon UK Marketplace","8.95","Northicote Farm","5942","Materials","04/10/2017"
"Wolverhampton City Council","http://opendatacommunities.org/id/metropolitan-district-council/wolverhampton","Amazon UK Marketplace","74.70","Northicote Farm","5942","Clothing / Uniforms","04/10/2017"
"Wolverhampton City Council","http://opendatacommunities.org/id/metropolitan-district-council/wolverhampton","THE QUALITY HOTEL WOLV","48.15","MASH","7011","Services - Supplies & Services to users","04/10/2017"
"Wolverhampton City Council","http://opendatacommunities.org/id/metropolitan-district-council/wolverhampton","WOLVERHAMPTON RACECOUR","97.50","Headstart Phase 3","7011","Accommodation Costs","04/10/2017"
"Wolverhampton City Council","http://opendatacommunities.org/id/metropolitan-district-council/wolverhampton","PO WILLENHALL RD 5497","40.00","EIP Locality 1","6011","Financial Assistance In Exceptional Circ","04/10/2017"
"Wolverhampton City Council","http://opendatacommunities.org/id/metropolitan-district-council/wolverhampton","JAMES LISTER & SON","57.60","Telecare","8911","Protective Clothing","04/10/2017"
"Wolverhampton City Council","http://opendatacommunities.org/id/metropolitan-district-council/wolverhampton","TIMPSON LTD","86.00","Hostels / Outreach","7251","Accommodation Costs","04/10/2017"
"Wolverhampton City Council","http://opendatacommunities.org/id/metropolitan-district-council/wolverhampton","Virgin Trains","38.80","Housing Regeneration - Strategy & Dev","4112","Public Transport","04/10/2017"
"Wolverhampton City Council","http://opendatacommunities.org/id/metropolitan-district-council/wolverhampton","WWW.GOV.UK","10.00","Revenues","8999","Services - Professional Fees","04/10/2017"
"Wolverhampton City Council","http://opendatacommunities.org/id/metropolitan-district-council/wolverhampton","ARGOS LTD","10.82","Global Budgets","5310","Stationery","04/10/2017"
"Wolverhampton City Council","http://opendatacommunities.org/id/metropolitan-district-council/wolverhampton","WAITROSE 696","9.83","EIP Locality 3","5411","Grant Payments","04/10/2017"
"Wolverhampton City Council","http://opendatacommunities.org/id/metropolitan-district-council/wolverhampton","CURRYS ONLINE","191.66","LAC Transitions Team","5732","Client Allowances","04/10/2017"
"Wolverhampton City Council","http://opendatacommunities.org/id/metropolitan-district-council/wolverhampton","GRAYSON DESIGN & PRINT","76.00","Inclusion Support","5111","Stationery","04/10/2017"
"Wolverhampton City Council","http://opendatacommunities.org/id/metropolitan-district-council/wolverhampton","BRITANNIA","215.00","The Little Civic","7011","Accommodation Costs","04/10/2017"
"Wolverhampton City Council","http://opendatacommunities.org/id/metropolitan-district-council/wolverhampton","REDWINGS LODGE","49.96","Emergency Duty Team","7011","Services - Supplies & Services to users","04/10/2017"
"Wolverhampton City Council","http://opendatacommunities.org/id/metropolitan-district-council/wolverhampton","1&1 INTERNET LIMITED","25.18","Headstart - Learning Technologies Team","4816","Computing - Purchase of Software","04/10/2017"
"Wolverhampton City Council","http://opendatacommunities.org/id/metropolitan-district-council/wolverhampton","EVENT FURNITURE LIMITE","226.67","Aldersley Leisure Village","7394","Equipment - Hire","04/10/2017"
"Wolverhampton City Council","http://opendatacommunities.org/id/metropolitan-district-council/wolverhampton","ARGOS RETAIL GROUP","-59.26","MASH","5310","Equipment - Purchase","04/10/2017"
"Wolverhampton City Council","http://opendatacommunities.org/id/metropolitan-district-council/wolverhampton","GO CARZ","13.64","MASH","4121","Client Transport","04/10/2017"
"Wolverhampton City Council","http://opendatacommunities.org/id/metropolitan-district-council/wolverhampton","GO CARZ","13.74","MASH","4121","Client Transport","04/10/2017"
"Wolverhampton City Council","http://opendatacommunities.org/id/metropolitan-district-council/wolverhampton","NOVOTEL WOLVERHAMPTON","323.00","MASH","7011","Services - Supplies & Services to users","04/10/2017"
"Wolverhampton City Council","http://opendatacommunities.org/id/metropolitan-district-council/wolverhampton","NOVOTEL WOLVERHAMPTON","200.00","MASH","7011","Services - Supplies & Services to users","04/10/2017"
"Wolverhampton City Council","http://opendatacommunities.org/id/metropolitan-district-council/wolverhampton","Trainline","60.59","CIN/CP Social Work Unit - Area 6","4112","Section 17","03/10/2017"
"Wolverhampton City Council","http://opendatacommunities.org/id/metropolitan-district-council/wolverhampton","WEST COAST TRAINS","4.70","Economic Development","4112","Public Transport","03/10/2017"
"Wolverhampton City Council","http://opendatacommunities.org/id/metropolitan-district-council/wolverhampton","WEST COAST TRAINS","2.50","Economic Development","4112","Public Transport","03/10/2017"
"Wolverhampton City Council","http://opendatacommunities.org/id/metropolitan-district-council/wolverhampton","HOBBY CRAFT LTD","40.87","Headstart Phase 3","5970","Materials","03/10/2017"
"Wolverhampton City Council","http://opendatacommunities.org/id/metropolitan-district-council/wolverhampton","B&M RETAIL LTD","27.54","Headstart - Young People Engagement","5310","Materials","03/10/2017"
"Wolverhampton City Council","http://opendatacommunities.org/id/metropolitan-district-council/wolverhampton","HOBBY CRAFT LTD","49.75","Headstart - Young People Engagement","5970","Materials","03/10/2017"
"Wolverhampton City Council","http://opendatacommunities.org/id/metropolitan-district-council/wolverhampton","HOBBY CRAFT LTD","44.75","Headstart Phase 3","5970","Materials","03/10/2017"
"Wolverhampton City Council","http://opendatacommunities.org/id/metropolitan-district-council/wolverhampton","COSTA COFFEE 43040010","4.33","Headstart - Young People Engagement","5814","Subsistence","03/10/2017"
"Wolverhampton City Council","http://opendatacommunities.org/id/metropolitan-district-council/wolverhampton","POST OFFICE COUNTER","225.00","Headstart - Young People Engagement","9402","Provisions (Not for resale)","03/10/2017"
"Wolverhampton City Council","http://opendatacommunities.org/id/metropolitan-district-council/wolverhampton","BARCLAYS BANK PLC","300.00","Headstart - Young People Engagement","6011","Financial Assistance In Exceptional Circ","03/10/2017"
"Wolverhampton City Council","http://opendatacommunities.org/id/metropolitan-district-council/wolverhampton","ASDA HOME SHOPPING","-0.39","Ernest Bold Court","5411","Provisions (Not for resale)","03/10/2017"
"Wolverhampton City Council","http://opendatacommunities.org/id/metropolitan-district-council/wolverhampton","ASDA HOME SHOPPING","114.40","Ernest Bold Court","5411","Provisions (Not for resale)","03/10/2017"
"Wolverhampton City Council","http://opendatacommunities.org/id/metropolitan-district-council/wolverhampton","Trainline","81.09","Youth Offending Team","4112","Public Transport","03/10/2017"
"Wolverhampton City Council","http://opendatacommunities.org/id/metropolitan-district-council/wolverhampton","WEST COAST TRAINS","6.33","Cemeteries","4112","Public Transport","03/10/2017"
"Wolverhampton City Council","http://opendatacommunities.org/id/metropolitan-district-council/wolverhampton","WEST COAST TRAINS","168.00","Strategic ICTS (ICT Serv Budget)","4112","Public Transport","03/10/2017"
"Wolverhampton City Council","http://opendatacommunities.org/id/metropolitan-district-council/wolverhampton","LOVE2SHOP.CO.UK","203.50","LAC Transitions Team","8641","Client Allowances","03/10/2017"
"Wolverhampton City Council","http://opendatacommunities.org/id/metropolitan-district-council/wolverhampton","CURRY LOUNGE","25.71","Headstart Phase 3","5812","Subsistence","03/10/2017"
"Wolverhampton City Council","http://opendatacommunities.org/id/metropolitan-district-council/wolverhampton","STAFFORDSHIRE COUNTY C","12.00","LAC Team","9399","Financial Assistance In Exceptional Circ","03/10/2017"
"Wolverhampton City Council","http://opendatacommunities.org/id/metropolitan-district-council/wolverhampton","E01510300000000","40.00","Emergency Duty Team","6011","Financial Assistance In Exceptional Circ","03/10/2017"
"Wolverhampton City Council","http://opendatacommunities.org/id/metropolitan-district-council/wolverhampton","FACEBK 9L3ASCJC22","52.44","Central Costs","7311","Marketing \ Non-staff advertising","03/10/2017"
"Wolverhampton City Council","http://opendatacommunities.org/id/metropolitan-district-council/wolverhampton","FACEBK CL3ASCJC22","0.17","Central Costs","7311","Marketing \ Non-staff advertising","03/10/2017"
"Wolverhampton City Council","http://opendatacommunities.org/id/metropolitan-district-council/wolverhampton","WOLVERHAMPTON RACECOUR","2.50","Headstart Phase 3","7999","Subsistence","03/10/2017"
"Wolverhampton City Council","http://opendatacommunities.org/id/metropolitan-district-council/wolverhampton","TESCO STORES 5397","20.00","EIP Locality 1","5411","Electricity","03/10/2017"
"Wolverhampton City Council","http://opendatacommunities.org/id/metropolitan-district-council/wolverhampton","SCREWFIX DIRECT","67.27","Telecare","5211","Equipment - Purchase","03/10/2017"
"Wolverhampton City Council","http://opendatacommunities.org/id/metropolitan-district-council/wolverhampton","Cross Country Trains","7.60","Head of Strategic Commissioning � People","4112","Public Transport","03/10/2017"
"Wolverhampton City Council","http://opendatacommunities.org/id/metropolitan-district-council/wolverhampton","WAITROSE 696","21.80","EIP Locality 3","5411","Grant Payments","03/10/2017"
"Wolverhampton City Council","http://opendatacommunities.org/id/metropolitan-district-council/wolverhampton","REDWINGS LODGE","166.50","CIN/CP Social Work Unit - Area 5","7011","Section 17","03/10/2017"
"Wolverhampton City Council","http://opendatacommunities.org/id/metropolitan-district-council/wolverhampton","REDWINGS LODGE","59.95","CIN/CP Social Work Unit - Area 7","7011","No Recourse to Public Funds","03/10/2017"
"Wolverhampton City Council","http://opendatacommunities.org/id/metropolitan-district-council/wolverhampton","J VAN VLIET BIRMINGHAM","50.41","Discretionary Fund","5399","Materials","03/10/2017"
"Wolverhampton City Council","http://opendatacommunities.org/id/metropolitan-district-council/wolverhampton","J VAN VLIET BIRMINGHAM","27.30","Creative Studies Delivery Area","5399","Materials for resale","03/10/2017"
"Wolverhampton City Council","http://opendatacommunities.org/id/metropolitan-district-council/wolverhampton","ARGOS RETAIL GROUP","45.82","LAC Transitions Team","5310","Client Allowances","03/10/2017"
"Wolverhampton City Council","http://opendatacommunities.org/id/metropolitan-district-council/wolverhampton","HINDES HOTEL","29.17","CIN/CP Social Work Unit - Area 8","7011","Accommodation Costs","03/10/2017"
"Wolverhampton City Council","http://opendatacommunities.org/id/metropolitan-district-council/wolverhampton","Trainline","421.77","Adoption and Residence Team & Allowances","4112","Public Transport","03/10/2017"
"Wolverhampton City Council","http://opendatacommunities.org/id/metropolitan-district-council/wolverhampton","POST OFFICE COUNTER","14.50","Adoption and Residence Team & Allowances","9402","Comms - Postage","03/10/2017"
"Wolverhampton City Council","http://opendatacommunities.org/id/metropolitan-district-council/wolverhampton","DVLA VEHICLE TAX","307.50","Towers Outdoor Education Centre","9399","Equipment - Purchase","03/10/2017"
"Wolverhampton City Council","http://opendatacommunities.org/id/metropolitan-district-council/wolverhampton","ARGOS LTD","39.99","CIN/CP Social Work Unit - Area 6","5310","No Recourse to Public Funds","02/10/2017"
"Wolverhampton City Council","http://opendatacommunities.org/id/metropolitan-district-council/wolverhampton","Trainline","60.18","Research & Development","4112","Public Transport","02/10/2017"
"Wolverhampton City Council","http://opendatacommunities.org/id/metropolitan-district-council/wolverhampton","Trainline","72.93","Research & Development","4112","Public Transport","02/10/2017"
"Wolverhampton City Council","http://opendatacommunities.org/id/metropolitan-district-council/wolverhampton","POST OFFICE COUNTER","4.40","Fostering Team & Allowances","9402","Comms - Postage","02/10/2017"
"Wolverhampton City Council","http://opendatacommunities.org/id/metropolitan-district-council/wolverhampton","ASDA HOME SHOPPING","-0.26","Upper Pendeford Farm Childrens Home","5411","Provisions (Not for resale)","02/10/2017"
"Wolverhampton City Council","http://opendatacommunities.org/id/metropolitan-district-council/wolverhampton","ASDA HOME SHOPPING","106.57","Upper Pendeford Farm Childrens Home","5411","Provisions (Not for resale)","02/10/2017"
"Wolverhampton City Council","http://opendatacommunities.org/id/metropolitan-district-council/wolverhampton","Virgin Trains","50.85","Safeguarding Children","4112","Public Transport","02/10/2017"
"Wolverhampton City Council","http://opendatacommunities.org/id/metropolitan-district-council/wolverhampton","Virgin Trains","50.85","LAC Team","4112","Public Transport","02/10/2017"
"Wolverhampton City Council","http://opendatacommunities.org/id/metropolitan-district-council/wolverhampton","THE NEW BRIDGE GUEST H","150.00","Emergency Duty Team","7011","Services - Supplies & Services to users","02/10/2017"
"Wolverhampton City Council","http://opendatacommunities.org/id/metropolitan-district-council/wolverhampton","FACEBK X9FQYCWC22","8.91","Central Costs","7311","Marketing \ Non-staff advertising","02/10/2017"
"Wolverhampton City Council","http://opendatacommunities.org/id/metropolitan-district-council/wolverhampton","FACEBK Q9FQYCWC22","438.48","Central Costs","7311","Marketing \ Non-staff advertising","02/10/2017"
"Wolverhampton City Council","http://opendatacommunities.org/id/metropolitan-district-council/wolverhampton","UK TEST INSTRUMENTS","419.00","Central Costs","5969","Equipment - Purchase","02/10/2017"
"Wolverhampton City Council","http://opendatacommunities.org/id/metropolitan-district-council/wolverhampton","WOLVERHAMPTON CC","5.42","Headstart Phase 3","7523","Parking Fees","02/10/2017"
"Wolverhampton City Council","http://opendatacommunities.org/id/metropolitan-district-council/wolverhampton","PREMIER INN","89.99","Headstart Phase 3","3811","Accommodation Costs","02/10/2017"
"Wolverhampton City Council","http://opendatacommunities.org/id/metropolitan-district-council/wolverhampton","AMAZON UK RETAIL AMAZO","42.47","Archives","5999","Computing - Consumables","02/10/2017"
"Wolverhampton City Council","http://opendatacommunities.org/id/metropolitan-district-council/wolverhampton","WM MORRISON 024","7.56","Ernest Bold Court","5411","Provisions (Not for resale)","02/10/2017"
"Wolverhampton City Council","http://opendatacommunities.org/id/metropolitan-district-council/wolverhampton","REDWINGS LODGE","129.85","CIN/CP Social Work Unit - Area 5","7011","Services - Supplies & Services to users","02/10/2017"
"Wolverhampton City Council","http://opendatacommunities.org/id/metropolitan-district-council/wolverhampton","REGISTRARS OFFICE","150.00","Head of Service - CINCP","8299","Services - Professional Fees","02/10/2017"
"Wolverhampton City Council","http://opendatacommunities.org/id/metropolitan-district-council/wolverhampton","CROWN PROPERTY SERVICE","80.00","CIN/CP Social Work Unit - Area 3","7011","Section 17","02/10/2017"
"Wolverhampton City Council","http://opendatacommunities.org/id/metropolitan-district-council/wolverhampton","PREMIER INN","-190.98","CIN/CP Social Work Unit - Area 8","3811","Services - Supplies & Services to users","02/10/2017"
"Wolverhampton City Council","http://opendatacommunities.org/id/metropolitan-district-council/wolverhampton","HINDES HOTEL","60.21","CIN/CP Social Work Unit - Area 8","7011","Accommodation Costs","02/10/2017"
"Wolverhampton City Council","http://opendatacommunities.org/id/metropolitan-district-council/wolverhampton","HINDES HOTEL","60.21","CIN/CP Social Work Unit - Area 8","7011","Accommodation Costs","02/10/2017"
"Wolverhampton City Council","http://opendatacommunities.org/id/metropolitan-district-council/wolverhampton","BRITANNIA","283.50","Assessment Team (West)","7011","Services - Supplies & Services to users","02/10/2017"
"Wolverhampton City Council","http://opendatacommunities.org/id/metropolitan-district-council/wolverhampton","GDS SOUND & LIGHT","669.50","Equalities","5722","Equipment - Hire","02/10/2017"
"Wolverhampton City Council","http://opendatacommunities.org/id/metropolitan-district-council/wolverhampton","ITUNES.COM/BILL","2.49","Headstart - Learning Technologies Team","5735","Computing - Purchase of Software","02/10/2017"
"Wolverhampton City Council","http://opendatacommunities.org/id/metropolitan-district-council/wolverhampton","FACEBK CNUP6CEA82","51.96","Communications & Marketing - General","7311","Marketing \ Non-staff advertising","02/10/2017"
"Wolverhampton City Council","http://opendatacommunities.org/id/metropolitan-district-council/wolverhampton","FACEBK D8WEZD2AR2","18.92","Communications & Marketing - General","7311","Marketing \ Non-staff advertising","02/10/2017"
"Wolverhampton City Council","http://opendatacommunities.org/id/metropolitan-district-council/wolverhampton","FACEBK A8WEZD2AR2","481.22","Communications & Marketing - General","7311","Marketing \ Non-staff advertising","02/10/2017"
"Wolverhampton City Council","http://opendatacommunities.org/id/metropolitan-district-council/wolverhampton","Amazon UK Marketplace","34.12","Headstart Phase 3","5942","Equipment - Purchase","02/10/2017"
"Wolverhampton City Council","http://opendatacommunities.org/id/metropolitan-district-council/wolverhampton","Amazon UK Marketplace","72.95","Headstart Phase 3","5942","Equipment - Purchase","02/10/2017"
"Wolverhampton City Council","http://opendatacommunities.org/id/metropolitan-district-council/wolverhampton","Virgin Trains","533.90","HR Advice","4112","Public Transport","02/10/2017"
"Wolverhampton City Council","http://opendatacommunities.org/id/metropolitan-district-council/wolverhampton","MAX SPIELMANN LTD","7.08","Mayoral Expenses","7221","Hospitality","02/10/2017"
"Wolverhampton City Council","http://opendatacommunities.org/id/metropolitan-district-council/wolverhampton","WWW.MAPLIN.CO.UK","8.30","Admin & Support","5732","Equipment - Purchase","02/10/2017"
"Wolverhampton City Council","http://opendatacommunities.org/id/metropolitan-district-council/wolverhampton","LOYD 37 CHURCH STREET","160.00","EIP Locality 8","6011","Grant Payments","02/10/2017"
"Wolverhampton City Council","http://opendatacommunities.org/id/metropolitan-district-council/wolverhampton","AMZ yenlok","-32.10","Strategic ICTS (ICT Serv Budget)","5999","Equipment - Purchase","02/10/2017"
"Wolverhampton City Council","http://opendatacommunities.org/id/metropolitan-district-council/wolverhampton","PAYPAL  BAX SHOP","174.00","Strategic ICTS (ICT Serv Budget)","5732","Equipment - Purchase","02/10/2017"
"Wolverhampton City Council","http://opendatacommunities.org/id/metropolitan-district-council/wolverhampton","SQUARESPACE INC.","166.57","Technical Support","7372","Computing - Purchase of Software","02/10/2017"
"Wolverhampton City Council","http://opendatacommunities.org/id/metropolitan-district-council/wolverhampton","Virgin Trains","165.00","Members Expenses","4112","Public Transport","02/10/2017"
"Wolverhampton City Council","http://opendatacommunities.org/id/metropolitan-district-council/wolverhampton","Amazon UK Marketplace","51.08","Environmental Health - Pub Prot - Gen","5942","Equipment - Purchase","02/10/2017"
"Wolverhampton City Council","http://opendatacommunities.org/id/metropolitan-district-council/wolverhampton","Amazon UK Marketplace","72.05","Environmental Health - Pub Prot - Gen","5942","Equipment - Purchase","02/10/2017"
"Wolverhampton City Council","http://opendatacommunities.org/id/metropolitan-district-council/wolverhampton","Amazon UK Marketplace","9.15","Environmental Health - Pub Prot - Gen","5942","Equipment - Purchase","02/10/2017"
"Wolverhampton City Council","http://opendatacommunities.org/id/metropolitan-district-council/wolverhampton","WICKES","11.72","Global Budgets","5211","Materials","02/10/2017"
"Wolverhampton City Council","http://opendatacommunities.org/id/metropolitan-district-council/wolverhampton","MCAFEE  WWW.MCAFEE.COM","89.99","Visitor Economy - Development","5968","Computing - Purchase of Software","02/10/2017"
"Wolverhampton City Council","http://opendatacommunities.org/id/metropolitan-district-council/wolverhampton","GOOGLE  SVCSAPPS_wolve","9.90","Civic Halls Non Direct Management A/C","5968","Subscriptions","02/10/2017"
"Wolverhampton City Council","http://opendatacommunities.org/id/metropolitan-district-council/wolverhampton","FACEBK ZKNAPDA982","9.82","Audience Development","7311","Marketing \ Non-staff advertising","02/10/2017"
"Wolverhampton City Council","http://opendatacommunities.org/id/metropolitan-district-council/wolverhampton","FACEBK YKNAPDA982","31.65","Audience Development","7311","Marketing \ Non-staff advertising","02/10/2017"
"Wolverhampton City Council","http://opendatacommunities.org/id/metropolitan-district-council/wolverhampton","Cross Country Trains","32.60","Box Office Administration","4112","Public Transport","02/10/2017"
"Wolverhampton City Council","http://opendatacommunities.org/id/metropolitan-district-council/wolverhampton","Cross Country Trains","32.60","Box Office Administration","4112","Public Transport","02/10/2017"
"Wolverhampton City Council","http://opendatacommunities.org/id/metropolitan-district-council/wolverhampton","ARGOS LTD","-82.50","Condition Surveys","5310","Equipment - Purchase","02/10/2017"
"Wolverhampton City Council","http://opendatacommunities.org/id/metropolitan-district-council/wolverhampton","ARGOS LTD","82.50","Condition Surveys","5310","Equipment - Purchase","02/10/2017"
"Wolverhampton City Council","http://opendatacommunities.org/id/metropolitan-district-council/wolverhampton","ARGOS LTD","82.50","Condition Surveys","5310","Equipment - Purchase","02/10/2017"
"Wolverhampton City Council","http://opendatacommunities.org/id/metropolitan-district-council/wolverhampton","BEATTIES","12.00","Pop Gallery Space","5311","Equipment - Purchase","02/10/2017"
"Wolverhampton City Council","http://opendatacommunities.org/id/metropolitan-district-council/wolverhampton","PAYPAL  123REGLIMIT","39.96","Technical Support","4816","Computing - Purchase of Software","02/10/2017"
"Wolverhampton City Council","http://opendatacommunities.org/id/metropolitan-district-council/wolverhampton","Wix.com","93.13","Technical Support","5817","Computing - Purchase of Software","02/10/2017"
"Wolverhampton City Council","http://opendatacommunities.org/id/metropolitan-district-council/wolverhampton","Wix.com","46.57","Technical Support","5817","Computing - Purchase of Software","02/10/2017"
"Wolverhampton City Council","http://opendatacommunities.org/id/metropolitan-district-council/wolverhampton","Wix.com","46.57","Technical Support","5817","Computing - Purchase of Software","02/10/2017"
"Wolverhampton City Council","http://opendatacommunities.org/id/metropolitan-district-council/wolverhampton","IMPERIAL LONDON HOTELS","170.00","Technical Support","7011","Services - Supplies & Services to users","02/10/2017"
"Wolverhampton City Council","http://opendatacommunities.org/id/metropolitan-district-council/wolverhampton","BRITANNIA","300.00","CIN/CP Social Work Unit - Area 5","7011","Services - Supplies & Services to users","02/10/2017"
"Wolverhampton City Council","http://opendatacommunities.org/id/metropolitan-district-council/wolverhampton","BRITANNIA WOLVERHA","211.00","CIN/CP Social Work Unit - Area 5","7011","Services - Supplies & Services to users","02/10/2017"
"Wolverhampton City Council","http://opendatacommunities.org/id/metropolitan-district-council/wolverhampton","REDWINGS LODGE","23.96","CIN/CP Social Work Unit - Area 5","7011","Services - Supplies & Services to users","02/10/2017"
